Capital or Revenue,Directorate,SERCOP High Level Category,SERCOP Detailed Category,Transaction Number,Date,Service Area,Expenses Type,Amount,Supplier Name
Revenue,Adult Services,Adult Social Care,Central Codes (to be reallocated),5105668407,10.03.2021,Gouldings Resource Centre,Consumable Cleaning Materials,210.00,A & M APPLIANCE CARE
Revenue,Adult Services,Adult Social Care,Central Codes (to be reallocated),5105668409,10.03.2021,Gouldings Resource Centre,Property Services - Day to day Maintenance,60.00,A & M APPLIANCE CARE
Revenue,Adult Services,Adult Social Care,Social Support - Support for Carer,5105667661,03.03.2021,Westminster House,Operational Equipment,357.97,A & M APPLIANCE CARE
Revenue,Adult Services,Adult Social Care,Social Support - Support for Carer,5105667661,03.03.2021,Westminster House,Operational Equipment,20.00,A & M APPLIANCE CARE
Revenue,Adult Services,Adult Social Care,Social Support - Support for Carer,5105667661,03.03.2021,Westminster House,Operational Equipment,60.00,A & M APPLIANCE CARE
Revenue,Adult Services,Adult Social Care,Learning Disab Supp (to be reallocated),5105670125,31.03.2021,Plean Dene,Consumable Cleaning Materials,86.00,A & M APPLIANCE CARE
Revenue,Adult Services,Adult Social Care,Central Codes (to be reallocated),5105670122,31.03.2021,Adelaide Resource Centre,Consumable Cleaning Materials,245.00,A & M APPLIANCE CARE
Revenue,Neighbourhoods,Cultural and Related Services,Open Spaces,5105670047,31.03.2021,Tree Felling / Replacement,Payment to Private Contractors,"6,000.00",A GUSTAR T/A IVY TREE CARE
Revenue,Neighbourhoods,Cultural and Related Services,Open Spaces,5105667745,05.03.2021,Tree Felling / Replacement,Payment to Private Contractors,"9,250.00",A GUSTAR T/A IVY TREE CARE
Revenue,Neighbourhoods,Cultural and Related Services,Open Spaces,5105667757,05.03.2021,Tree Felling / Replacement,Payment to Private Contractors,"9,000.00",A GUSTAR T/A IVY TREE CARE
Revenue,Neighbourhoods,Cultural and Related Services,Open Spaces,5105667773,03.03.2021,Other Grounds Maintenance,Payment to Private Contractors,65.00,A GUSTAR T/A IVY TREE CARE
Revenue,Neighbourhoods,Cultural and Related Services,Open Spaces,5105667773,03.03.2021,Other Grounds Maintenance,Payment to Private Contractors,65.00,A GUSTAR T/A IVY TREE CARE
Revenue,Neighbourhoods,Cultural and Related Services,Open Spaces,5105667773,03.03.2021,Other Grounds Maintenance,Payment to Private Contractors,150.00,A GUSTAR T/A IVY TREE CARE
Revenue,Neighbourhoods,Cultural and Related Services,Open Spaces,5105667773,03.03.2021,Other Grounds Maintenance,Payment to Private Contractors,95.00,A GUSTAR T/A IVY TREE CARE
Revenue,Neighbourhoods,Cultural and Related Services,Open Spaces,5105667773,03.03.2021,Other Grounds Maintenance,Payment to Private Contractors,95.00,A GUSTAR T/A IVY TREE CARE
Revenue,Neighbourhoods,Cultural and Related Services,Open Spaces,5105667773,03.03.2021,Other Grounds Maintenance,Payment to Private Contractors,"3,795.80",A GUSTAR T/A IVY TREE CARE
Revenue,Neighbourhoods,Cultural and Related Services,Open Spaces,5105667773,03.03.2021,Other Grounds Maintenance,Payment to Private Contractors,252.75,A GUSTAR T/A IVY TREE CARE
Revenue,Neighbourhoods,Cultural and Related Services,Open Spaces,5105667773,03.03.2021,Other Grounds Maintenance,Payment to Private Contractors,152.75,A GUSTAR T/A IVY TREE CARE
Revenue,Neighbourhoods,Cultural and Related Services,Open Spaces,5105667773,03.03.2021,Other Grounds Maintenance,Payment to Private Contractors,84.25,A GUSTAR T/A IVY TREE CARE
Revenue,Neighbourhoods,Cultural and Related Services,Open Spaces,5105667773,03.03.2021,Other Grounds Maintenance,Payment to Private Contractors,252.75,A GUSTAR T/A IVY TREE CARE
Revenue,Neighbourhoods,Cultural and Related Services,Open Spaces,5105667773,03.03.2021,Other Grounds Maintenance,Payment to Private Contractors,252.75,A GUSTAR T/A IVY TREE CARE
Revenue,Neighbourhoods,Cultural and Related Services,Open Spaces,5105667773,03.03.2021,Other Grounds Maintenance,Payment to Private Contractors,252.75,A GUSTAR T/A IVY TREE CARE
Revenue,Neighbourhoods,Cultural and Related Services,Open Spaces,5105667773,03.03.2021,Other Grounds Maintenance,Payment to Private Contractors,"1,708.00",A GUSTAR T/A IVY TREE CARE
Revenue,Childrens Services,Children's & Education Services,Other Education and Community Budget,5105669020,17.03.2021,Home to School SEN Transport (LA),Taxis - Contract Hire,870.00,AMAR CABS OF NEWPORT
Revenue,Childrens Services,Children's & Education Services,Other Education and Community Budget,5105669018,17.03.2021,Home to School Mainstream Transport,Taxis - Contract Hire,585.00,AMAR EXCLUSIVES
Revenue,Fire & Rescue,Fire & Rescue Services,Fire fighting and Rescue Operations,5105667722,03.03.2021,Diversity & Workforce,Operational Equipment,"2,189.00",C & J GROUND MAINTENANCE
Revenue,Childrens Services,Children's & Education Services,Management & Support Services,5105670173,31.03.2021,Special Discretionary Grants,Charges from Independent Providers,117.00,REDACTED PERSONAL DATA
Revenue,Childrens Services,Children's & Education Services,Other Education and Community Budget,5105668327,10.03.2021,Home to School SEN Transport (LA),Taxis - Contract Hire,750.00,CLARES CABS
Revenue,Resources,Central Services,Support Services,5105668477,12.03.2021,Litigation Costs,Legal Fees - Other Parties,125.00,COLLEGE CHAMBERS BARRISTERS
Revenue,Childrens Services,Children's & Education Services,Other Education and Community Budget,5105666418,12.03.2021,Workforce Development - Early Years,Training,350.00,FRAN OSMAN-NEWBURY LTD
Revenue,Childrens Services,Children's & Education Services,Other Education and Community Budget,5105668333,10.03.2021,Home to School SEN Transport (LA),Taxis - Contract Hire,600.00,HAYLES TAXIS
Revenue,Childrens Services,Children's & Education Services,Other Education and Community Budget,5105668330,10.03.2021,Home to School SEN Transport (LA),Taxis - Contract Hire,300.00,HAYLES TAXIS
Revenue,Childrens Services,Children's & Education Services,Other Education and Community Budget,5105668332,10.03.2021,Home to College Post 16 Transport,Taxis - Contract Hire,240.00,HAYLES TAXIS
Revenue,Childrens Services,Children's & Education Services,Other Education and Community Budget,5105668306,26.03.2021,Workforce Development - Early Years,Training,"1,035.00",HEMPSALL CONSULTANCIES LIMITED
Revenue,Childrens Services,Children's & Education Services,Other Education and Community Budget,5105668306,26.03.2021,Workforce Development - Early Years,Training,"1,035.00",HEMPSALL CONSULTANCIES LIMITED
Revenue,Resources,Central Services,Support Services,5105668362,17.03.2021,ICT Contracts,Computer Maintenance,330.00,REDACTED PERSONAL DATA
Revenue,Childrens Services,Adult Social Care,Social Care Activities,5105668257,10.03.2021,Adult Social Care - Workforce Development,Training,130.00,MAKING CONNECTIONS (IW) LTD
Revenue,Adult Services,Adult Social Care,Social Care Activities,5105668893,17.03.2021,Service Manager Mental Health Services,Professional Services,125.00,MAKING CONNECTIONS (IW) LTD
Revenue,Childrens Services,Children's & Education Services,Other Education and Community Budget,5105668902,17.03.2021,Home to School SEN Transport (LA),Taxis - Contract Hire,"1,287.00",MR TAXIS
Revenue,Resources,Children's & Education Services,Safeguarding Children/Young Peoples Svs,5105667789,05.03.2021,ASYE Programme,Training,750.00,MISSING SOLUTIONS LTD
Revenue,Resources,Children's & Education Services,Safeguarding Children/Young Peoples Svs,5105668326,17.03.2021,ASYE Programme,Training,750.00,MISSING SOLUTIONS LTD
Revenue,Resources,Children's & Education Services,Safeguarding Children/Young Peoples Svs,5105669967,26.03.2021,ASYE Programme,Training,750.00,MISSING SOLUTIONS LTD
Revenue,Resources,Children's & Education Services,Safeguarding Children/Young Peoples Svs,5105669968,31.03.2021,ASYE Programme,Training,500.00,MISSING SOLUTIONS LTD
Revenue,Resources,Children's & Education Services,Safeguarding Children/Young Peoples Svs,5105669968,31.03.2021,ASYE Programme,Training,500.00,MISSING SOLUTIONS LTD
Revenue,Resources,Children's & Education Services,Safeguarding Children/Young Peoples Svs,5105669968,31.03.2021,ASYE Programme,Training,500.00,MISSING SOLUTIONS LTD
Revenue,Resources,Children's & Education Services,Safeguarding Children/Young Peoples Svs,5105669968,31.03.2021,ASYE Programme,Training,500.00,MISSING SOLUTIONS LTD
Revenue,Resources,Children's & Education Services,Safeguarding Children/Young Peoples Svs,5105668004,05.03.2021,Safeguarding Training,Training,600.00,MISSING SOLUTIONS LTD
Revenue,Resources,Children's & Education Services,Safeguarding Children/Young Peoples Svs,5105667791,05.03.2021,Safeguarding Training,Training,600.00,MISSING SOLUTIONS LTD
Revenue,Resources,Children's & Education Services,Safeguarding Children/Young Peoples Svs,5105667791,05.03.2021,Safeguarding Training,Training,600.00,MISSING SOLUTIONS LTD
Revenue,Resources,Children's & Education Services,Safeguarding Children/Young Peoples Svs,5105668002,24.03.2021,Safeguarding Training,Training,450.00,MISSING SOLUTIONS LTD
Revenue,Resources,Children's & Education Services,Safeguarding Children/Young Peoples Svs,5105668002,24.03.2021,Safeguarding Training,Training,450.00,MISSING SOLUTIONS LTD
Revenue,Resources,Children's & Education Services,Safeguarding Children/Young Peoples Svs,5105668002,24.03.2021,Safeguarding Training,Training,450.00,MISSING SOLUTIONS LTD
Revenue,Neighbourhoods,Cultural and Related Services,Open Spaces,5105669449,24.03.2021,Tree Felling / Replacement,Payment to Private Contractors,"1,000.00",NIGEL EARLEY SERVICES LTD
Revenue,Neighbourhoods,Cultural and Related Services,Open Spaces,5105669072,17.03.2021,Tree Felling / Replacement,Payment to Private Contractors,350.00,NIGEL EARLEY SERVICES LTD
Revenue,Neighbourhoods,Cultural and Related Services,Open Spaces,5105669072,17.03.2021,Tree Felling / Replacement,Payment to Private Contractors,500.00,NIGEL EARLEY SERVICES LTD
Capital,Childrens Services,Capital,Capital,5105668221,10.03.2021,Schools Reorganisation,Payment to Contractors - Capital,500.00,NIGEL EARLEY SERVICES LTD
Revenue,Resources,Central Services,Support Services,5105668358,10.03.2021,Legal Services Section,Sundry Office Expenses,59.97,OD CONSULTANCY LTD
Revenue,Neighbourhoods,Cultural and Related Services,Library Service,5105668354,10.03.2021,Newport Library,Cleaning Contracts,195.00,REDACTED PERSONAL DATA
Revenue,Adult Services,Housing Services,Homelessness,5105669461,24.03.2021,Private Rented Sector Leasing Scheme,Accommodation Costs - Leaseholder Payments,695.89,REDACTED PERSONAL DATA
Revenue,Adult Services,Housing Services,Homelessness,5105669461,24.03.2021,Private Rented Sector Leasing Scheme,Accommodation Costs - Leaseholder Payments,695.89,REDACTED PERSONAL DATA
Revenue,Adult Services,Housing Services,Homelessness,5105669461,24.03.2021,Private Rented Sector Leasing Scheme,Accommodation Costs - Leaseholder Payments,695.89,REDACTED PERSONAL DATA
Revenue,Adult Services,Housing Services,Homelessness,5105669461,24.03.2021,Private Rented Sector Leasing Scheme,Accommodation Costs - Leaseholder Payments,695.89,REDACTED PERSONAL DATA
Revenue,Adult Services,Housing Services,Homelessness,5105669461,24.03.2021,Private Rented Sector Leasing Scheme,Accommodation Costs - Leaseholder Payments,695.89,REDACTED PERSONAL DATA
Revenue,Childrens Services,Children's & Education Services,Children Looked After,5105669030,19.03.2021,Adopt South Adoption Support Fund,Charges from Independent Providers,75.00,REDACTED PERSONAL DATA
Revenue,Neighbourhoods,Highways and Transport Services,"Airports, Harbours & Toll Facilities",5105668749,17.03.2021,Ferry Operation,Payment to Private Contractors,375.00,PREMIER SOLUTIONS
Revenue,Neighbourhoods,Highways and Transport Services,"Airports, Harbours & Toll Facilities",5105668749,17.03.2021,Ferry Operation,Payment to Private Contractors,134.51,PREMIER SOLUTIONS
Revenue,Neighbourhoods,Highways and Transport Services,"Airports, Harbours & Toll Facilities",5105668749,17.03.2021,Ferry Operation,Payment to Private Contractors,54.00,PREMIER SOLUTIONS
Revenue,Adult Services,Adult Social Care,Commissioning & Service Delivery,5105667796,05.03.2021,Deferred Payment Fees,Professional Services,150.00,PRINCIPAL SURVEYORS LTD
Revenue,Regeneration,Central Services,Support Services,5105668461,12.03.2021,Strategic Assets Team,Professional Services,"2,750.00",PRINCIPAL SURVEYORS LTD
Revenue,Neighbourhoods,Cultural and Related Services,Open Spaces,5105670185,31.03.2021,Other Grounds Maintenance,Payment to Private Contractors,605.00,PRO-TECH GROUP
Revenue,Neighbourhoods,Environmental & Regulatory Services,"Cemetery, Cremation & Mortuary Services",5105668115,17.03.2021,Cemeteries Administration,Professional Services,250.00,PRO-TECH GROUP
Revenue,Childrens Services,Children's & Education Services,Other Education and Community Budget,5105669933,31.03.2021,Home to School SEN Transport (LA),Taxis - Contract Hire,402.25,ROUNSEVELLS TAXIS
Revenue,Childrens Services,Children's & Education Services,Other Education and Community Budget,5105667726,31.03.2021,Home to College Post 16 Transport,Taxis - Contract Hire,"-1,155.00",ROUNSEVELLS TAXIS
Revenue,Childrens Services,Children's & Education Services,Other Education and Community Budget,5105659825,31.03.2021,Home to College Post 16 Transport,Taxis - Contract Hire,385.00,ROUNSEVELLS TAXIS
Revenue,Childrens Services,Children's & Education Services,Other Education and Community Budget,5105662479,31.03.2021,Home to College Post 16 Transport,Taxis - Contract Hire,420.00,ROUNSEVELLS TAXIS
Revenue,Childrens Services,Children's & Education Services,Family Support Services,5105670224,31.03.2021,Short Breaks,Grants to External Bodies,500.00,SCALLYWAGS FUN CLUB
Revenue,Childrens Services,Children's & Education Services,Family Support Services,5105670231,31.03.2021,Short Breaks,Charges from Independent Providers,216.00,SCALLYWAGS FUN CLUB
Revenue,Regeneration,Planning services,Economic Development,5105669538,24.03.2021,Director of Regeneration,Consultants Fees,"17,600.00",SOUTH ISLAND ESTATES LTD
Revenue,Childrens Services,Children's & Education Services,Management & Support Services,5105667765,10.03.2021,Special Discretionary Grants,Charges from Independent Providers,720.00,REDACTED PERSONAL DATA
Revenue,Childrens Services,Children's & Education Services,Management & Support Services,5105667768,10.03.2021,Special Discretionary Grants,Charges from Independent Providers,720.00,REDACTED PERSONAL DATA
Revenue,Childrens Services,Children's & Education Services,Management & Support Services,5105667769,10.03.2021,Special Discretionary Grants,Charges from Independent Providers,720.00,REDACTED PERSONAL DATA
Revenue,Childrens Services,Children's & Education Services,Management & Support Services,5105667771,10.03.2021,Special Discretionary Grants,Charges from Independent Providers,720.00,REDACTED PERSONAL DATA
Revenue,Childrens Services,Children's & Education Services,Management & Support Services,5105667743,10.03.2021,Special Discretionary Grants,Charges from Independent Providers,360.00,REDACTED PERSONAL DATA
Revenue,Childrens Services,Children's & Education Services,Family Support Services,5105669046,19.03.2021,Short Breaks,Charges from Independent Providers,182.00,THE CROSSLEY COMPANY (IOW) LTD
Revenue,Childrens Services,Children's & Education Services,Family Support Services,5105669047,17.03.2021,Short Breaks,Charges from Independent Providers,313.00,THE CROSSLEY COMPANY (IOW) LTD
Revenue,Childrens Services,Children's & Education Services,Other Education and Community Budget,5105668336,10.03.2021,Home to School SEN Transport (LA),Taxis - Contract Hire,"1,050.00",THOMPSON TAXI
Revenue,Childrens Services,Children's & Education Services,Other Education and Community Budget,5105668337,10.03.2021,Home to School Mainstream Transport,Taxis - Contract Hire,"1,050.00",THOMPSON TAXI
Revenue,Childrens Services,Children's & Education Services,Other Education and Community Budget,5105669356,19.03.2021,Workforce Development - Early Years,Training,600.00,REDACTED PERSONAL DATA
Revenue,Childrens Services,Children's & Education Services,Other Education and Community Budget,5105670057,31.03.2021,Home to College Post 16 Transport,Taxis - Contract Hire,150.00,TJ CAR SERVICES LTD
Revenue,Adult Services,Adult Social Care,Social Support - Social Isolation/Other,5105669605,26.03.2021,Social Isolation/Other Other ST Support,Professional Services,637.00,TOP MOPS LIMITED
Revenue,Adult Services,Adult Social Care,Social Support - Social Isolation/Other,5105669441,19.03.2021,Social Isolation/Other Other ST Support,Professional Services,882.00,TOP MOPS LIMITED
Revenue,Adult Services,Adult Social Care,Social Support - Social Isolation/Other,5105669088,17.03.2021,Social Isolation/Other Other ST Support,Professional Services,-882.00,TOP MOPS LIMITED
Revenue,Adult Services,Adult Social Care,Social Support - Social Isolation/Other,5105668232,17.03.2021,Social Isolation/Other Other ST Support,Professional Services,882.00,TOP MOPS LIMITED
Revenue,Adult Services,Adult Social Care,Social Support - Social Isolation/Other,5105668239,19.03.2021,Social Isolation/Other Other ST Support,Professional Services,485.00,TOP MOPS LIMITED
Revenue,Regeneration,Planning services,Economic Development,5105669012,24.03.2021,Victoria Quays,Cleaning Contracts,981.45,TOP MOPS LIMITED
Revenue,Regeneration,Planning services,Economic Development,5105666732,12.03.2021,Victoria Quays,Cleaning Contracts,981.45,TOP MOPS LIMITED
Revenue,Childrens Services,Children's & Education Services,Special Schools & Alternative Provision,5105668227,10.03.2021,Island Learning Centre,Consumable Cleaning Materials,502.92,TOP MOPS LIMITED
Revenue,Childrens Services,Children's & Education Services,Other Education and Community Budget,5105668028,05.03.2021,Barton Primary Sshool Disposal,Security of Buildings,237.00,VECTIS GROUP SECURITY LTD
Revenue,Regeneration,Central Services,Support Services,5105669594,24.03.2021,Non-operational buildings,Security of Buildings,60.00,VECTIS GROUP SECURITY LTD
Revenue,Neighbourhoods,Cultural and Related Services,Recreation and Sport,5105668353,10.03.2021,Medina Leisure Centre,Payment to Private Contractors,32.00,VECTIS GROUP SECURITY LTD
Revenue,Regeneration,Central Services,Support Services,5105667413,05.03.2021,Elmdon (The Laurels),Security of Buildings,75.00,VECTIS GROUP SECURITY LTD
Revenue,Childrens Services,Children's & Education Services,Other Education and Community Budget,5105669013,17.03.2021,Weston Academy Closure,Professional Services,32.50,VECTIS GROUP SECURITY LTD
Revenue,Childrens Services,Children's & Education Services,Other Education and Community Budget,5105668033,05.03.2021,Weston Academy Closure,Security of Buildings,212.00,VECTIS GROUP SECURITY LTD
Revenue,Childrens Services,Children's & Education Services,Other Education and Community Budget,5105669579,24.03.2021,Ex Studio School Grange Rd East Cowes,Security of Buildings,244.50,VECTIS GROUP SECURITY LTD
Revenue,Childrens Services,Children's & Education Services,Other Education and Community Budget,5105668034,05.03.2021,Ex Studio School Grange Rd East Cowes,Security of Buildings,147.00,VECTIS GROUP SECURITY LTD
Revenue,Regeneration,Central Services,Support Services,5105669573,26.03.2021,"Westridge, Ryde",Security of Buildings,92.00,VECTIS GROUP SECURITY LTD
Revenue,Childrens Services,Children's & Education Services,Special Schools & Alternative Provision,5105668350,10.03.2021,Island Learning Centre,Security of Buildings,12.00,VECTIS GROUP SECURITY LTD
Revenue,Childrens Services,Children's & Education Services,Support Services,5105668351,10.03.2021,Grafton Street Sandown (ex Sandown Yth),Security of Buildings,72.00,VECTIS GROUP SECURITY LTD
Revenue,Neighbourhoods,Cultural and Related Services,Recreation and Sport,5105668356,10.03.2021,Westridge Squash Courts,Payment to Private Contractors,12.00,VECTIS GROUP SECURITY LTD
Revenue,Childrens Services,Children's & Education Services,Other Education and Community Budget,5105668031,05.03.2021,Broadlea PS Berry Hill site (was 55909),Security of Buildings,30.00,VECTIS GROUP SECURITY LTD
Revenue,Neighbourhoods,Cultural and Related Services,Recreation and Sport,5105668380,10.03.2021,The Heights,Payment to Private Contractors,32.00,VECTIS GROUP SECURITY LTD
Revenue,Childrens Services,Children's & Education Services,Other Education and Community Budget,5105668381,10.03.2021,Home to School SEN Transport (LA),Taxis - Contract Hire,"1,650.00",W W CARS OF SEAVIEW
Revenue,Childrens Services,Children's & Education Services,Other Education and Community Budget,5105668384,10.03.2021,Home to School Mainstream Transport,Taxis - Contract Hire,945.00,W W CARS OF SEAVIEW
Revenue,Childrens Services,Children's & Education Services,Other Education and Community Budget,5105668315,10.03.2021,Home to College Post 16 Transport,Taxis - Contract Hire,435.60,HAVEN TAXIS & PRIVATE HIRE
Revenue,Childrens Services,Children's & Education Services,Other Education and Community Budget,5105668314,10.03.2021,Home to School Mainstream Transport,Taxis - Contract Hire,374.25,HAVEN TAXIS & PRIVATE HIRE
Revenue,Adult Services,Adult Social Care,Central Codes (to be reallocated),5105668422,10.03.2021,Gouldings Resource Centre,Maintenance of Operational Equipment,191.29,WIGHT HEATING LTD
Revenue,Adult Services,Adult Social Care,Central Codes (to be reallocated),5105667611,03.03.2021,Gouldings Resource Centre,Property Services - Day to day Maintenance,115.00,WIGHT HEATING LTD
Revenue,Childrens Services,Children's & Education Services,Other Education and Community Budget,5105670260,31.03.2021,Learning & Development Running Costs,Minor Works,260.90,WIGHT HEATING LTD
Revenue,Regeneration,Central Services,Support Services,5105670059,31.03.2021,Non-operational buildings,Property Services - Day to day Maintenance,45.00,WIGHT HEATING LTD
Revenue,Fire & Rescue,Fire & Rescue Services,Fire fighting and Rescue Operations,5105668966,17.03.2021,Business Support  - Fire,Property Services - Day to day Maintenance,172.86,WIGHT HEATING LTD
Revenue,Fire & Rescue,Fire & Rescue Services,Fire fighting and Rescue Operations,5105667609,03.03.2021,Business Support  - Fire,Property Services - Day to day Maintenance,115.00,WIGHT HEATING LTD
Revenue,Fire & Rescue,Fire & Rescue Services,Fire fighting and Rescue Operations,5105667529,03.03.2021,Business Support  - Fire,Property Services - Planned Maintenance,684.93,WIGHT HEATING LTD
Revenue,Fire & Rescue,Fire & Rescue Services,Fire fighting and Rescue Operations,5105668408,10.03.2021,Business Support  - Fire,Property Services - Day to day Maintenance,"4,784.11",WIGHT HEATING LTD
Revenue,Fire & Rescue,Fire & Rescue Services,Fire fighting and Rescue Operations,5105668421,10.03.2021,Business Support  - Fire,Property Services - Day to day Maintenance,80.00,WIGHT HEATING LTD
Revenue,Fire & Rescue,Fire & Rescue Services,Fire fighting and Rescue Operations,5105668412,10.03.2021,Business Support  - Fire,Property Services - Day to day Maintenance,319.79,WIGHT HEATING LTD
Revenue,Fire & Rescue,Fire & Rescue Services,Fire fighting and Rescue Operations,5105670269,31.03.2021,Business Support  - Fire,Property Services - Planned Maintenance,297.50,WIGHT HEATING LTD
Revenue,Fire & Rescue,Fire & Rescue Services,Fire fighting and Rescue Operations,5105669935,26.03.2021,Business Support  - Fire,Property Services - Day to day Maintenance,150.00,WIGHT HEATING LTD
Revenue,Fire & Rescue,Fire & Rescue Services,Fire fighting and Rescue Operations,5105670061,31.03.2021,Business Support  - Fire,Property Services - Planned Maintenance,171.72,WIGHT HEATING LTD
Revenue,Fire & Rescue,Fire & Rescue Services,Fire fighting and Rescue Operations,5105670064,31.03.2021,Business Support  - Fire,Property Services - Planned Maintenance,115.00,WIGHT HEATING LTD
Revenue,Adult Services,Adult Social Care,Learning Disab Supp (to be reallocated),5105670264,31.03.2021,Plean Dene,Minor Works,241.24,WIGHT HEATING LTD
Revenue,Childrens Services,Children's & Education Services,Children Looked After,5105668415,10.03.2021,Beaulieu House,Minor Works,150.00,WIGHT HEATING LTD
Revenue,Regeneration,Central Services,Support Services,5105667612,03.03.2021,"Westridge, Ryde",Property Services - Day to day Maintenance,457.50,WIGHT HEATING LTD
Revenue,Neighbourhoods,Cultural and Related Services,Library Service,5105670058,31.03.2021,Sandown Library,Property Services - Day to day Maintenance,456.55,WIGHT HEATING LTD
Revenue,Childrens Services,Children's & Education Services,Sure Start Children's Centres,5105668414,10.03.2021,Family Centres Maintenance,Minor Works,297.14,WIGHT HEATING LTD
Revenue,Neighbourhoods,Environmental & Regulatory Services,"Cemetery, Cremation & Mortuary Services",5105667610,03.03.2021,Crematorium,Property Services - Day to day Maintenance,191.71,WIGHT HEATING LTD
Revenue,Neighbourhoods,Cultural and Related Services,Recreation and Sport,5105668965,17.03.2021,The Heights,Property Services - Day to day Maintenance,235.69,WIGHT HEATING LTD
Revenue,Regeneration,Central Services,Support Services,5105668967,17.03.2021,"Civic Centre,Sandown",Property Services - Day to day Maintenance,"1,466.94",WIGHT HEATING LTD
Revenue,Regeneration,Planning services,Economic Development,5105669102,17.03.2021,Branstone Farm Project,Consultants Fees,"2,250.00",24 ACOUSTICS LTD
Revenue,Childrens Services,Children's & Education Services,Special Schools & Alternative Provision,5105668695,17.03.2021,Island Learning Centre,Catering Equipment,54.09,2468 LTD
Revenue,Childrens Services,Children's & Education Services,Special Schools & Alternative Provision,5105668695,17.03.2021,Island Learning Centre,Catering Equipment,3.24,2468 LTD
Revenue,Adult Services,Housing Services,Homelessness,5105669474,24.03.2021,Private Rented Sector Leasing Scheme,Accommodation Costs - Leaseholder Payments,866.67,2K PROPERTY
Revenue,Childrens Services,Children's & Education Services,Children Looked After,5105667990,05.03.2021,In-house Fostering,Support Children,50.00,REDACTED PERSONAL DATA
Revenue,Childrens Services,Children's & Education Services,Children Looked After,5105669744,26.03.2021,Special Guardianship Order Costs,Support Children,207.73,REDACTED PERSONAL DATA
Revenue,Childrens Services,Children's & Education Services,Children Looked After,5105667833,05.03.2021,Special Guardianship Order Costs,Support Children,207.73,REDACTED PERSONAL DATA
Revenue,Childrens Services,Children's & Education Services,Children Looked After,5105669202,19.03.2021,Special Guardianship Order Costs,Support Children,207.73,REDACTED PERSONAL DATA
Revenue,Childrens Services,Children's & Education Services,Children Looked After,5105668507,12.03.2021,Special Guardianship Order Costs,Support Children,207.73,REDACTED PERSONAL DATA
Revenue,Childrens Services,Children's & Education Services,Children Looked After,5105669202,19.03.2021,In-house Fostering,Boarding Out Allowances,286.47,REDACTED PERSONAL DATA
Revenue,Childrens Services,Children's & Education Services,Children Looked After,5105669202,19.03.2021,In-house Fostering,Boarding Out Allowances,286.47,REDACTED PERSONAL DATA
Revenue,Childrens Services,Children's & Education Services,Children Looked After,5105669744,26.03.2021,In-house Fostering,Boarding Out Allowances,286.47,REDACTED PERSONAL DATA
Revenue,Childrens Services,Children's & Education Services,Children Looked After,5105669744,26.03.2021,In-house Fostering,Boarding Out Allowances,286.47,REDACTED PERSONAL DATA
Revenue,Childrens Services,Children's & Education Services,Children Looked After,5105667833,05.03.2021,In-house Fostering,Boarding Out Allowances,286.47,REDACTED PERSONAL DATA
Revenue,Childrens Services,Children's & Education Services,Children Looked After,5105667833,05.03.2021,In-house Fostering,Boarding Out Allowances,286.47,REDACTED PERSONAL DATA
Revenue,Childrens Services,Children's & Education Services,Children Looked After,5105668507,12.03.2021,In-house Fostering,Boarding Out Allowances,286.47,REDACTED PERSONAL DATA
Revenue,Childrens Services,Children's & Education Services,Children Looked After,5105668507,12.03.2021,In-house Fostering,Boarding Out Allowances,286.47,REDACTED PERSONAL DATA
Revenue,Adult Services,Housing Services,Homelessness,5105669471,24.03.2021,Private Rented Sector Leasing Scheme,Accommodation Costs - Leaseholder Payments,510.25,REDACTED PERSONAL DATA
Revenue,Adult Services,Housing Services,Homelessness,5105669471,24.03.2021,Private Rented Sector Leasing Scheme,Accommodation Costs - Leaseholder Payments,510.25,REDACTED PERSONAL DATA
Revenue,Adult Services,Housing Services,Homelessness,5105669471,24.03.2021,Private Rented Sector Leasing Scheme,Accommodation Costs - Leaseholder Payments,510.25,REDACTED PERSONAL DATA
Revenue,Adult Services,Housing Services,Homelessness,5105669471,24.03.2021,Private Rented Sector Leasing Scheme,Accommodation Costs - Leaseholder Payments,510.25,REDACTED PERSONAL DATA
Revenue,Adult Services,Housing Services,Homelessness,5105669471,24.03.2021,Private Rented Sector Leasing Scheme,Accommodation Costs - Leaseholder Payments,510.25,REDACTED PERSONAL DATA
Revenue,Adult Services,Housing Services,Homelessness,5105669471,24.03.2021,Private Rented Sector Leasing Scheme,Accommodation Costs - Leaseholder Payments,510.25,REDACTED PERSONAL DATA
Revenue,Adult Services,Housing Services,Homelessness,5105669471,24.03.2021,Private Rented Sector Leasing Scheme,Accommodation Costs - Leaseholder Payments,510.25,REDACTED PERSONAL DATA
Revenue,Childrens Services,Children's & Education Services,Children Looked After,5105669733,26.03.2021,Adoption Costs,Support Children,225.83,REDACTED PERSONAL DATA
Revenue,Childrens Services,Children's & Education Services,Children Looked After,5105668497,12.03.2021,Adoption Costs,Support Children,225.83,REDACTED PERSONAL DATA
Revenue,Childrens Services,Children's & Education Services,Children Looked After,5105667823,05.03.2021,Adoption Costs,Support Children,225.83,REDACTED PERSONAL DATA
Revenue,Childrens Services,Children's & Education Services,Children Looked After,5105669191,19.03.2021,Adoption Costs,Support Children,225.83,REDACTED PERSONAL DATA
Revenue,Regeneration,Highways and Transport Services,Transport Planning Policy and Strategy,5105669142,19.03.2021,Restoring your Railway,Payment to Private Contractors,"6,200.00",A TO THERE SOLUTIONS LTD
Revenue,Regeneration,Highways and Transport Services,Transport Planning Policy and Strategy,5105669144,19.03.2021,Sustainable Transport,Consultants Fees,"2,900.00",A TO THERE SOLUTIONS LTD
Revenue,Regeneration,Highways and Transport Services,Transport Planning Policy and Strategy,5105669146,19.03.2021,Sustainable Transport,Consultants Fees,"2,750.00",A TO THERE SOLUTIONS LTD
Revenue,Regeneration,Highways and Transport Services,Transport Planning Policy and Strategy,5105669147,19.03.2021,Sustainable Transport,Consultants Fees,"2,700.00",A TO THERE SOLUTIONS LTD
Revenue,Regeneration,Highways and Transport Services,Transport Planning Policy and Strategy,5105669148,19.03.2021,Sustainable Transport,Consultants Fees,"3,100.00",A TO THERE SOLUTIONS LTD
Revenue,Regeneration,Highways and Transport Services,Transport Planning Policy and Strategy,5105669149,19.03.2021,Sustainable Transport,Consultants Fees,"2,800.00",A TO THERE SOLUTIONS LTD
Revenue,Regeneration,Highways and Transport Services,Transport Planning Policy and Strategy,5105669150,19.03.2021,Sustainable Transport,Consultants Fees,"2,950.00",A TO THERE SOLUTIONS LTD
Revenue,Adult Services,Adult Social Care,Support - Memory /Cognition-older people (65+),5105668850,17.03.2021,Memory & Cognition Residential 65+,Charges from Independent Providers,"1,142.90",ABBERDALE LIMITED
Revenue,Adult Services,Adult Social Care,Support - Memory /Cognition-older people (65+),5105668850,17.03.2021,Memory & Cognition Residential 65+,Charges from Independent Providers,"2,057.22",ABBERDALE LIMITED
Revenue,Adult Services,Adult Social Care,Infection Control Fund,5105670070,31.03.2021,ASC Workforce Capacity Fund,ASC Workforce Capacity,"4,080.00",ABINGDON LODGE LIMITED
Revenue,Resources,Central Services,Support Services,5105669017,17.03.2021,ICT Contracts,Computer Maintenance,225.35,ABSOFT LIMITED
Revenue,Resources,Central Services,Support Services,5400002947,31.03.2021,ICT Contracts,Computer Maintenance,7.32,ABSOFT LIMITED
Revenue,Adult Services,Adult Social Care,Learning Disab Supp (to be reallocated),5105668851,17.03.2021,"41 Newport Road, Cowes",Charges from Independent Providers,"2,030.00",TRACSCARE WELLCARE LIFESTYLES
Revenue,Adult Services,Adult Social Care,Learning Disab Supp (to be reallocated),5105668851,17.03.2021,"41 Newport Road, Cowes",Charges from Independent Providers,782.40,TRACSCARE WELLCARE LIFESTYLES
Revenue,Adult Services,Adult Social Care,Learning Disab Supp (to be reallocated),5105669458,24.03.2021,"41 Newport Road, Cowes",Charges from Independent Providers,"5,684.00",TRACSCARE WELLCARE LIFESTYLES
Revenue,Adult Services,Adult Social Care,Learning Disab Supp (to be reallocated),5105669458,24.03.2021,"41 Newport Road, Cowes",Charges from Independent Providers,"2,190.72",TRACSCARE WELLCARE LIFESTYLES
Revenue,Adult Services,Adult Social Care,Learning Disab Supp (to be reallocated),5105668851,17.03.2021,"17 Newport Road, Ventnor",Charges from Independent Providers,"1,626.10",TRACSCARE WELLCARE LIFESTYLES
Revenue,Adult Services,Adult Social Care,Learning Disab Supp (to be reallocated),5105668851,17.03.2021,"17 Newport Road, Ventnor",Charges from Independent Providers,782.40,TRACSCARE WELLCARE LIFESTYLES
Revenue,Adult Services,Adult Social Care,Learning Disab Supp (to be reallocated),5105669458,24.03.2021,"17 Newport Road, Ventnor",Charges from Independent Providers,"4,553.00",TRACSCARE WELLCARE LIFESTYLES
Revenue,Adult Services,Adult Social Care,Learning Disab Supp (to be reallocated),5105669458,24.03.2021,"17 Newport Road, Ventnor",Charges from Independent Providers,"2,190.72",TRACSCARE WELLCARE LIFESTYLES
Revenue,Adult Services,Adult Social Care,Learning Disab Supp (to be reallocated),5105668851,17.03.2021,Westhorpe Supported Living,Charges from Independent Providers,"2,030.00",TRACSCARE WELLCARE LIFESTYLES
Revenue,Adult Services,Adult Social Care,Learning Disab Supp (to be reallocated),5105668851,17.03.2021,Westhorpe Supported Living,Charges from Independent Providers,"1,450.00",TRACSCARE WELLCARE LIFESTYLES
Revenue,Adult Services,Adult Social Care,Learning Disab Supp (to be reallocated),5105668851,17.03.2021,Westhorpe Supported Living,Charges from Independent Providers,725.00,TRACSCARE WELLCARE LIFESTYLES
Revenue,Adult Services,Adult Social Care,Learning Disab Supp (to be reallocated),5105669458,24.03.2021,Westhorpe Supported Living,Charges from Independent Providers,"5,684.00",TRACSCARE WELLCARE LIFESTYLES
Revenue,Adult Services,Adult Social Care,Learning Disab Supp (to be reallocated),5105669458,24.03.2021,Westhorpe Supported Living,Charges from Independent Providers,"4,060.00",TRACSCARE WELLCARE LIFESTYLES
Revenue,Adult Services,Adult Social Care,Learning Disab Supp (to be reallocated),5105669458,24.03.2021,Westhorpe Supported Living,Charges from Independent Providers,"2,030.00",TRACSCARE WELLCARE LIFESTYLES
Revenue,Adult Services,Adult Social Care,Learning Disab Supp (to be reallocated),5105668851,17.03.2021,"Greengates, Ryde",Charges from Independent Providers,"2,030.00",TRACSCARE WELLCARE LIFESTYLES
Revenue,Adult Services,Adult Social Care,Learning Disab Supp (to be reallocated),5105668851,17.03.2021,"Greengates, Ryde",Charges from Independent Providers,782.40,TRACSCARE WELLCARE LIFESTYLES
Revenue,Adult Services,Adult Social Care,Learning Disab Supp (to be reallocated),5105669458,24.03.2021,"Greengates, Ryde",Charges from Independent Providers,"5,684.00",TRACSCARE WELLCARE LIFESTYLES
Revenue,Adult Services,Adult Social Care,Learning Disab Supp (to be reallocated),5105669458,24.03.2021,"Greengates, Ryde",Charges from Independent Providers,"2,190.72",TRACSCARE WELLCARE LIFESTYLES
Revenue,Adult Services,Adult Social Care,Long Term Support,5105668851,17.03.2021,Seagulls,Charges from Independent Providers,"9,623.30",TRACSCARE WELLCARE LIFESTYLES
Revenue,Adult Services,Adult Social Care,Long Term Support,5105669458,24.03.2021,Seagulls,Charges from Independent Providers,"26,945.12",TRACSCARE WELLCARE LIFESTYLES
Revenue,Adult Services,Adult Social Care,Learning Disab Supp (to be reallocated),5105668851,17.03.2021,"Heath Road, Lake",Charges from Independent Providers,"1,626.10",TRACSCARE WELLCARE LIFESTYLES
Revenue,Adult Services,Adult Social Care,Learning Disab Supp (to be reallocated),5105668851,17.03.2021,"Heath Road, Lake",Charges from Independent Providers,782.40,TRACSCARE WELLCARE LIFESTYLES
Revenue,Adult Services,Adult Social Care,Learning Disab Supp (to be reallocated),5105669458,24.03.2021,"Heath Road, Lake",Charges from Independent Providers,"4,553.00",TRACSCARE WELLCARE LIFESTYLES
Revenue,Adult Services,Adult Social Care,Learning Disab Supp (to be reallocated),5105669458,24.03.2021,"Heath Road, Lake",Charges from Independent Providers,"2,190.72",TRACSCARE WELLCARE LIFESTYLES
Revenue,Adult Services,Adult Social Care,Learning Disab Supp (to be reallocated),5105668851,17.03.2021,"Winton Street, Ryde",Charges from Independent Providers,"2,030.00",TRACSCARE WELLCARE LIFESTYLES
Revenue,Adult Services,Adult Social Care,Learning Disab Supp (to be reallocated),5105668851,17.03.2021,"Winton Street, Ryde",Charges from Independent Providers,782.40,TRACSCARE WELLCARE LIFESTYLES
Revenue,Adult Services,Adult Social Care,Learning Disab Supp (to be reallocated),5105669458,24.03.2021,"Winton Street, Ryde",Charges from Independent Providers,"5,684.00",TRACSCARE WELLCARE LIFESTYLES
Revenue,Adult Services,Adult Social Care,Learning Disab Supp (to be reallocated),5105669458,24.03.2021,"Winton Street, Ryde",Charges from Independent Providers,"2,190.72",TRACSCARE WELLCARE LIFESTYLES
Revenue,Adult Services,Adult Social Care,Long Term Support,5105668851,17.03.2021,40 Venner Avenue,Charges from Independent Providers,"10,046.30",TRACSCARE WELLCARE LIFESTYLES
Revenue,Adult Services,Adult Social Care,Long Term Support,5105669458,24.03.2021,40 Venner Avenue,Charges from Independent Providers,"28,129.64",TRACSCARE WELLCARE LIFESTYLES
Revenue,Adult Services,Adult Social Care,Assistive Equipment & Technology,5105668742,17.03.2021,Community Equipment Store,Operational Equipment,264.00,ACCORA  LIMITED
Revenue,Adult Services,Adult Social Care,Assistive Equipment & Technology,5105667208,03.03.2021,Community Equipment Store,Operational Equipment,665.00,ACCORA  LIMITED
Revenue,Resources,Children's & Education Services,Other Education and Community Budget,5105667711,02.03.2021,Specialist Cross-Council Training,Training,-389.00,ACT NOW TRAINING LTD
Revenue,Fire & Rescue,Fire & Rescue Services,Fire fighting and Rescue Operations,5105669435,31.03.2021,Diversity & Workforce,Training,"1,220.00",ACTIVE LEARNING AND DEVELOPMENT LTD
Revenue,Childrens Services,Children's & Education Services,Management & Support Services,5105669115,19.03.2021,Education Out of School,Professional Services,555.00,A-DAY CONSULTANTS LTD
Revenue,Childrens Services,Children's & Education Services,Management & Support Services,5105669907,31.03.2021,Education Out of School,Professional Services,555.00,A-DAY CONSULTANTS LTD
Revenue,Childrens Services,Children's & Education Services,Management & Support Services,5105667691,05.03.2021,Education Out of School,Professional Services,555.00,A-DAY CONSULTANTS LTD
Revenue,Childrens Services,Children's & Education Services,Special Schools & Alternative Provision,5105668895,17.03.2021,Island Learning Centre,Agency staff,555.00,A-DAY CONSULTANTS LTD
Revenue,Resources,Central Services,Support Services,5105668159,10.03.2021,County Hall Central Mail Room,Printing Costs,725.00,ADGIFTDISCOUNTS LTD
Revenue,Childrens Services,Children's & Education Services,Other Education and Community Budget,5105669123,31.03.2021,Home to School SEN Transport (LA),Taxis - Contract Hire,250.00,REDACTED PERSONAL DATA
Revenue,Childrens Services,Children's & Education Services,Other Education and Community Budget,5105669125,31.03.2021,Home to School SEN Transport (LA),Taxis - Contract Hire,405.00,REDACTED PERSONAL DATA
Revenue,Childrens Services,Children's & Education Services,Other Education and Community Budget,5105669121,31.03.2021,Home to College Post 16 Transport,Taxis - Contract Hire,360.00,REDACTED PERSONAL DATA
Revenue,Childrens Services,Children's & Education Services,Other Education and Community Budget,5105669122,26.03.2021,Home to School Mainstream Transport,Taxis - Contract Hire,"1,200.00",REDACTED PERSONAL DATA
Revenue,Childrens Services,Children's & Education Services,Other Education and Community Budget,5105669124,19.03.2021,Home to School Mainstream Transport,Taxis - Contract Hire,900.00,REDACTED PERSONAL DATA
Revenue,Childrens Services,Children's & Education Services,Other Education and Community Budget,5105669126,31.03.2021,Home to School Mainstream Transport,Taxis - Contract Hire,450.00,REDACTED PERSONAL DATA
Revenue,Neighbourhoods,Environmental & Regulatory Services,"Cemetery, Cremation & Mortuary Services",5105667805,12.03.2021,Cemeteries-Ryde,Security of Buildings,314.62,ADT FIRE AND SECURITY PLC
Revenue,Chief Executive,Central Services,Central Services to the Public,5105667636,03.03.2021,Vaccination Programme Hub Site,Security of Buildings,"8,340.11",ADT FIRE AND SECURITY PLC
Revenue,Regeneration,Central Services,Support Services,5105668153,10.03.2021,"Mariners Way, Cowes",Security of Buildings,164.00,ADT FIRE AND SECURITY PLC
Revenue,Childrens Services,Children's & Education Services,Other Education and Community Budget,5105668355,10.03.2021,Ex Studio School Grange Rd East Cowes,Payment to Private Contractors,969.76,ADT FIRE AND SECURITY PLC
Revenue,Childrens Services,Children's & Education Services,Other Education and Community Budget,5105668256,10.03.2021,Ex Studio School Grange Rd East Cowes,Payment to Private Contractors,"1,126.60",ADT FIRE AND SECURITY PLC
Revenue,Regeneration,Central Services,Support Services,5105668720,17.03.2021,"Guildhall,Newport",Security of Buildings,64.00,ADT FIRE AND SECURITY PLC
Revenue,Regeneration,Central Services,Support Services,5105667663,03.03.2021,"Westridge, Ryde",Security of Buildings,"1,034.06",ADT FIRE AND SECURITY PLC
Revenue,Childrens Services,Children's & Education Services,Management & Support Services,5105668154,10.03.2021,Specialist Service Business Admin,Security of Buildings,319.83,ADT FIRE AND SECURITY PLC
Revenue,Neighbourhoods,Cultural and Related Services,Culture and Heritage,5105667567,03.03.2021,Museums and Schools Arts Council Grant,Operational Equipment,"2,529.07",ADVANCED MOULDS LTD
Revenue,Adult Services,Adult Social Care,Infection Control Fund,5105670005,26.03.2021,ASC Workforce Capacity Fund,ASC Workforce Capacity,"5,904.00",AGE CONCERN T/A AGE UK
Revenue,Adult Services,Adult Social Care,Commissioning & Service Delivery,5105668026,10.03.2021,Group Manager Leaning Disability Homes,Publications,64.94,AGORA BUSINESS PUBLICATIONS LLP
Revenue,Childrens Services,Children's & Education Services,Children Looked After,5105669890,26.03.2021,Children placed with Family&Friends,Boarding Out Allowances,332.69,REDACTED PERSONAL DATA
Revenue,Childrens Services,Children's & Education Services,Children Looked After,5105667985,05.03.2021,Children placed with Family&Friends,Boarding Out Allowances,332.69,REDACTED PERSONAL DATA
Revenue,Childrens Services,Children's & Education Services,Children Looked After,5105668656,12.03.2021,Children placed with Family&Friends,Boarding Out Allowances,332.69,REDACTED PERSONAL DATA
Revenue,Childrens Services,Children's & Education Services,Children Looked After,5105669349,19.03.2021,Children placed with Family&Friends,Boarding Out Allowances,332.69,REDACTED PERSONAL DATA
Revenue,Adult Services,Adult Social Care,Learning Disability Suppt-adults (18-64),5105668848,17.03.2021,Learning Disability Residential 18-64,Charges from Independent Providers,"3,122.50",AITCH CARE HOMES (LONDON) LTD
Revenue,Adult Services,Adult Social Care,Learning Disability Suppt-adults (18-64),5105668848,17.03.2021,Learning Disability Residential 18-64,Charges from Independent Providers,"5,620.50",AITCH CARE HOMES (LONDON) LTD
Revenue,Adult Services,Adult Social Care,Mental Health Support - adults (18-64),5105668954,17.03.2021,Mental Health Residential 18-64,Charges from Independent Providers,"4,572.90",AITCH CARE HOMES (LONDON) LTD
Revenue,Resources,Adult Social Care,Physical Support (to be reallocated),5105669621,24.03.2021,Blue Badge Admin Team Shared Services,Printing Costs,637.36,ALLIED PUBLICITY SERVICES LTD
Revenue,Resources,Highways and Transport Services,Public Transport,5105668755,17.03.2021,Transport Fleet Administration,Vehicle Fuel Costs,"10,055.90",ALLSTAR BUSINESS SOLUTIONS LTD
Revenue,Childrens Services,Children's & Education Services,Family Support Services,5105669584,24.03.2021,S17 Child Protection,Transport of Clients,40.00,ALPHA (IOW) LTD
Revenue,Childrens Services,Children's & Education Services,Other Education and Community Budget,5105668205,12.03.2021,Home to School SEN Transport (LA),Taxis - Contract Hire,750.00,ALPHA (IOW) LTD
Revenue,Childrens Services,Children's & Education Services,Other Education and Community Budget,5105668205,12.03.2021,Home to School SEN Transport (LA),Taxis - Contract Hire,70.00,ALPHA (IOW) LTD
Revenue,Childrens Services,Children's & Education Services,Other Education and Community Budget,5105668208,17.03.2021,Home to School SEN Transport (LA),Taxis - Contract Hire,36.00,ALPHA (IOW) LTD
Revenue,Childrens Services,Children's & Education Services,Other Education and Community Budget,5105668208,17.03.2021,Home to School SEN Transport (LA),Taxis - Contract Hire,"1,152.00",ALPHA (IOW) LTD
Revenue,Childrens Services,Children's & Education Services,Other Education and Community Budget,5105668208,17.03.2021,Home to School SEN Transport (LA),Taxis - Contract Hire,540.00,ALPHA (IOW) LTD
Revenue,Childrens Services,Children's & Education Services,Other Education and Community Budget,5105668208,17.03.2021,Home to School SEN Transport (LA),Taxis - Contract Hire,40.00,ALPHA (IOW) LTD
Revenue,Childrens Services,Children's & Education Services,Other Education and Community Budget,5105668205,12.03.2021,Home to School SEN Transport (LA),Taxis - Contract Hire,675.00,ALPHA (IOW) LTD
Revenue,Childrens Services,Children's & Education Services,Other Education and Community Budget,5105668205,12.03.2021,Home to School SEN Transport (LA),Taxis - Contract Hire,600.00,ALPHA (IOW) LTD
Revenue,Childrens Services,Children's & Education Services,Other Education and Community Budget,5105668208,17.03.2021,Home to School SEN Transport (LA),Taxis - Contract Hire,"1,848.00",ALPHA (IOW) LTD
Revenue,Childrens Services,Children's & Education Services,Other Education and Community Budget,5105668208,17.03.2021,Home to School SEN Transport (LA),Taxis - Contract Hire,112.00,ALPHA (IOW) LTD
Revenue,Childrens Services,Children's & Education Services,Other Education and Community Budget,5105668208,17.03.2021,Home to School SEN Transport (LA),Taxis - Contract Hire,600.00,ALPHA (IOW) LTD
Revenue,Childrens Services,Children's & Education Services,Other Education and Community Budget,5105668205,12.03.2021,Home to School SEN Transport (LA),Taxis - Contract Hire,"1,050.00",ALPHA (IOW) LTD
Revenue,Childrens Services,Children's & Education Services,Other Education and Community Budget,5105668205,12.03.2021,Home to School SEN Transport (LA),Taxis - Contract Hire,"1,725.00",ALPHA (IOW) LTD
Revenue,Childrens Services,Children's & Education Services,Other Education and Community Budget,5105668205,12.03.2021,Home to School SEN Transport (LA),Taxis - Contract Hire,825.00,ALPHA (IOW) LTD
Revenue,Childrens Services,Children's & Education Services,Other Education and Community Budget,5105668205,12.03.2021,Home to School SEN Transport (LA),Taxis - Contract Hire,"1,200.00",ALPHA (IOW) LTD
Revenue,Childrens Services,Children's & Education Services,Other Education and Community Budget,5105668205,12.03.2021,Home to School SEN Transport (LA),Taxis - Contract Hire,"1,800.00",ALPHA (IOW) LTD
Revenue,Childrens Services,Children's & Education Services,Other Education and Community Budget,5105668208,17.03.2021,Home to College Post 16 Transport,Taxis - Contract Hire,504.00,ALPHA (IOW) LTD
Revenue,Childrens Services,Children's & Education Services,Other Education and Community Budget,5105668208,17.03.2021,Home to College Post 16 Transport,Taxis - Contract Hire,144.00,ALPHA (IOW) LTD
Revenue,Childrens Services,Children's & Education Services,Other Education and Community Budget,5105668208,17.03.2021,Home to College Post 16 Transport,Taxis - Contract Hire,360.00,ALPHA (IOW) LTD
Revenue,Childrens Services,Children's & Education Services,Other Education and Community Budget,5105668208,17.03.2021,Home to College Post 16 Transport,Taxis - Contract Hire,288.00,ALPHA (IOW) LTD
Revenue,Childrens Services,Children's & Education Services,Other Education and Community Budget,5105668208,17.03.2021,Home to College Post 16 Transport,Taxis - Contract Hire,864.00,ALPHA (IOW) LTD
Revenue,Childrens Services,Children's & Education Services,Other Education and Community Budget,5105668208,17.03.2021,Home to College Post 16 Transport,Taxis - Contract Hire,504.00,ALPHA (IOW) LTD
Revenue,Childrens Services,Children's & Education Services,Other Education and Community Budget,5105668208,17.03.2021,Home to College Post 16 Transport,Taxis - Contract Hire,528.00,ALPHA (IOW) LTD
Revenue,Childrens Services,Children's & Education Services,Other Education and Community Budget,5105668208,17.03.2021,Home to College Post 16 Transport,Taxis - Contract Hire,720.00,ALPHA (IOW) LTD
Revenue,Childrens Services,Children's & Education Services,Management & Support Services,5105669584,24.03.2021,Pupil Premium Managed Centrally,Travel Expenses,30.00,ALPHA (IOW) LTD
Revenue,Childrens Services,Children's & Education Services,Management & Support Services,5105669584,24.03.2021,Pupil Premium Managed Centrally,Travel Expenses,30.00,ALPHA (IOW) LTD
Revenue,Childrens Services,Children's & Education Services,Management & Support Services,5105669584,24.03.2021,Pupil Premium Managed Centrally,Travel Expenses,30.00,ALPHA (IOW) LTD
Revenue,Childrens Services,Children's & Education Services,Other Education and Community Budget,5105668208,17.03.2021,Home to School Mainstream Transport,Taxis - Contract Hire,"1,248.00",ALPHA (IOW) LTD
Revenue,Childrens Services,Children's & Education Services,Other Education and Community Budget,5105668208,17.03.2021,Home to School Mainstream Transport,Taxis - Contract Hire,600.00,ALPHA (IOW) LTD
Revenue,Childrens Services,Children's & Education Services,Other Education and Community Budget,5105668208,17.03.2021,Home to School Mainstream Transport,Taxis - Contract Hire,"2,880.00",ALPHA (IOW) LTD
Revenue,Childrens Services,Children's & Education Services,Other Education and Community Budget,5105668208,17.03.2021,Home to School Mainstream Transport,Taxis - Contract Hire,840.00,ALPHA (IOW) LTD
Revenue,Childrens Services,Children's & Education Services,Other Education and Community Budget,5105668205,12.03.2021,Home to School Mainstream Transport,Taxis - Contract Hire,"2,100.00",ALPHA (IOW) LTD
Revenue,Childrens Services,Children's & Education Services,Other Education and Community Budget,5105668205,12.03.2021,Home to School Mainstream Transport,Taxis - Contract Hire,750.00,ALPHA (IOW) LTD
Revenue,Childrens Services,Children's & Education Services,Other Education and Community Budget,5105668205,12.03.2021,Home to School Mainstream Transport,Taxis - Contract Hire,"1,650.00",ALPHA (IOW) LTD
Revenue,Childrens Services,Children's & Education Services,Other Education and Community Budget,5105668205,12.03.2021,Home to School Mainstream Transport,Taxis - Contract Hire,900.00,ALPHA (IOW) LTD
Revenue,Childrens Services,Children's & Education Services,Other Education and Community Budget,5105668205,12.03.2021,Home to School Mainstream Transport,Taxis - Contract Hire,900.00,ALPHA (IOW) LTD
Revenue,Childrens Services,Children's & Education Services,Other Education and Community Budget,5105668205,12.03.2021,Home to School Mainstream Transport,Taxis - Contract Hire,750.00,ALPHA (IOW) LTD
Revenue,Childrens Services,Children's & Education Services,Other Education and Community Budget,5105668205,12.03.2021,Home to School Mainstream Transport,Taxis - Contract Hire,750.00,ALPHA (IOW) LTD
Revenue,Adult Services,Housing Services,Homelessness,5105670136,31.03.2021,Homelessness Support,Transport of Clients,213.20,ALPHA (IOW) LTD
Revenue,Adult Services,Adult Social Care,Learning Disability Suppt-adults (18-64),5105668803,17.03.2021,Learning Disability Residential 18-64,Charges from Independent Providers,"1,370.30",ALPHAGRANGE LTD
Revenue,Adult Services,Adult Social Care,Learning Disability Suppt-adults (18-64),5105668803,17.03.2021,Learning Disability Residential 18-64,Charges from Independent Providers,"2,466.54",ALPHAGRANGE LTD
Revenue,Childrens Services,Children's & Education Services,Children Looked After,5105668588,12.03.2021,Children placed with Family&Friends,Boarding Out Allowances,167.00,REDACTED PERSONAL DATA
Revenue,Childrens Services,Children's & Education Services,Children Looked After,5105669824,26.03.2021,Children placed with Family&Friends,Boarding Out Allowances,167.00,REDACTED PERSONAL DATA
Revenue,Childrens Services,Children's & Education Services,Children Looked After,5105669282,19.03.2021,Children placed with Family&Friends,Boarding Out Allowances,167.00,REDACTED PERSONAL DATA
Revenue,Childrens Services,Children's & Education Services,Children Looked After,5105667914,05.03.2021,Children placed with Family&Friends,Boarding Out Allowances,167.00,REDACTED PERSONAL DATA
Revenue,Neighbourhoods,Environmental & Regulatory Services,Waste Disposal,5105667992,05.03.2021,Waste Disposal - Amey Contract,Waste Contractors,367.68,AMEY (IOW) SPV LIMITED
Revenue,Neighbourhoods,Environmental & Regulatory Services,Waste Disposal,5105668717,12.03.2021,Waste Disposal - Amey Contract,Waste Contractors,"189,617.74",AMEY (IOW) SPV LIMITED
Revenue,Neighbourhoods,Environmental & Regulatory Services,Recycling,5105668717,12.03.2021,Waste Recycling - Amey Contract,Waste Contractors,"19,568.70",AMEY (IOW) SPV LIMITED
Revenue,Neighbourhoods,Environmental & Regulatory Services,Waste Collection,5105668717,12.03.2021,Waste Collection - Amey Contract,Waste Contractors,"109,280.62",AMEY (IOW) SPV LIMITED
Revenue,Neighbourhoods,Environmental & Regulatory Services,Waste Collection,5105667992,05.03.2021,Waste Collection - Amey Contract,Waste Contractors,"1,470.74",AMEY (IOW) SPV LIMITED
Revenue,Neighbourhoods,Environmental & Regulatory Services,Waste Collection,5105667993,05.03.2021,Waste Contract Income,Waste Contractors,"5,102.87",AMEY (IOW) SPV LIMITED
Revenue,Adult Services,Balance Sheet,Balance Sheet,5105668804,17.03.2021,REDACTED PERSONAL DATA,Order Settlement to Bal Sht GL,891.90,ANCONA CARE HOME
Revenue,Adult Services,Balance Sheet,Balance Sheet,5105668804,17.03.2021,REDACTED PERSONAL DATA,Order Settlement to Bal Sht GL,"1,626.12",ANCONA CARE HOME
Revenue,Adult Services,Adult Social Care,Physical Support - older people (65+),5105668804,17.03.2021,Physical Support Residential 65+,Charges from Independent Providers,"1,320.84",ANCONA CARE HOME
Revenue,Adult Services,Adult Social Care,Physical Support - older people (65+),5105668804,17.03.2021,Physical Support Residential 65+,Charges from Independent Providers,758.60,ANCONA CARE HOME
Revenue,Adult Services,Adult Social Care,Physical Support - older people (65+),5105668804,17.03.2021,Physical Support Residential 65+,Charges from Independent Providers,"1,383.12",ANCONA CARE HOME
Revenue,Assistant Chief Executive,Central Services,Support Services,5105669145,19.03.2021,Print Unit,Stationery,108.40,ANTALIS MCNAUGHTON
Revenue,Assistant Chief Executive,Central Services,Support Services,5400002973,31.03.2021,Print Unit,Printing Costs,29.96,ANTALIS MCNAUGHTON
Revenue,Assistant Chief Executive,Central Services,Support Services,5400002973,31.03.2021,Print Unit,Printing Costs,59.70,ANTALIS MCNAUGHTON
Revenue,Assistant Chief Executive,Central Services,Support Services,5400002973,31.03.2021,Print Unit,Printing Costs,5.42,ANTALIS MCNAUGHTON
Revenue,Assistant Chief Executive,Central Services,Support Services,5400002973,31.03.2021,Print Unit,Printing Costs,54.22,ANTALIS MCNAUGHTON
Revenue,Adult Services,Adult Social Care,Assistive Equipment & Technology,5105669932,26.03.2021,Wightcare,Operational Equipment,900.00,ANYWHERE CARE LIMITED
Revenue,Regeneration,Planning services,Economic Development,5105669029,31.03.2021,Area Regeneration Activity,Consultants Fees,"3,000.00",ARC CONSULTING LTD
Revenue,Neighbourhoods,Highways and Transport Services,"Airports, Harbours & Toll Facilities",5105667674,03.03.2021,Ferry Operation,Clothing & Laundry,3.60,ARCO LTD
Revenue,Neighbourhoods,Highways and Transport Services,"Airports, Harbours & Toll Facilities",5105667674,03.03.2021,Ferry Operation,Clothing & Laundry,11.24,ARCO LTD
Revenue,Neighbourhoods,Highways and Transport Services,"Airports, Harbours & Toll Facilities",5105668740,17.03.2021,Ferry Operation,Clothing & Laundry,72.52,ARCO LTD
Revenue,Neighbourhoods,Highways and Transport Services,"Airports, Harbours & Toll Facilities",5105668740,17.03.2021,Ferry Operation,Clothing & Laundry,54.80,ARCO LTD
Revenue,Neighbourhoods,Highways and Transport Services,"Airports, Harbours & Toll Facilities",5105670194,31.03.2021,Ferry Operation,Clothing & Laundry,17.68,ARCO LTD
Revenue,Neighbourhoods,Cultural and Related Services,Open Spaces,5105667672,03.03.2021,Tree Felling / Replacement,Clothing & Laundry,8.28,ARCO LTD
Revenue,Childrens Services,Children's & Education Services,Special Schools & Alternative Provision,5105669565,24.03.2021,Island Learning Centre,General Materials,56.20,ARCO LTD
Revenue,Childrens Services,Children's & Education Services,Special Schools & Alternative Provision,5105669565,24.03.2021,Island Learning Centre,General Materials,56.20,ARCO LTD
Revenue,Childrens Services,Children's & Education Services,Special Schools & Alternative Provision,5105669565,24.03.2021,Island Learning Centre,General Materials,56.20,ARCO LTD
Revenue,Neighbourhoods,Cultural and Related Services,Open Spaces,5105667799,05.03.2021,Other Grounds Maintenance,Clothing & Laundry,28.49,ARCO LTD
Revenue,Regeneration,Planning services,Management & Support Services,5105667755,03.03.2021,Planning Management,Office Equipment,366.48,ARCO LTD
Revenue,Regeneration,Planning services,Management & Support Services,5105667755,03.03.2021,Planning Management,Office Equipment,39.99,ARCO LTD
Revenue,Regeneration,Planning services,Economic Development,5105669133,19.03.2021,Branstone Farm Project,Professional Services,"7,700.00",ARID DESIGN LTD
Revenue,Adult Services,Adult Social Care,Learning Disab Supp (to be reallocated),5105669359,24.03.2021,Plean Dene,Minor Works,115.00,ARJO UK LTD
Revenue,Adult Services,Adult Social Care,Learning Disab Supp (to be reallocated),5400002942,31.03.2021,Saxonbury,Minor Works,346.46,ARJO UK LTD
Revenue,Adult Services,Adult Social Care,Learning Disab Supp (to be reallocated),5105669939,31.03.2021,Saxonbury,Minor Works,30.00,ARJO UK LTD
Revenue,Adult Services,Adult Social Care,Social Support - Support for Carer,5105668861,17.03.2021,Carers Residential,Charges from Independent Providers,891.90,ASHMERE DERBYSHIRE LIMITED
Revenue,Adult Services,Adult Social Care,Social Support - Support for Carer,5105668861,17.03.2021,Carers Residential,Charges from Independent Providers,"1,605.42",ASHMERE DERBYSHIRE LIMITED
Revenue,Childrens Services,Children's & Education Services,Safeguarding Children/Young Peoples Svs,5105667991,05.03.2021,Court Work & Consultancy Services,Professional Services,255.75,ASPIRE SOCIAL WORK SERVICES LTD
Revenue,Childrens Services,Children's & Education Services,Special Schools & Alternative Provision,5105667673,03.03.2021,Island Learning Centre,Schools Examination Fees,906.30,ASSESSMENT & QUALIFICATION ALLIANCE
Revenue,Resources,Central Services,Support Services,5400002966,31.03.2021,Organisational Development � Leadership,Training,450.00,ASTRID DAVIES CONSULTING LTD
Revenue,Resources,Children's & Education Services,Other Education and Community Budget,5105667542,03.03.2021,Specialist Cross-Council Training,Training,70.00,ASTRID DAVIES CONSULTING LTD
Revenue,Neighbourhoods,Highways and Transport Services,"Airports, Harbours & Toll Facilities",5105669019,17.03.2021,Ferry Maintenance,Payment to Private Contractors,474.33,ATLANTIS MARINE POWER LTD
Revenue,Adult Services,Balance Sheet,Balance Sheet,5105668785,17.03.2021,REDACTED PERSONAL DATA,Order Settlement to Bal Sht GL,891.90,AUTUMN HOUSE CARE LTD
Revenue,Adult Services,Balance Sheet,Balance Sheet,5105668785,17.03.2021,REDACTED PERSONAL DATA,Order Settlement to Bal Sht GL,324.60,AUTUMN HOUSE CARE LTD
Revenue,Adult Services,Balance Sheet,Balance Sheet,5105668785,17.03.2021,REDACTED PERSONAL DATA,Order Settlement to Bal Sht GL,"1,626.12",AUTUMN HOUSE CARE LTD
Revenue,Adult Services,Balance Sheet,Balance Sheet,5105668785,17.03.2021,REDACTED PERSONAL DATA,Order Settlement to Bal Sht GL,584.28,AUTUMN HOUSE CARE LTD
Revenue,Adult Services,Adult Social Care,Support - Memory /Cognition-older people (65+),5105668785,17.03.2021,Memory & Cognition Residential 65+,Charges from Independent Providers,891.90,AUTUMN HOUSE CARE LTD
Revenue,Adult Services,Adult Social Care,Support - Memory /Cognition-older people (65+),5105668785,17.03.2021,Memory & Cognition Residential 65+,Charges from Independent Providers,"1,626.12",AUTUMN HOUSE CARE LTD
Revenue,Adult Services,Adult Social Care,Support - Memory /Cognition-older people (65+),5105668785,17.03.2021,Memory & Cognition Residential 65+,Charges from Independent Providers,891.90,AUTUMN HOUSE CARE LTD
Revenue,Adult Services,Adult Social Care,Support - Memory /Cognition-older people (65+),5105668785,17.03.2021,Memory & Cognition Residential 65+,Charges from Independent Providers,"1,626.12",AUTUMN HOUSE CARE LTD
Revenue,Adult Services,Adult Social Care,Support - Memory /Cognition-older people (65+),5105668785,17.03.2021,Memory & Cognition Residential 65+,Charges from Independent Providers,891.90,AUTUMN HOUSE CARE LTD
Revenue,Adult Services,Adult Social Care,Support - Memory /Cognition-older people (65+),5105668785,17.03.2021,Memory & Cognition Residential 65+,Charges from Independent Providers,"1,626.12",AUTUMN HOUSE CARE LTD
Revenue,Adult Services,Adult Social Care,Support - Memory /Cognition-older people (65+),5105668785,17.03.2021,Memory & Cognition Residential 65+,Charges from Independent Providers,891.90,AUTUMN HOUSE CARE LTD
Revenue,Adult Services,Adult Social Care,Support - Memory /Cognition-older people (65+),5105668785,17.03.2021,Memory & Cognition Residential 65+,Charges from Independent Providers,"1,626.12",AUTUMN HOUSE CARE LTD
Revenue,Adult Services,Adult Social Care,Support - Memory /Cognition-older people (65+),5105668785,17.03.2021,Memory & Cognition Residential 65+,Charges from Independent Providers,758.60,AUTUMN HOUSE CARE LTD
Revenue,Adult Services,Adult Social Care,Support - Memory /Cognition-older people (65+),5105668785,17.03.2021,Memory & Cognition Residential 65+,Charges from Independent Providers,"1,383.12",AUTUMN HOUSE CARE LTD
Revenue,Adult Services,Adult Social Care,Support - Memory /Cognition-older people (65+),5105668785,17.03.2021,Memory & Cognition Residential 65+,Charges from Independent Providers,891.90,AUTUMN HOUSE CARE LTD
Revenue,Adult Services,Adult Social Care,Support - Memory /Cognition-older people (65+),5105668785,17.03.2021,Memory & Cognition Residential 65+,Charges from Independent Providers,"1,626.12",AUTUMN HOUSE CARE LTD
Revenue,Adult Services,Adult Social Care,Support - Memory /Cognition-older people (65+),5105668785,17.03.2021,Memory & Cognition Residential 65+,Charges from Independent Providers,891.90,AUTUMN HOUSE CARE LTD
Revenue,Adult Services,Adult Social Care,Support - Memory /Cognition-older people (65+),5105668785,17.03.2021,Memory & Cognition Residential 65+,Charges from Independent Providers,"1,626.12",AUTUMN HOUSE CARE LTD
Revenue,Adult Services,Adult Social Care,Physical Support - adults (18-64),5105668785,17.03.2021,Physical Support Residential 18-64,Charges from Independent Providers,891.90,AUTUMN HOUSE CARE LTD
Revenue,Adult Services,Adult Social Care,Physical Support - adults (18-64),5105668785,17.03.2021,Physical Support Residential 18-64,Charges from Independent Providers,"1,626.12",AUTUMN HOUSE CARE LTD
Revenue,Adult Services,Central Services,Emergency Planning,5105669074,17.03.2021,NHS C19 Residential,Charges from Independent Providers,"3,032.46",AUTUMN HOUSE CARE LTD
Revenue,Adult Services,Central Services,Emergency Planning,5105669074,17.03.2021,NHS C19 Residential,Charges from Independent Providers,713.52,AUTUMN HOUSE CARE LTD
Revenue,Adult Services,Balance Sheet,Balance Sheet,5105668785,17.03.2021,REDACTED PERSONAL DATA,Order Settlement to Bal Sht GL,758.60,AUTUMN HOUSE CARE LTD
Revenue,Adult Services,Balance Sheet,Balance Sheet,5105668785,17.03.2021,REDACTED PERSONAL DATA,Order Settlement to Bal Sht GL,"1,383.12",AUTUMN HOUSE CARE LTD
Revenue,Adult Services,Adult Social Care,Support - Memory /Cognition-older people (65+),5105668423,10.03.2021,Memory & Cognition Nursing 65+,Charges from Independent Providers,"2,497.32",AUTUMN HOUSE CARE LTD
Revenue,Adult Services,Adult Social Care,Support - Memory /Cognition-older people (65+),5105670101,31.03.2021,Memory & Cognition Nursing 65+,Charges from Independent Providers,"8,311.28",AUTUMN HOUSE CARE LTD
Revenue,Adult Services,Adult Social Care,Physical Support - older people (65+),5105668785,17.03.2021,Physical Support Residential 65+,Charges from Independent Providers,758.60,AUTUMN HOUSE CARE LTD
Revenue,Adult Services,Adult Social Care,Physical Support - older people (65+),5105668785,17.03.2021,Physical Support Residential 65+,Charges from Independent Providers,"1,383.12",AUTUMN HOUSE CARE LTD
Revenue,Adult Services,Adult Social Care,Physical Support - older people (65+),5105668785,17.03.2021,Physical Support Residential 65+,Charges from Independent Providers,891.90,AUTUMN HOUSE CARE LTD
Revenue,Adult Services,Adult Social Care,Physical Support - older people (65+),5105668785,17.03.2021,Physical Support Residential 65+,Charges from Independent Providers,"1,626.12",AUTUMN HOUSE CARE LTD
Revenue,Adult Services,Adult Social Care,Physical Support - older people (65+),5105668785,17.03.2021,Physical Support Residential 65+,Charges from Independent Providers,891.90,AUTUMN HOUSE CARE LTD
Revenue,Adult Services,Adult Social Care,Physical Support - older people (65+),5105668785,17.03.2021,Physical Support Residential 65+,Charges from Independent Providers,"1,626.12",AUTUMN HOUSE CARE LTD
Revenue,Adult Services,Adult Social Care,Physical Support - older people (65+),5105668785,17.03.2021,Physical Support Residential 65+,Charges from Independent Providers,891.90,AUTUMN HOUSE CARE LTD
Revenue,Adult Services,Adult Social Care,Physical Support - older people (65+),5105668785,17.03.2021,Physical Support Residential 65+,Charges from Independent Providers,"1,626.12",AUTUMN HOUSE CARE LTD
Revenue,Adult Services,Adult Social Care,Physical Support - older people (65+),5105668785,17.03.2021,Physical Support Residential 65+,Charges from Independent Providers,891.90,AUTUMN HOUSE CARE LTD
Revenue,Adult Services,Adult Social Care,Physical Support - older people (65+),5105668785,17.03.2021,Physical Support Residential 65+,Charges from Independent Providers,"1,626.12",AUTUMN HOUSE CARE LTD
Revenue,Adult Services,Adult Social Care,Physical Support - older people (65+),5105668785,17.03.2021,Physical Support Residential 65+,Charges from Independent Providers,758.60,AUTUMN HOUSE CARE LTD
Revenue,Adult Services,Adult Social Care,Physical Support - older people (65+),5105668785,17.03.2021,Physical Support Residential 65+,Charges from Independent Providers,"1,383.12",AUTUMN HOUSE CARE LTD
Revenue,Adult Services,Adult Social Care,Physical Support - older people (65+),5105668785,17.03.2021,Physical Support Residential 65+,Charges from Independent Providers,891.90,AUTUMN HOUSE CARE LTD
Revenue,Adult Services,Adult Social Care,Physical Support - older people (65+),5105668785,17.03.2021,Physical Support Residential 65+,Charges from Independent Providers,"1,626.12",AUTUMN HOUSE CARE LTD
Revenue,Adult Services,Adult Social Care,Physical Support - older people (65+),5105668785,17.03.2021,Physical Support Residential 65+,Charges from Independent Providers,891.90,AUTUMN HOUSE CARE LTD
Revenue,Adult Services,Adult Social Care,Physical Support - older people (65+),5105668785,17.03.2021,Physical Support Residential 65+,Charges from Independent Providers,"1,626.12",AUTUMN HOUSE CARE LTD
Revenue,Adult Services,Adult Social Care,Physical Support - older people (65+),5105668785,17.03.2021,Physical Support Residential 65+,Charges from Independent Providers,891.90,AUTUMN HOUSE CARE LTD
Revenue,Adult Services,Adult Social Care,Physical Support - older people (65+),5105668785,17.03.2021,Physical Support Residential 65+,Charges from Independent Providers,"1,626.12",AUTUMN HOUSE CARE LTD
Revenue,Adult Services,Adult Social Care,Physical Support - older people (65+),5105668785,17.03.2021,Physical Support Residential 65+,Charges from Independent Providers,891.90,AUTUMN HOUSE CARE LTD
Revenue,Adult Services,Adult Social Care,Physical Support - older people (65+),5105668785,17.03.2021,Physical Support Residential 65+,Charges from Independent Providers,"1,626.12",AUTUMN HOUSE CARE LTD
Revenue,Adult Services,Adult Social Care,Physical Support - older people (65+),5105668785,17.03.2021,Physical Support Residential 65+,Charges from Independent Providers,891.90,AUTUMN HOUSE CARE LTD
Revenue,Adult Services,Adult Social Care,Physical Support - older people (65+),5105668785,17.03.2021,Physical Support Residential 65+,Charges from Independent Providers,"1,626.12",AUTUMN HOUSE CARE LTD
Revenue,Adult Services,Adult Social Care,Physical Support - older people (65+),5105668785,17.03.2021,Physical Support Residential 65+,Charges from Independent Providers,891.90,AUTUMN HOUSE CARE LTD
Revenue,Adult Services,Adult Social Care,Physical Support - older people (65+),5105668785,17.03.2021,Physical Support Residential 65+,Charges from Independent Providers,"1,626.12",AUTUMN HOUSE CARE LTD
Revenue,Adult Services,Adult Social Care,Physical Support - older people (65+),5105668785,17.03.2021,Physical Support Residential 65+,Charges from Independent Providers,891.90,AUTUMN HOUSE CARE LTD
Revenue,Adult Services,Adult Social Care,Physical Support - older people (65+),5105668785,17.03.2021,Physical Support Residential 65+,Charges from Independent Providers,"1,626.12",AUTUMN HOUSE CARE LTD
Revenue,Adult Services,Adult Social Care,Physical Support - older people (65+),5105668785,17.03.2021,Physical Support Residential 65+,Charges from Independent Providers,891.90,AUTUMN HOUSE CARE LTD
Revenue,Adult Services,Adult Social Care,Physical Support - older people (65+),5105668785,17.03.2021,Physical Support Residential 65+,Charges from Independent Providers,"1,626.12",AUTUMN HOUSE CARE LTD
Revenue,Resources,Central Services,Support Services,5105669412,18.03.2021,"Metabo (UK) Ltd, Nursling, Southampton",Professional Services,-500.00,GVA GRIMLEY LTD
Revenue,Resources,Central Services,Support Services,5105669416,19.03.2021,"Metabo (UK) Ltd, Nursling, Southampton",Professional Services,500.00,GVA GRIMLEY LTD
Revenue,Resources,Central Services,Support Services,5105669393,18.03.2021,"Metabo (UK) Ltd, Nursling, Southampton",Professional Services,500.00,GVA GRIMLEY LTD
Revenue,Resources,Central Services,Support Services,5105669393,18.03.2021,Network Oxford,Professional Services,500.00,GVA GRIMLEY LTD
Revenue,Resources,Central Services,Support Services,5105669416,19.03.2021,Network Oxford,Professional Services,500.00,GVA GRIMLEY LTD
Revenue,Resources,Central Services,Support Services,5105669412,18.03.2021,Network Oxford,Professional Services,-500.00,GVA GRIMLEY LTD
Revenue,Resources,Central Services,Support Services,5105669393,18.03.2021,Olympic Court,Professional Services,500.00,GVA GRIMLEY LTD
Revenue,Resources,Central Services,Support Services,5105669416,19.03.2021,Olympic Court,Professional Services,500.00,GVA GRIMLEY LTD
Revenue,Resources,Central Services,Support Services,5105669412,18.03.2021,Olympic Court,Professional Services,-500.00,GVA GRIMLEY LTD
Revenue,Resources,Central Services,Support Services,5105669412,18.03.2021,Aylesford Access 420,Professional Services,-500.00,GVA GRIMLEY LTD
Revenue,Resources,Central Services,Support Services,5105669416,19.03.2021,Aylesford Access 420,Professional Services,500.00,GVA GRIMLEY LTD
Revenue,Resources,Central Services,Support Services,5105669393,18.03.2021,Aylesford Access 420,Professional Services,500.00,GVA GRIMLEY LTD
Revenue,Neighbourhoods,Cultural and Related Services,Service Management and Support Services,5105668156,12.03.2021,Duke of Edingburgh Award,Operational Equipment,29.00,AWARD SCHEME LTD
Revenue,Neighbourhoods,Cultural and Related Services,Service Management and Support Services,5105667683,03.03.2021,Duke of Edingburgh Award,Operational Equipment,124.00,AWARD SCHEME LTD
Revenue,Neighbourhoods,Cultural and Related Services,Service Management and Support Services,5105667685,03.03.2021,Duke of Edingburgh Award,Operational Equipment,29.00,AWARD SCHEME LTD
Revenue,Childrens Services,Children's & Education Services,Children Looked After,5105669197,19.03.2021,In-house Fostering,Boarding Out Allowances,521.22,REDACTED PERSONAL DATA
Revenue,Childrens Services,Children's & Education Services,Children Looked After,5105669739,26.03.2021,In-house Fostering,Boarding Out Allowances,521.22,REDACTED PERSONAL DATA
Revenue,Childrens Services,Children's & Education Services,Children Looked After,5105667828,05.03.2021,In-house Fostering,Boarding Out Allowances,521.22,REDACTED PERSONAL DATA
Revenue,Childrens Services,Children's & Education Services,Children Looked After,5105668502,12.03.2021,In-house Fostering,Boarding Out Allowances,521.22,REDACTED PERSONAL DATA
Revenue,Adult Services,Housing Services,Homelessness,5105669464,24.03.2021,Private Rented Sector Leasing Scheme,Accommodation Costs - Leaseholder Payments,866.67,REDACTED PERSONAL DATA
Revenue,Adult Services,Adult Social Care,Assistive Equipment & Technology,5105669034,17.03.2021,Community Equipment Store,Operational Equipment,704.00,B.E.S REHAB LTD
Revenue,Adult Services,Adult Social Care,Commissioning & Service Delivery,5105669639,24.03.2021,CHC Nursing Care,Charges from Independent Providers,74.34,BAGSHOT PARK CARE CENTRE
Revenue,Adult Services,Adult Social Care,Commissioning & Service Delivery,5105668864,17.03.2021,CHC Nursing Care,Charges from Independent Providers,"3,690.00",BAGSHOT PARK CARE CENTRE
Revenue,Adult Services,Adult Social Care,Commissioning & Service Delivery,5105668864,17.03.2021,CHC Nursing Care,Charges from Independent Providers,"6,642.00",BAGSHOT PARK CARE CENTRE
Revenue,Adult Services,Adult Social Care,Central Codes (to be reallocated),5105670147,31.03.2021,Gouldings Resource Centre,Stationery,0.75,SUPPLIES TEAM LTD
Revenue,Adult Services,Adult Social Care,Central Codes (to be reallocated),5105670147,31.03.2021,Gouldings Resource Centre,Stationery,0.50,SUPPLIES TEAM LTD
Revenue,Adult Services,Adult Social Care,Central Codes (to be reallocated),5105670147,31.03.2021,Gouldings Resource Centre,Stationery,0.68,SUPPLIES TEAM LTD
Revenue,Adult Services,Adult Social Care,Central Codes (to be reallocated),5105670147,31.03.2021,Gouldings Resource Centre,Stationery,2.55,SUPPLIES TEAM LTD
Revenue,Adult Services,Adult Social Care,Central Codes (to be reallocated),5105670147,31.03.2021,Gouldings Resource Centre,Stationery,2.12,SUPPLIES TEAM LTD
Revenue,Adult Services,Adult Social Care,Central Codes (to be reallocated),5105670147,31.03.2021,Gouldings Resource Centre,Stationery,1.24,SUPPLIES TEAM LTD
Revenue,Adult Services,Adult Social Care,Central Codes (to be reallocated),5105670147,31.03.2021,Gouldings Resource Centre,Stationery,1.62,SUPPLIES TEAM LTD
Revenue,Adult Services,Adult Social Care,Central Codes (to be reallocated),5105670147,31.03.2021,Gouldings Resource Centre,Stationery,1.89,SUPPLIES TEAM LTD
Revenue,Adult Services,Adult Social Care,Central Codes (to be reallocated),5105670147,31.03.2021,Gouldings Resource Centre,Stationery,1.63,SUPPLIES TEAM LTD
Revenue,Adult Services,Adult Social Care,Central Codes (to be reallocated),5105670147,31.03.2021,Gouldings Resource Centre,Stationery,1.84,SUPPLIES TEAM LTD
Revenue,Adult Services,Adult Social Care,Central Codes (to be reallocated),5105670147,31.03.2021,Gouldings Resource Centre,Stationery,0.26,SUPPLIES TEAM LTD
Revenue,Adult Services,Adult Social Care,Central Codes (to be reallocated),5105670147,31.03.2021,Gouldings Resource Centre,Stationery,1.62,SUPPLIES TEAM LTD
Revenue,Adult Services,Adult Social Care,Central Codes (to be reallocated),5105670147,31.03.2021,Gouldings Resource Centre,Stationery,2.80,SUPPLIES TEAM LTD
Revenue,Adult Services,Adult Social Care,Central Codes (to be reallocated),5105670147,31.03.2021,Gouldings Resource Centre,Stationery,1.23,SUPPLIES TEAM LTD
Revenue,Adult Services,Adult Social Care,Central Codes (to be reallocated),5105670147,31.03.2021,Gouldings Resource Centre,Stationery,1.31,SUPPLIES TEAM LTD
Revenue,Adult Services,Adult Social Care,Central Codes (to be reallocated),5105670147,31.03.2021,Gouldings Resource Centre,Stationery,23.70,SUPPLIES TEAM LTD
Revenue,Adult Services,Adult Social Care,Central Codes (to be reallocated),5105670147,31.03.2021,Gouldings Resource Centre,Stationery,1.36,SUPPLIES TEAM LTD
Revenue,Adult Services,Adult Social Care,Central Codes (to be reallocated),5105668758,17.03.2021,Gouldings Resource Centre,Stationery,35.55,SUPPLIES TEAM LTD
Revenue,Adult Services,Adult Social Care,Central Codes (to be reallocated),5105668758,17.03.2021,Gouldings Resource Centre,Stationery,5.78,SUPPLIES TEAM LTD
Revenue,Adult Services,Adult Social Care,Central Codes (to be reallocated),5105668932,17.03.2021,Gouldings Resource Centre,Stationery,4.44,SUPPLIES TEAM LTD
Revenue,Childrens Services,Children's & Education Services,Other Education and Community Budget,5105669428,24.03.2021,Pupil Resources Business Support Team,Stationery,23.70,SUPPLIES TEAM LTD
Revenue,Childrens Services,Children's & Education Services,Other Education and Community Budget,5105670142,31.03.2021,SEND Independent Advice & Support,Stationery,0.44,SUPPLIES TEAM LTD
Revenue,Childrens Services,Children's & Education Services,Other Education and Community Budget,5105670142,31.03.2021,SEND Independent Advice & Support,Stationery,7.40,SUPPLIES TEAM LTD
Revenue,Childrens Services,Children's & Education Services,Other Education and Community Budget,5105670142,31.03.2021,SEND Independent Advice & Support,Stationery,0.56,SUPPLIES TEAM LTD
Revenue,Childrens Services,Children's & Education Services,Other Education and Community Budget,5105670142,31.03.2021,SEND Independent Advice & Support,Stationery,2.90,SUPPLIES TEAM LTD
Revenue,Childrens Services,Children's & Education Services,Other Education and Community Budget,5105670142,31.03.2021,SEND Independent Advice & Support,Stationery,9.92,SUPPLIES TEAM LTD
Revenue,Childrens Services,Children's & Education Services,Other Education and Community Budget,5105670142,31.03.2021,SEND Independent Advice & Support,Stationery,2.32,SUPPLIES TEAM LTD
Revenue,Childrens Services,Children's & Education Services,Other Education and Community Budget,5105670142,31.03.2021,SEND Independent Advice & Support,Stationery,11.85,SUPPLIES TEAM LTD
Revenue,Childrens Services,Children's & Education Services,Other Education and Community Budget,5105670142,31.03.2021,SEND Independent Advice & Support,Stationery,6.57,SUPPLIES TEAM LTD
Revenue,Childrens Services,Children's & Education Services,Other Education and Community Budget,5105670142,31.03.2021,SEND Independent Advice & Support,Stationery,1.79,SUPPLIES TEAM LTD
Revenue,Childrens Services,Children's & Education Services,Other Education and Community Budget,5105670142,31.03.2021,SEND Independent Advice & Support,Stationery,0.96,SUPPLIES TEAM LTD
Revenue,Fire & Rescue,Fire & Rescue Services,Fire fighting and Rescue Operations,5105667776,05.03.2021,Business Support  - Fire,Stationery,2.22,SUPPLIES TEAM LTD
Revenue,Fire & Rescue,Fire & Rescue Services,Fire fighting and Rescue Operations,5105668746,17.03.2021,Business Support  - Fire,Stationery,4.02,SUPPLIES TEAM LTD
Revenue,Fire & Rescue,Fire & Rescue Services,Fire fighting and Rescue Operations,5105668746,17.03.2021,Business Support  - Fire,Stationery,20.84,SUPPLIES TEAM LTD
Revenue,Fire & Rescue,Fire & Rescue Services,Fire fighting and Rescue Operations,5105668746,17.03.2021,Business Support  - Fire,Stationery,12.70,SUPPLIES TEAM LTD
Revenue,Fire & Rescue,Fire & Rescue Services,Fire fighting and Rescue Operations,5105668223,10.03.2021,Business Support  - Fire,Stationery,0.56,SUPPLIES TEAM LTD
Revenue,Neighbourhoods,Cultural and Related Services,Service Management and Support Services,5105669428,24.03.2021,Leisure Management & Admin,Stationery,11.85,SUPPLIES TEAM LTD
Revenue,Neighbourhoods,Cultural and Related Services,Service Management and Support Services,5105668759,19.03.2021,Leisure Management & Admin,Stationery,23.70,SUPPLIES TEAM LTD
Revenue,Neighbourhoods,Cultural and Related Services,Service Management and Support Services,5105667582,03.03.2021,Leisure Management & Admin,Stationery,35.55,SUPPLIES TEAM LTD
Revenue,Neighbourhoods,Cultural and Related Services,Service Management and Support Services,5105669922,26.03.2021,Leisure Management & Admin,Stationery,35.55,SUPPLIES TEAM LTD
Revenue,Neighbourhoods,Cultural and Related Services,Service Management and Support Services,5105669922,26.03.2021,Leisure Management & Admin,Stationery,1.40,SUPPLIES TEAM LTD
Revenue,Adult Services,Adult Social Care,Assistive Equipment & Technology,5105667777,05.03.2021,Community Equipment Store,Stationery,2.22,SUPPLIES TEAM LTD
Revenue,Adult Services,Adult Social Care,Assistive Equipment & Technology,5105668225,10.03.2021,Community Equipment Store,Stationery,0.56,SUPPLIES TEAM LTD
Revenue,Resources,Central Services,Support Services,5105665832,03.03.2021,Pension Administration,Stationery,2.57,SUPPLIES TEAM LTD
Revenue,Resources,Central Services,Support Services,5105667517,03.03.2021,Pension Administration,Stationery,-2.57,SUPPLIES TEAM LTD
Revenue,Resources,Central Services,Support Services,5105667580,10.03.2021,Pension Administration,Stationery,7.40,SUPPLIES TEAM LTD
Revenue,Resources,Central Services,Support Services,5105667580,10.03.2021,Pension Administration,Stationery,11.00,SUPPLIES TEAM LTD
Revenue,Resources,Central Services,Support Services,5105668938,17.03.2021,County Hall Central Mail Room,Stationery,17.32,SUPPLIES TEAM LTD
Revenue,Resources,Central Services,Support Services,5105668938,17.03.2021,County Hall Central Mail Room,Stationery,23.08,SUPPLIES TEAM LTD
Revenue,Resources,Central Services,Support Services,5105667582,03.03.2021,County Hall Central Mail Room,Stationery,27.94,SUPPLIES TEAM LTD
Revenue,Resources,Central Services,Support Services,5105667582,03.03.2021,County Hall Central Mail Room,Stationery,1.62,SUPPLIES TEAM LTD
Revenue,Childrens Services,Children's & Education Services,Safeguarding Children/Young Peoples Svs,5105669428,24.03.2021,Children's office costs,Stationery,12.16,SUPPLIES TEAM LTD
Revenue,Childrens Services,Children's & Education Services,Safeguarding Children/Young Peoples Svs,5105669428,24.03.2021,Children's office costs,Stationery,4.02,SUPPLIES TEAM LTD
Revenue,Childrens Services,Children's & Education Services,Safeguarding Children/Young Peoples Svs,5105669428,24.03.2021,Children's office costs,Stationery,11.85,SUPPLIES TEAM LTD
Revenue,Childrens Services,Children's & Education Services,Safeguarding Children/Young Peoples Svs,5105669428,24.03.2021,Children's office costs,Stationery,1.40,SUPPLIES TEAM LTD
Revenue,Childrens Services,Children's & Education Services,Safeguarding Children/Young Peoples Svs,5105669428,24.03.2021,Children's office costs,Stationery,11.85,SUPPLIES TEAM LTD
Revenue,Childrens Services,Children's & Education Services,Safeguarding Children/Young Peoples Svs,5105668079,31.03.2021,Children's office costs,Stationery,2.12,SUPPLIES TEAM LTD
Revenue,Childrens Services,Children's & Education Services,Safeguarding Children/Young Peoples Svs,5105668079,31.03.2021,Children's office costs,Stationery,11.85,SUPPLIES TEAM LTD
Revenue,Childrens Services,Children's & Education Services,Safeguarding Children/Young Peoples Svs,5105668079,31.03.2021,Children's office costs,Stationery,7.34,SUPPLIES TEAM LTD
Revenue,Childrens Services,Children's & Education Services,Safeguarding Children/Young Peoples Svs,5105668079,31.03.2021,Children's office costs,Stationery,2.48,SUPPLIES TEAM LTD
Revenue,Childrens Services,Children's & Education Services,Safeguarding Children/Young Peoples Svs,5105668079,31.03.2021,Children's office costs,Stationery,6.57,SUPPLIES TEAM LTD
Revenue,Childrens Services,Children's & Education Services,Safeguarding Children/Young Peoples Svs,5105668079,31.03.2021,Children's office costs,Stationery,2.57,SUPPLIES TEAM LTD
Revenue,Childrens Services,Children's & Education Services,Safeguarding Children/Young Peoples Svs,5105668079,31.03.2021,Children's office costs,Stationery,4.02,SUPPLIES TEAM LTD
Revenue,Childrens Services,Children's & Education Services,Safeguarding Children/Young Peoples Svs,5105668943,31.03.2021,Children's office costs,Stationery,-11.85,SUPPLIES TEAM LTD
Revenue,Childrens Services,Children's & Education Services,Safeguarding Children/Young Peoples Svs,5105668943,31.03.2021,Children's office costs,Stationery,-7.34,SUPPLIES TEAM LTD
Revenue,Childrens Services,Children's & Education Services,Safeguarding Children/Young Peoples Svs,5105668943,31.03.2021,Children's office costs,Stationery,-6.57,SUPPLIES TEAM LTD
Revenue,Childrens Services,Children's & Education Services,Safeguarding Children/Young Peoples Svs,5105667774,05.03.2021,Children's office costs,Stationery,2.22,SUPPLIES TEAM LTD
Revenue,Childrens Services,Children's & Education Services,Safeguarding Children/Young Peoples Svs,5105667775,05.03.2021,Children's office costs,Stationery,1.23,SUPPLIES TEAM LTD
Revenue,Childrens Services,Children's & Education Services,Safeguarding Children/Young Peoples Svs,5105668759,19.03.2021,Children's office costs,Stationery,2.55,SUPPLIES TEAM LTD
Revenue,Childrens Services,Children's & Education Services,Safeguarding Children/Young Peoples Svs,5105667582,03.03.2021,Children's office costs,Stationery,3.09,SUPPLIES TEAM LTD
Revenue,Childrens Services,Children's & Education Services,Safeguarding Children/Young Peoples Svs,5105670021,29.03.2021,Children's office costs,Stationery,-2.48,SUPPLIES TEAM LTD
Revenue,Childrens Services,Children's & Education Services,Safeguarding Children/Young Peoples Svs,5105670024,29.03.2021,Children's office costs,Stationery,2.48,SUPPLIES TEAM LTD
Revenue,Childrens Services,Children's & Education Services,Safeguarding Children/Young Peoples Svs,5105670025,31.03.2021,Children's office costs,Stationery,-2.48,SUPPLIES TEAM LTD
Revenue,Childrens Services,Children's & Education Services,Safeguarding Children/Young Peoples Svs,5105669922,26.03.2021,Children's office costs,Stationery,23.70,SUPPLIES TEAM LTD
Revenue,Childrens Services,Children's & Education Services,Children Looked After,5105668747,17.03.2021,Beaulieu House,Stationery,0.78,SUPPLIES TEAM LTD
Revenue,Childrens Services,Children's & Education Services,Children Looked After,5105668747,17.03.2021,Beaulieu House,Stationery,13.26,SUPPLIES TEAM LTD
Revenue,Childrens Services,Children's & Education Services,Children Looked After,5105668747,17.03.2021,Beaulieu House,Stationery,40.20,SUPPLIES TEAM LTD
Revenue,Public Health,Central Services,Central Services to the Public,5105668079,31.03.2021,PH Covid-19 Community Testing,Stationery,5.71,SUPPLIES TEAM LTD
Revenue,Public Health,Central Services,Central Services to the Public,5105668938,17.03.2021,PH Covid-19 Community Testing,Stationery,88.00,SUPPLIES TEAM LTD
Revenue,Adult Services,Adult Social Care,Commissioning & Service Delivery,5105668750,17.03.2021,Group Manager Leaning Disability Homes,Stationery,0.30,SUPPLIES TEAM LTD
Revenue,Adult Services,Adult Social Care,Commissioning & Service Delivery,5105668752,17.03.2021,Group Manager Leaning Disability Homes,Stationery,1.89,SUPPLIES TEAM LTD
Revenue,Adult Services,Adult Social Care,Commissioning & Service Delivery,5105668752,17.03.2021,Group Manager Leaning Disability Homes,Stationery,4.02,SUPPLIES TEAM LTD
Revenue,Adult Services,Adult Social Care,Commissioning & Service Delivery,5105668752,17.03.2021,Group Manager Leaning Disability Homes,Stationery,3.50,SUPPLIES TEAM LTD
Revenue,Adult Services,Adult Social Care,Commissioning & Service Delivery,5105668752,17.03.2021,Group Manager Leaning Disability Homes,Stationery,1.46,SUPPLIES TEAM LTD
Revenue,Adult Services,Adult Social Care,Commissioning & Service Delivery,5105668752,17.03.2021,Group Manager Leaning Disability Homes,Stationery,4.96,SUPPLIES TEAM LTD
Revenue,Adult Services,Adult Social Care,Commissioning & Service Delivery,5105668753,17.03.2021,Group Manager Leaning Disability Homes,Stationery,0.81,SUPPLIES TEAM LTD
Revenue,Adult Services,Adult Social Care,Commissioning & Service Delivery,5105668753,17.03.2021,Group Manager Leaning Disability Homes,Stationery,11.85,SUPPLIES TEAM LTD
Revenue,Adult Services,Adult Social Care,Commissioning & Service Delivery,5105665826,03.03.2021,Group Manager Leaning Disability Homes,Stationery,27.70,SUPPLIES TEAM LTD
Revenue,Adult Services,Adult Social Care,Commissioning & Service Delivery,5105665826,03.03.2021,Group Manager Leaning Disability Homes,Stationery,1.31,SUPPLIES TEAM LTD
Revenue,Adult Services,Adult Social Care,Commissioning & Service Delivery,5105665826,03.03.2021,Group Manager Leaning Disability Homes,Stationery,3.42,SUPPLIES TEAM LTD
Revenue,Adult Services,Adult Social Care,Commissioning & Service Delivery,5105665826,03.03.2021,Group Manager Leaning Disability Homes,Stationery,2.30,SUPPLIES TEAM LTD
Revenue,Adult Services,Adult Social Care,Commissioning & Service Delivery,5105669428,24.03.2021,Deputyship Office,Stationery,7.16,SUPPLIES TEAM LTD
Revenue,Adult Services,Adult Social Care,Commissioning & Service Delivery,5105668079,31.03.2021,Deputyship Office,Stationery,1.24,SUPPLIES TEAM LTD
Revenue,Adult Services,Adult Social Care,Commissioning & Service Delivery,5105668079,31.03.2021,Deputyship Office,Stationery,4.02,SUPPLIES TEAM LTD
Revenue,Adult Services,Adult Social Care,Commissioning & Service Delivery,5105668079,31.03.2021,Deputyship Office,Stationery,7.16,SUPPLIES TEAM LTD
Revenue,Adult Services,Adult Social Care,Commissioning & Service Delivery,5105668079,31.03.2021,Deputyship Office,Stationery,0.37,SUPPLIES TEAM LTD
Revenue,Adult Services,Adult Social Care,Commissioning & Service Delivery,5105668079,31.03.2021,Deputyship Office,Stationery,3.42,SUPPLIES TEAM LTD
Revenue,Adult Services,Adult Social Care,Assistive Equipment & Technology,5105668079,31.03.2021,Wightcare,Stationery,7.40,SUPPLIES TEAM LTD
Revenue,Adult Services,Adult Social Care,Assistive Equipment & Technology,5105667582,03.03.2021,Wightcare,Stationery,58.90,SUPPLIES TEAM LTD
Revenue,Adult Services,Adult Social Care,Assistive Equipment & Technology,5105667582,03.03.2021,Wightcare,Stationery,7.40,SUPPLIES TEAM LTD
Revenue,Adult Services,Adult Social Care,Assistive Equipment & Technology,5105667582,03.03.2021,Wightcare,Stationery,1.16,SUPPLIES TEAM LTD
Revenue,Resources,Central Services,Support Services,5105668938,17.03.2021,Legal Services Section,Stationery,11.85,SUPPLIES TEAM LTD
Revenue,Resources,Central Services,Support Services,5105667582,03.03.2021,Legal Services Section,Stationery,1.22,SUPPLIES TEAM LTD
Revenue,Adult Services,Adult Social Care,Central Codes (to be reallocated),5105669602,24.03.2021,Community Reablement,Stationery,23.70,SUPPLIES TEAM LTD
Revenue,Childrens Services,Children's & Education Services,Special Schools & Alternative Provision,5105669429,19.03.2021,Island Learning Centre,Stationery,9.55,SUPPLIES TEAM LTD
Revenue,Childrens Services,Children's & Education Services,Special Schools & Alternative Provision,5105669429,19.03.2021,Island Learning Centre,Stationery,94.80,SUPPLIES TEAM LTD
Revenue,Childrens Services,Children's & Education Services,Special Schools & Alternative Provision,5105669429,19.03.2021,Island Learning Centre,Stationery,11.88,SUPPLIES TEAM LTD
Revenue,Resources,Highways and Transport Services,Public Transport,5105668060,31.03.2021,Transport Fleet Administration,Stationery,-3.58,SUPPLIES TEAM LTD
Revenue,Resources,Highways and Transport Services,Public Transport,5105668079,31.03.2021,Transport Fleet Administration,Stationery,3.58,SUPPLIES TEAM LTD
Revenue,Resources,Highways and Transport Services,Public Transport,5105670166,31.03.2021,Transport Fleet Administration,Stationery,3.58,SUPPLIES TEAM LTD
Revenue,Neighbourhoods,Environmental & Regulatory Services,Service Management and Support Services,5105667582,03.03.2021,Regulatory Management & Admin Support,Stationery,23.70,SUPPLIES TEAM LTD
Revenue,Adult Services,Adult Social Care,Commissioning & Service Delivery,5105669428,24.03.2021,ASC County Hall office costs,Stationery,2.48,SUPPLIES TEAM LTD
Revenue,Adult Services,Adult Social Care,Commissioning & Service Delivery,5105668079,31.03.2021,ASC County Hall office costs,Stationery,6.84,SUPPLIES TEAM LTD
Revenue,Adult Services,Adult Social Care,Commissioning & Service Delivery,5105668079,31.03.2021,ASC County Hall office costs,Stationery,8.66,SUPPLIES TEAM LTD
Revenue,Adult Services,Adult Social Care,Commissioning & Service Delivery,5105668079,31.03.2021,ASC County Hall office costs,Stationery,14.80,SUPPLIES TEAM LTD
Revenue,Adult Services,Adult Social Care,Commissioning & Service Delivery,5105668079,31.03.2021,ASC County Hall office costs,Stationery,1.62,SUPPLIES TEAM LTD
Revenue,Adult Services,Adult Social Care,Commissioning & Service Delivery,5105668079,31.03.2021,ASC County Hall office costs,Stationery,0.37,SUPPLIES TEAM LTD
Revenue,Adult Services,Adult Social Care,Commissioning & Service Delivery,5105668079,31.03.2021,ASC County Hall office costs,Stationery,14.32,SUPPLIES TEAM LTD
Revenue,Adult Services,Adult Social Care,Commissioning & Service Delivery,5105668079,31.03.2021,ASC County Hall office costs,Stationery,4.02,SUPPLIES TEAM LTD
Revenue,Adult Services,Adult Social Care,Commissioning & Service Delivery,5105668079,31.03.2021,ASC County Hall office costs,Stationery,2.48,SUPPLIES TEAM LTD
Revenue,Adult Services,Adult Social Care,Commissioning & Service Delivery,5105668938,17.03.2021,ASC County Hall office costs,Stationery,5.10,SUPPLIES TEAM LTD
Revenue,Adult Services,Adult Social Care,Commissioning & Service Delivery,5105668938,17.03.2021,ASC County Hall office costs,Stationery,1.62,SUPPLIES TEAM LTD
Revenue,Adult Services,Adult Social Care,Commissioning & Service Delivery,5105667806,05.03.2021,ASC County Hall office costs,Stationery,2.55,SUPPLIES TEAM LTD
Revenue,Adult Services,Adult Social Care,Commissioning & Service Delivery,5105667582,03.03.2021,ASC County Hall office costs,Stationery,2.48,SUPPLIES TEAM LTD
Revenue,Adult Services,Adult Social Care,Commissioning & Service Delivery,5105667582,03.03.2021,ASC County Hall office costs,Stationery,0.81,SUPPLIES TEAM LTD
Revenue,Adult Services,Adult Social Care,Commissioning & Service Delivery,5105667582,03.03.2021,ASC County Hall office costs,Stationery,5.10,SUPPLIES TEAM LTD
Revenue,Adult Services,Adult Social Care,Social Care Activities,5105669428,24.03.2021,Hospital Team,Stationery,0.69,SUPPLIES TEAM LTD
Revenue,Adult Services,Adult Social Care,Social Care Activities,5105669428,24.03.2021,Hospital Team,Stationery,2.39,SUPPLIES TEAM LTD
Revenue,Adult Services,Adult Social Care,Social Care Activities,5105668938,17.03.2021,Hospital Team,Stationery,2.48,SUPPLIES TEAM LTD
Revenue,Adult Services,Adult Social Care,Social Care Activities,5105668938,17.03.2021,Hospital Team,Stationery,23.70,SUPPLIES TEAM LTD
Revenue,Adult Services,Adult Social Care,Social Care Activities,5105668938,17.03.2021,Hospital Team,Stationery,11.70,SUPPLIES TEAM LTD
Revenue,Adult Services,Adult Social Care,Social Care Activities,5105667582,03.03.2021,Hospital Team,Stationery,4.33,SUPPLIES TEAM LTD
Revenue,Regeneration,Central Services,Support Services,5105668938,17.03.2021,"County Hall,Newport",Stationery,33.20,SUPPLIES TEAM LTD
Revenue,Regeneration,Central Services,Support Services,5105668940,19.03.2021,"County Hall,Newport",Stationery,9.70,SUPPLIES TEAM LTD
Revenue,Regeneration,Central Services,Support Services,5105668759,19.03.2021,"County Hall,Newport",Stationery,97.76,SUPPLIES TEAM LTD
Revenue,Regeneration,Central Services,Support Services,5105668759,19.03.2021,"County Hall,Newport",Stationery,6.84,SUPPLIES TEAM LTD
Revenue,Regeneration,Central Services,Support Services,5105668759,19.03.2021,"County Hall,Newport",Stationery,0.74,SUPPLIES TEAM LTD
Revenue,Regeneration,Central Services,Support Services,5105668759,19.03.2021,"County Hall,Newport",Stationery,28.46,SUPPLIES TEAM LTD
Revenue,Regeneration,Central Services,Support Services,5105668759,19.03.2021,"County Hall,Newport",Stationery,8.80,SUPPLIES TEAM LTD
Revenue,Regeneration,Central Services,Support Services,5105668759,19.03.2021,"County Hall,Newport",Stationery,12.60,SUPPLIES TEAM LTD
Revenue,Childrens Services,Children's & Education Services,Special Schools & Alternative Provision,5105669390,19.03.2021,Island Learning Centre,Stationery,16.97,SUPPLIES TEAM LTD
Revenue,Childrens Services,Children's & Education Services,Special Schools & Alternative Provision,5105668936,17.03.2021,Island Learning Centre,Stationery,1.26,SUPPLIES TEAM LTD
Revenue,Childrens Services,Children's & Education Services,Special Schools & Alternative Provision,5105668936,17.03.2021,Island Learning Centre,Stationery,1.40,SUPPLIES TEAM LTD
Revenue,Childrens Services,Children's & Education Services,Special Schools & Alternative Provision,5105668936,17.03.2021,Island Learning Centre,Stationery,0.48,SUPPLIES TEAM LTD
Revenue,Childrens Services,Children's & Education Services,Special Schools & Alternative Provision,5105668936,17.03.2021,Island Learning Centre,Stationery,7.73,SUPPLIES TEAM LTD
Revenue,Childrens Services,Children's & Education Services,Special Schools & Alternative Provision,5105668936,17.03.2021,Island Learning Centre,Stationery,23.50,SUPPLIES TEAM LTD
Revenue,Childrens Services,Children's & Education Services,Special Schools & Alternative Provision,5105668936,17.03.2021,Island Learning Centre,Stationery,52.64,SUPPLIES TEAM LTD
Revenue,Childrens Services,Children's & Education Services,Special Schools & Alternative Provision,5105668936,17.03.2021,Island Learning Centre,Stationery,20.96,SUPPLIES TEAM LTD
Revenue,Childrens Services,Children's & Education Services,Special Schools & Alternative Provision,5105668936,17.03.2021,Island Learning Centre,Stationery,5.89,SUPPLIES TEAM LTD
Revenue,Neighbourhoods,Cultural and Related Services,Library Service,5105670150,31.03.2021,Public Libraries Central,Stationery,16.10,SUPPLIES TEAM LTD
Revenue,Neighbourhoods,Cultural and Related Services,Library Service,5105670150,31.03.2021,Public Libraries Central,Stationery,22.84,SUPPLIES TEAM LTD
Revenue,Neighbourhoods,Cultural and Related Services,Library Service,5105670150,31.03.2021,Public Libraries Central,Stationery,1.25,SUPPLIES TEAM LTD
Revenue,Neighbourhoods,Cultural and Related Services,Library Service,5105670150,31.03.2021,Public Libraries Central,Stationery,2.76,SUPPLIES TEAM LTD
Revenue,Neighbourhoods,Cultural and Related Services,Library Service,5105670150,31.03.2021,Public Libraries Central,Stationery,2.32,SUPPLIES TEAM LTD
Revenue,Neighbourhoods,Cultural and Related Services,Library Service,5105670150,31.03.2021,Public Libraries Central,Stationery,1.23,SUPPLIES TEAM LTD
Revenue,Resources,Central Services,Central Services to the Public,5105669428,24.03.2021,Elections,Stationery,2.22,SUPPLIES TEAM LTD
Revenue,Resources,Central Services,Central Services to the Public,5105669600,24.03.2021,Elections,Stationery,-2.22,SUPPLIES TEAM LTD
Revenue,Resources,Central Services,Central Services to the Public,5105668938,17.03.2021,Elections,Stationery,930.00,SUPPLIES TEAM LTD
Revenue,Resources,Central Services,Central Services to the Public,5105669922,26.03.2021,Elections,Stationery,14.80,SUPPLIES TEAM LTD
Revenue,Resources,Central Services,Central Services to the Public,5105669922,26.03.2021,Elections,Stationery,12.99,SUPPLIES TEAM LTD
Revenue,Resources,Central Services,Central Services to the Public,5105668938,17.03.2021,RE Covid-19,Stationery,35.20,SUPPLIES TEAM LTD
Revenue,Resources,Central Services,Support Services,5105668079,31.03.2021,Revenues & Benefits Operational Support,Stationery,15.63,SUPPLIES TEAM LTD
Revenue,Resources,Central Services,Support Services,5105667582,03.03.2021,Revenues & Benefits Operational Support,Stationery,15.63,SUPPLIES TEAM LTD
Revenue,Resources,Central Services,Support Services,5105668759,19.03.2021,Call Centre,Stationery,7.34,SUPPLIES TEAM LTD
Revenue,Resources,Central Services,Support Services,5105667582,03.03.2021,Call Centre,Stationery,12.72,SUPPLIES TEAM LTD
Revenue,Adult Services,Adult Social Care,Commissioning & Service Delivery,5105668759,19.03.2021,Director of Adult Social Services,Stationery,23.70,SUPPLIES TEAM LTD
Revenue,Adult Services,Adult Social Care,Commissioning & Service Delivery,5105669430,19.03.2021,Director of Adult Social Services,Stationery,-11.85,SUPPLIES TEAM LTD
Revenue,Neighbourhoods,Central Services,Central Services to the Public,5105668759,19.03.2021,Coroner,Stationery,10.92,SUPPLIES TEAM LTD
Revenue,Neighbourhoods,Central Services,Central Services to the Public,5105668759,19.03.2021,Coroner,Stationery,3.04,SUPPLIES TEAM LTD
Revenue,Neighbourhoods,Central Services,Central Services to the Public,5105668759,19.03.2021,Coroner,Stationery,26.82,SUPPLIES TEAM LTD
Revenue,Neighbourhoods,Central Services,Central Services to the Public,5105668759,19.03.2021,Coroner,Stationery,10.69,SUPPLIES TEAM LTD
Revenue,Neighbourhoods,Central Services,Central Services to the Public,5105665824,10.03.2021,Coroner,Stationery,5.78,SUPPLIES TEAM LTD
Revenue,Neighbourhoods,Central Services,Central Services to the Public,5105665824,10.03.2021,Coroner,Stationery,5.14,SUPPLIES TEAM LTD
Revenue,Neighbourhoods,Central Services,Central Services to the Public,5105669922,26.03.2021,Coroner,Stationery,11.16,SUPPLIES TEAM LTD
Revenue,Neighbourhoods,Central Services,Central Services to the Public,5105669922,26.03.2021,Coroner,Stationery,21.84,SUPPLIES TEAM LTD
Revenue,Neighbourhoods,Central Services,Central Services to the Public,5105669922,26.03.2021,Coroner,Stationery,2.22,SUPPLIES TEAM LTD
Revenue,Neighbourhoods,Central Services,Central Services to the Public,5105669922,26.03.2021,Coroner,Stationery,1.83,SUPPLIES TEAM LTD
Revenue,Neighbourhoods,Central Services,Central Services to the Public,5105668931,17.03.2021,Coroner,Stationery,4.44,SUPPLIES TEAM LTD
Revenue,Neighbourhoods,Central Services,Central Services to the Public,5105668947,19.03.2021,Coroner,Stationery,1.38,SUPPLIES TEAM LTD
Revenue,Neighbourhoods,Central Services,Central Services to the Public,5105668751,17.03.2021,Coroner,Stationery,7.71,SUPPLIES TEAM LTD
Revenue,Neighbourhoods,Central Services,Central Services to the Public,5105668751,17.03.2021,Coroner,Stationery,1.40,SUPPLIES TEAM LTD
Revenue,Neighbourhoods,Central Services,Central Services to the Public,5105668751,17.03.2021,Coroner,Stationery,47.40,SUPPLIES TEAM LTD
Revenue,Neighbourhoods,Central Services,Central Services to the Public,5105668751,17.03.2021,Coroner,Stationery,5.37,SUPPLIES TEAM LTD
Revenue,Neighbourhoods,Central Services,Central Services to the Public,5105668754,19.03.2021,Coroner,Stationery,5.42,SUPPLIES TEAM LTD
Revenue,Childrens Services,Children's & Education Services,Youth Justice,5105669428,24.03.2021,Youth Offending Team,Stationery,35.55,SUPPLIES TEAM LTD
Revenue,Adult Services,Adult Social Care,Central Codes (to be reallocated),5105670138,31.03.2021,Adelaide Resource Centre,Stationery,-23.70,SUPPLIES TEAM LTD
Revenue,Adult Services,Adult Social Care,Commissioning & Service Delivery,5105668060,31.03.2021,CHC Staff Costs,Stationery,-7.16,SUPPLIES TEAM LTD
Revenue,Adult Services,Adult Social Care,Commissioning & Service Delivery,5105668079,31.03.2021,CHC Staff Costs,Stationery,7.16,SUPPLIES TEAM LTD
Revenue,Adult Services,Adult Social Care,Commissioning & Service Delivery,5105668079,31.03.2021,CHC Staff Costs,Stationery,7.40,SUPPLIES TEAM LTD
Revenue,Adult Services,Adult Social Care,Commissioning & Service Delivery,5105668938,17.03.2021,ASC Commissioning/Partnerships Development Team,Stationery,1.57,SUPPLIES TEAM LTD
Revenue,Adult Services,Adult Social Care,Central Codes (to be reallocated),5105669361,31.03.2021,Adelaide Resource Centre,Stationery,-3.65,SUPPLIES TEAM LTD
Revenue,Adult Services,Adult Social Care,Central Codes (to be reallocated),5105667638,03.03.2021,Adelaide Resource Centre,Stationery,2.64,SUPPLIES TEAM LTD
Revenue,Adult Services,Adult Social Care,Central Codes (to be reallocated),5105668748,17.03.2021,Adelaide Resource Centre,Stationery,1.84,SUPPLIES TEAM LTD
Revenue,Adult Services,Adult Social Care,Central Codes (to be reallocated),5105668748,17.03.2021,Adelaide Resource Centre,Stationery,4.08,SUPPLIES TEAM LTD
Revenue,Adult Services,Adult Social Care,Central Codes (to be reallocated),5105668748,17.03.2021,Adelaide Resource Centre,Stationery,0.70,SUPPLIES TEAM LTD
Revenue,Adult Services,Adult Social Care,Central Codes (to be reallocated),5105668748,17.03.2021,Adelaide Resource Centre,Stationery,2.55,SUPPLIES TEAM LTD
Revenue,Adult Services,Adult Social Care,Central Codes (to be reallocated),5105668748,17.03.2021,Adelaide Resource Centre,Stationery,27.70,SUPPLIES TEAM LTD
Revenue,Adult Services,Adult Social Care,Central Codes (to be reallocated),5105668748,17.03.2021,Adelaide Resource Centre,Stationery,1.80,SUPPLIES TEAM LTD
Revenue,Adult Services,Adult Social Care,Central Codes (to be reallocated),5105668748,17.03.2021,Adelaide Resource Centre,Stationery,35.55,SUPPLIES TEAM LTD
Revenue,Adult Services,Adult Social Care,Central Codes (to be reallocated),5105668748,17.03.2021,Adelaide Resource Centre,Stationery,9.06,SUPPLIES TEAM LTD
Revenue,Adult Services,Adult Social Care,Central Codes (to be reallocated),5105668748,17.03.2021,Adelaide Resource Centre,Stationery,5.77,SUPPLIES TEAM LTD
Revenue,Adult Services,Adult Social Care,Central Codes (to be reallocated),5105668748,17.03.2021,Adelaide Resource Centre,Stationery,18.12,SUPPLIES TEAM LTD
Revenue,Adult Services,Adult Social Care,Central Codes (to be reallocated),5105668757,17.03.2021,Adelaide Resource Centre,Stationery,0.60,SUPPLIES TEAM LTD
Revenue,Adult Services,Adult Social Care,Central Codes (to be reallocated),5105668224,10.03.2021,Adelaide Resource Centre,Stationery,2.64,SUPPLIES TEAM LTD
Revenue,Adult Services,Adult Social Care,Central Codes (to be reallocated),5105665224,31.03.2021,Adelaide Resource Centre,Stationery,-3.93,SUPPLIES TEAM LTD
Revenue,Adult Services,Adult Social Care,Central Codes (to be reallocated),5105665224,31.03.2021,Adelaide Resource Centre,Stationery,-4.05,SUPPLIES TEAM LTD
Revenue,Adult Services,Adult Social Care,Central Codes (to be reallocated),5105665224,31.03.2021,Adelaide Resource Centre,Stationery,-3.86,SUPPLIES TEAM LTD
Revenue,Adult Services,Adult Social Care,Central Codes (to be reallocated),5105665224,31.03.2021,Adelaide Resource Centre,Stationery,-0.22,SUPPLIES TEAM LTD
Revenue,Adult Services,Adult Social Care,Central Codes (to be reallocated),5105665224,31.03.2021,Adelaide Resource Centre,Stationery,-0.71,SUPPLIES TEAM LTD
Revenue,Adult Services,Adult Social Care,Central Codes (to be reallocated),5105665224,31.03.2021,Adelaide Resource Centre,Stationery,-0.25,SUPPLIES TEAM LTD
Revenue,Adult Services,Adult Social Care,Central Codes (to be reallocated),5105665224,31.03.2021,Adelaide Resource Centre,Stationery,-0.90,SUPPLIES TEAM LTD
Revenue,Adult Services,Adult Social Care,Central Codes (to be reallocated),5105663795,31.03.2021,Adelaide Resource Centre,Stationery,3.93,SUPPLIES TEAM LTD
Revenue,Adult Services,Adult Social Care,Central Codes (to be reallocated),5105663795,31.03.2021,Adelaide Resource Centre,Stationery,4.05,SUPPLIES TEAM LTD
Revenue,Adult Services,Adult Social Care,Central Codes (to be reallocated),5105663795,31.03.2021,Adelaide Resource Centre,Stationery,2.86,SUPPLIES TEAM LTD
Revenue,Adult Services,Adult Social Care,Central Codes (to be reallocated),5105663795,31.03.2021,Adelaide Resource Centre,Stationery,3.86,SUPPLIES TEAM LTD
Revenue,Adult Services,Adult Social Care,Central Codes (to be reallocated),5105663795,31.03.2021,Adelaide Resource Centre,Stationery,0.22,SUPPLIES TEAM LTD
Revenue,Adult Services,Adult Social Care,Central Codes (to be reallocated),5105663795,31.03.2021,Adelaide Resource Centre,Stationery,47.40,SUPPLIES TEAM LTD
Revenue,Adult Services,Adult Social Care,Central Codes (to be reallocated),5105663795,31.03.2021,Adelaide Resource Centre,Stationery,3.65,SUPPLIES TEAM LTD
Revenue,Adult Services,Adult Social Care,Central Codes (to be reallocated),5105663795,31.03.2021,Adelaide Resource Centre,Stationery,0.71,SUPPLIES TEAM LTD
Revenue,Adult Services,Adult Social Care,Central Codes (to be reallocated),5105663795,31.03.2021,Adelaide Resource Centre,Stationery,0.25,SUPPLIES TEAM LTD
Revenue,Adult Services,Adult Social Care,Central Codes (to be reallocated),5105663795,31.03.2021,Adelaide Resource Centre,Stationery,0.90,SUPPLIES TEAM LTD
Revenue,Adult Services,Adult Social Care,Central Codes (to be reallocated),5105664962,31.03.2021,Adelaide Resource Centre,Stationery,-2.86,SUPPLIES TEAM LTD
Revenue,Adult Services,Adult Social Care,Central Codes (to be reallocated),5105667184,31.03.2021,Adelaide Resource Centre,Stationery,-23.70,SUPPLIES TEAM LTD
Revenue,Adult Services,Adult Social Care,Central Codes (to be reallocated),5105667104,24.03.2021,Adelaide Resource Centre,Stationery,4.07,SUPPLIES TEAM LTD
Revenue,Regeneration,Planning services,Management & Support Services,5105665824,10.03.2021,Planning Management,Stationery,5.10,SUPPLIES TEAM LTD
Revenue,Regeneration,Planning services,Management & Support Services,5105665824,10.03.2021,Planning Management,Stationery,1.65,SUPPLIES TEAM LTD
Revenue,Regeneration,Planning services,Management & Support Services,5105665824,10.03.2021,Planning Management,Stationery,11.08,SUPPLIES TEAM LTD
Revenue,Neighbourhoods,Environmental & Regulatory Services,"Cemetery, Cremation & Mortuary Services",5105668944,17.03.2021,Crematorium,Stationery,2.76,SUPPLIES TEAM LTD
Revenue,Neighbourhoods,Environmental & Regulatory Services,"Cemetery, Cremation & Mortuary Services",5105670140,31.03.2021,Crematorium,Stationery,2.43,SUPPLIES TEAM LTD
Revenue,Neighbourhoods,Environmental & Regulatory Services,"Cemetery, Cremation & Mortuary Services",5105670140,31.03.2021,Crematorium,Stationery,3.46,SUPPLIES TEAM LTD
Revenue,Neighbourhoods,Environmental & Regulatory Services,"Cemetery, Cremation & Mortuary Services",5105670140,31.03.2021,Crematorium,Stationery,4.24,SUPPLIES TEAM LTD
Revenue,Neighbourhoods,Environmental & Regulatory Services,"Cemetery, Cremation & Mortuary Services",5105670140,31.03.2021,Crematorium,Stationery,0.68,SUPPLIES TEAM LTD
Revenue,Neighbourhoods,Environmental & Regulatory Services,"Cemetery, Cremation & Mortuary Services",5105670140,31.03.2021,Crematorium,Stationery,1.05,SUPPLIES TEAM LTD
Revenue,Neighbourhoods,Environmental & Regulatory Services,"Cemetery, Cremation & Mortuary Services",5105670140,31.03.2021,Crematorium,Stationery,5.85,SUPPLIES TEAM LTD
Revenue,Neighbourhoods,Environmental & Regulatory Services,"Cemetery, Cremation & Mortuary Services",5105670140,31.03.2021,Crematorium,Stationery,35.55,SUPPLIES TEAM LTD
Revenue,Neighbourhoods,Environmental & Regulatory Services,"Cemetery, Cremation & Mortuary Services",5105670140,31.03.2021,Crematorium,Stationery,0.74,SUPPLIES TEAM LTD
Revenue,Neighbourhoods,Environmental & Regulatory Services,"Cemetery, Cremation & Mortuary Services",5105670140,31.03.2021,Crematorium,Stationery,3.14,SUPPLIES TEAM LTD
Revenue,Neighbourhoods,Environmental & Regulatory Services,"Cemetery, Cremation & Mortuary Services",5105670140,31.03.2021,Crematorium,Stationery,2.46,SUPPLIES TEAM LTD
Revenue,Neighbourhoods,Environmental & Regulatory Services,"Cemetery, Cremation & Mortuary Services",5105670140,31.03.2021,Crematorium,Stationery,6.57,SUPPLIES TEAM LTD
Revenue,Childrens Services,Children's & Education Services,Management & Support Services,5105669428,24.03.2021,Specialist Service Business Admin,Stationery,23.70,SUPPLIES TEAM LTD
Revenue,Childrens Services,Children's & Education Services,Management & Support Services,5105668938,17.03.2021,Specialist Service Business Admin,Stationery,2.48,SUPPLIES TEAM LTD
Revenue,Regeneration,Central Services,Support Services,5105668079,31.03.2021,"Civic Centre,Sandown",Stationery,5.85,SUPPLIES TEAM LTD
Revenue,Regeneration,Central Services,Support Services,5105669922,26.03.2021,"Civic Centre,Sandown",Stationery,23.70,SUPPLIES TEAM LTD
Revenue,Adult Services,Adult Social Care,Commissioning & Service Delivery,5105669428,24.03.2021,FAC Team,Stationery,3.42,SUPPLIES TEAM LTD
Revenue,Adult Services,Adult Social Care,Commissioning & Service Delivery,5105669428,24.03.2021,FAC Team,Stationery,4.33,SUPPLIES TEAM LTD
Revenue,Adult Services,Adult Social Care,Commissioning & Service Delivery,5105668759,19.03.2021,FAC Team,Stationery,2.12,SUPPLIES TEAM LTD
Revenue,Adult Services,Adult Social Care,Physical Support - older people (65+),5105668869,17.03.2021,Physical Support Residential 65+,Charges from Independent Providers,724.40,BARCHESTER HELLENS LTD
Revenue,Childrens Services,Children's & Education Services,Children Looked After,5105670292,31.03.2021,Local Authority Care Advocacy Contract,Grants to External Bodies,"9,875.00",BARNARDO'S
Revenue,Childrens Services,Children's & Education Services,Sure Start Children's Centres,5105664493,31.03.2021,Early Help Contracts,Payments to Voluntary and Other Associations,"10,000.00",BARNARDO'S
Revenue,Childrens Services,Children's & Education Services,Sure Start Children's Centres,5105665100,26.03.2021,Early Help Contracts,Payment to Private Contractors,-74.50,BARNARDO'S
Revenue,Childrens Services,Children's & Education Services,Sure Start Children's Centres,5105668366,26.03.2021,Early Help Contracts,Payment to Private Contractors,"260,017.50",BARNARDO'S
Revenue,Childrens Services,Children's & Education Services,Family Support Services,5105668419,12.03.2021,S17 Child Protection,Professional Services,289.40,BARTON PRIMARY & EARLY YEARS
Revenue,Adult Services,Adult Social Care,Learning Disab Supp (to be reallocated),5105668393,17.03.2021,Plean Dene,Operational Equipment,24.56,LAKE CLEANING & CATERING SUPPLIES
Revenue,Fire & Rescue,Fire & Rescue Services,Fire fighting and Rescue Operations,5105668243,10.03.2021,Fire Technical Support,Maintenance of Operational Equipment,52.52,LAKE CLEANING & CATERING SUPPLIES
Revenue,Fire & Rescue,Fire & Rescue Services,Fire fighting and Rescue Operations,5105668243,10.03.2021,Fire Technical Support,Maintenance of Operational Equipment,47.70,LAKE CLEANING & CATERING SUPPLIES
Revenue,Fire & Rescue,Fire & Rescue Services,Fire fighting and Rescue Operations,5105668243,10.03.2021,Fire Technical Support,Maintenance of Operational Equipment,24.00,LAKE CLEANING & CATERING SUPPLIES
Revenue,Fire & Rescue,Fire & Rescue Services,Fire fighting and Rescue Operations,5105668243,10.03.2021,Fire Technical Support,Maintenance of Operational Equipment,62.84,LAKE CLEANING & CATERING SUPPLIES
Revenue,Fire & Rescue,Fire & Rescue Services,Fire fighting and Rescue Operations,5105668243,10.03.2021,Fire Technical Support,Maintenance of Operational Equipment,52.04,LAKE CLEANING & CATERING SUPPLIES
Revenue,Fire & Rescue,Fire & Rescue Services,Fire fighting and Rescue Operations,5105668243,10.03.2021,Fire Technical Support,Maintenance of Operational Equipment,71.44,LAKE CLEANING & CATERING SUPPLIES
Revenue,Fire & Rescue,Fire & Rescue Services,Fire fighting and Rescue Operations,5105667584,03.03.2021,Fire Technical Support,General Materials,24.24,LAKE CLEANING & CATERING SUPPLIES
Revenue,Fire & Rescue,Fire & Rescue Services,Fire fighting and Rescue Operations,5105667584,03.03.2021,Fire Technical Support,General Materials,13.44,LAKE CLEANING & CATERING SUPPLIES
Revenue,Fire & Rescue,Fire & Rescue Services,Fire fighting and Rescue Operations,5105667584,03.03.2021,Fire Technical Support,General Materials,35.16,LAKE CLEANING & CATERING SUPPLIES
Revenue,Fire & Rescue,Fire & Rescue Services,Fire fighting and Rescue Operations,5105667584,03.03.2021,Fire Technical Support,General Materials,26.02,LAKE CLEANING & CATERING SUPPLIES
Revenue,Fire & Rescue,Fire & Rescue Services,Fire fighting and Rescue Operations,5105667584,03.03.2021,Fire Technical Support,General Materials,22.50,LAKE CLEANING & CATERING SUPPLIES
Revenue,Fire & Rescue,Fire & Rescue Services,Fire fighting and Rescue Operations,5105667584,03.03.2021,Fire Technical Support,General Materials,21.00,LAKE CLEANING & CATERING SUPPLIES
Revenue,Fire & Rescue,Fire & Rescue Services,Fire fighting and Rescue Operations,5105667584,03.03.2021,Fire Technical Support,General Materials,30.70,LAKE CLEANING & CATERING SUPPLIES
Revenue,Fire & Rescue,Fire & Rescue Services,Fire fighting and Rescue Operations,5105667584,03.03.2021,Fire Technical Support,General Materials,17.04,LAKE CLEANING & CATERING SUPPLIES
Revenue,Fire & Rescue,Fire & Rescue Services,Fire fighting and Rescue Operations,5105667584,03.03.2021,Fire Technical Support,General Materials,47.52,LAKE CLEANING & CATERING SUPPLIES
Revenue,Fire & Rescue,Fire & Rescue Services,Fire fighting and Rescue Operations,5105667584,03.03.2021,Fire Technical Support,General Materials,31.80,LAKE CLEANING & CATERING SUPPLIES
Revenue,Childrens Services,Children's & Education Services,Children Looked After,5105669136,19.03.2021,Beaulieu House,General Materials,216.20,LAKE CLEANING & CATERING SUPPLIES
Revenue,Childrens Services,Children's & Education Services,Children Looked After,5105669569,24.03.2021,Beaulieu House,General Materials,122.20,LAKE CLEANING & CATERING SUPPLIES
Revenue,Neighbourhoods,Central Services,Central Services to the Public,5105668245,10.03.2021,NB Covid-19,Consumable Cleaning Materials,209.50,LAKE CLEANING & CATERING SUPPLIES
Revenue,Neighbourhoods,Cultural and Related Services,Recreation and Sport,5400002953,31.03.2021,The Heights,Consumable Cleaning Materials,13.39,LAKE CLEANING & CATERING SUPPLIES
Revenue,Regeneration,Planning services,Environmental Initiatives,5105668465,19.03.2021,A.O.N.B.,Consultants Fees,"1,130.00",BCM (IOW) LLP
Revenue,Childrens Services,Children's & Education Services,Children Looked After,5105669689,26.03.2021,Adopt South Adoption Support Fund,Charges from Independent Providers,576.00,BEACON HOUSE PSYCHOLOGICAL SERVICES
Revenue,Childrens Services,Children's & Education Services,Children Looked After,5105669564,24.03.2021,Purchased Residential,Charges from Independent Providers,"3,850.00",BENECARE FOSTERING LTD
Revenue,Childrens Services,Children's & Education Services,Children Looked After,5105669566,24.03.2021,Purchased Residential,Charges from Independent Providers,"3,850.00",BENECARE FOSTERING LTD
Revenue,Childrens Services,Children's & Education Services,Children Looked After,5105669567,24.03.2021,Purchased Residential,Charges from Independent Providers,"3,850.00",BENECARE FOSTERING LTD
Revenue,Childrens Services,Children's & Education Services,Children Looked After,5105669559,24.03.2021,Purchased Residential,Charges from Independent Providers,"3,850.00",BENECARE FOSTERING LTD
Revenue,Childrens Services,Children's & Education Services,Children Looked After,5105669561,24.03.2021,Purchased Residential,Charges from Independent Providers,"3,850.00",BENECARE FOSTERING LTD
Revenue,Adult Services,Housing Services,Homelessness,5105669609,24.03.2021,B&B Properties,Accommodation Costs - Bed & Breakfast,"3,000.00",BERTRAM LODGE
Revenue,Adult Services,Adult Social Care,Central Codes (to be reallocated),5105668191,10.03.2021,Gouldings Resource Centre,Consumable Cleaning Materials,63.50,BETA PAK LTD
Revenue,Adult Services,Adult Social Care,Central Codes (to be reallocated),5105668997,17.03.2021,Gouldings Resource Centre,Consumable Cleaning Materials,50.10,BETA PAK LTD
Revenue,Adult Services,Adult Social Care,Central Codes (to be reallocated),5105670146,31.03.2021,Gouldings Resource Centre,Consumable Cleaning Materials,4.94,BETA PAK LTD
Revenue,Adult Services,Adult Social Care,Central Codes (to be reallocated),5105670197,31.03.2021,Gouldings Resource Centre,Consumable Cleaning Materials,8.70,BETA PAK LTD
Revenue,Adult Services,Adult Social Care,Central Codes (to be reallocated),5105670200,31.03.2021,Gouldings Resource Centre,Consumable Cleaning Materials,21.75,BETA PAK LTD
Revenue,Adult Services,Adult Social Care,Central Codes (to be reallocated),5105670212,31.03.2021,Gouldings Resource Centre,Consumable Cleaning Materials,5.40,BETA PAK LTD
Revenue,Adult Services,Adult Social Care,Central Codes (to be reallocated),5105669108,17.03.2021,Gouldings Resource Centre,Consumable Cleaning Materials,497.82,BETA PAK LTD
Revenue,Adult Services,Adult Social Care,Central Codes (to be reallocated),5105667543,03.03.2021,Gouldings Resource Centre,Operational Equipment,38.28,BETA PAK LTD
Revenue,Adult Services,Adult Social Care,Central Codes (to be reallocated),5105667596,03.03.2021,Gouldings Resource Centre,Operational Equipment,92.30,BETA PAK LTD
Revenue,Adult Services,Adult Social Care,Central Codes (to be reallocated),5105667756,03.03.2021,Gouldings Resource Centre,Operational Equipment,103.60,BETA PAK LTD
Revenue,Adult Services,Adult Social Care,Central Codes (to be reallocated),5105667646,03.03.2021,Gouldings Resource Centre,Operational Equipment,32.26,BETA PAK LTD
Revenue,Adult Services,Adult Social Care,Social Support - Support for Carer,5105669683,26.03.2021,Westminster House,Operational Equipment,-102.56,BETA PAK LTD
Revenue,Adult Services,Adult Social Care,Social Support - Support for Carer,5105668107,05.03.2021,Westminster House,Operational Equipment,12.00,BETA PAK LTD
Revenue,Adult Services,Adult Social Care,Social Support - Support for Carer,5105667686,05.03.2021,Westminster House,Operational Equipment,151.49,BETA PAK LTD
Revenue,Adult Services,Adult Social Care,Social Support - Support for Carer,5105667644,05.03.2021,Westminster House,Operational Equipment,46.54,BETA PAK LTD
Revenue,Adult Services,Adult Social Care,Social Support - Support for Carer,5105668375,17.03.2021,Westminster House,Operational Equipment,129.55,BETA PAK LTD
Revenue,Adult Services,Adult Social Care,Social Support - Support for Carer,5105668242,10.03.2021,Westminster House,Operational Equipment,117.04,BETA PAK LTD
Revenue,Adult Services,Adult Social Care,Learning Disab Supp (to be reallocated),5105669936,26.03.2021,Plean Dene,Operational Equipment,75.09,BETA PAK LTD
Revenue,Adult Services,Adult Social Care,Learning Disab Supp (to be reallocated),5105669936,26.03.2021,Plean Dene,Operational Equipment,49.96,BETA PAK LTD
Revenue,Adult Services,Adult Social Care,Learning Disab Supp (to be reallocated),5105668189,10.03.2021,Saxonbury,Operational Equipment,3.87,BETA PAK LTD
Revenue,Adult Services,Adult Social Care,Learning Disab Supp (to be reallocated),5105668036,10.03.2021,Saxonbury,Operational Equipment,31.89,BETA PAK LTD
Revenue,Adult Services,Adult Social Care,Learning Disab Supp (to be reallocated),5105667758,03.03.2021,Saxonbury,Operational Equipment,323.88,BETA PAK LTD
Revenue,Adult Services,Adult Social Care,Learning Disab Supp (to be reallocated),5105668312,10.03.2021,Saxonbury,Operational Equipment,4.24,BETA PAK LTD
Revenue,Adult Services,Adult Social Care,Learning Disab Supp (to be reallocated),5105670199,31.03.2021,Saxonbury,Operational Equipment,69.72,BETA PAK LTD
Revenue,Adult Services,Adult Social Care,Learning Disab Supp (to be reallocated),5105670060,31.03.2021,Saxonbury,Operational Equipment,231.19,BETA PAK LTD
Revenue,Adult Services,Adult Social Care,Learning Disab Supp (to be reallocated),5105668192,10.03.2021,Plean Dene,Operational Equipment,164.36,BETA PAK LTD
Revenue,Adult Services,Adult Social Care,Learning Disab Supp (to be reallocated),5105668192,10.03.2021,Plean Dene,Operational Equipment,49.96,BETA PAK LTD
Revenue,Adult Services,Adult Social Care,Central Codes (to be reallocated),5105668885,17.03.2021,Adelaide Resource Centre,Consumable Cleaning Materials,226.88,BETA PAK LTD
Revenue,Adult Services,Adult Social Care,Central Codes (to be reallocated),5105669109,17.03.2021,Adelaide Resource Centre,Consumable Cleaning Materials,15.10,BETA PAK LTD
Revenue,Adult Services,Adult Social Care,Central Codes (to be reallocated),5105669110,17.03.2021,Adelaide Resource Centre,Consumable Cleaning Materials,57.16,BETA PAK LTD
Revenue,Adult Services,Adult Social Care,Central Codes (to be reallocated),5105669692,31.03.2021,Adelaide Resource Centre,Consumable Cleaning Materials,-15.10,BETA PAK LTD
Revenue,Adult Services,Adult Social Care,Central Codes (to be reallocated),5105668999,17.03.2021,Adelaide Resource Centre,Consumable Cleaning Materials,15.05,BETA PAK LTD
Revenue,Adult Services,Adult Social Care,Central Codes (to be reallocated),5105669938,26.03.2021,Adelaide Resource Centre,Consumable Cleaning Materials,364.85,BETA PAK LTD
Revenue,Adult Services,Adult Social Care,Central Codes (to be reallocated),5105667544,03.03.2021,Adelaide Resource Centre,Consumable Cleaning Materials,208.50,BETA PAK LTD
Revenue,Adult Services,Adult Social Care,Central Codes (to be reallocated),5105667593,03.03.2021,Adelaide Resource Centre,Consumable Cleaning Materials,56.40,BETA PAK LTD
Revenue,Adult Services,Adult Social Care,Central Codes (to be reallocated),5105667602,03.03.2021,Adelaide Resource Centre,Consumable Cleaning Materials,31.00,BETA PAK LTD
Revenue,Adult Services,Adult Social Care,Central Codes (to be reallocated),5105667760,03.03.2021,Adelaide Resource Centre,Consumable Cleaning Materials,15.00,BETA PAK LTD
Revenue,Adult Services,Adult Social Care,Central Codes (to be reallocated),5105670145,31.03.2021,Adelaide Resource Centre,Consumable Cleaning Materials,74.90,BETA PAK LTD
Revenue,Neighbourhoods,Highways and Transport Services,Management and Support Services,5105668074,05.03.2021,Highways PFI Project,Legal Fees - Other Parties,52.50,BEVAN BRITTAN
Revenue,Neighbourhoods,Highways and Transport Services,Management and Support Services,5105668104,05.03.2021,Highways PFI Project,Legal Fees - Other Parties,"5,073.00",BEVAN BRITTAN
Revenue,Neighbourhoods,Highways and Transport Services,Management and Support Services,5105669152,19.03.2021,Highways PFI Project,Legal Fees - Other Parties,"11,728.40",BEVAN BRITTAN
Revenue,Regeneration,Planning services,Economic Development,5105670107,31.03.2021,Economic Development Projects,Professional Services,"1,219.50",BEVAN BRITTAN
Revenue,Neighbourhoods,Highways and Transport Services,Management and Support Services,5105667748,03.03.2021,Milestone 14 Dispute Resolution Process,Consultants Fees,"2,980.00",BEVAN BRITTAN
Revenue,Neighbourhoods,Highways and Transport Services,Management and Support Services,5105667752,03.03.2021,Milestone 14 Dispute Resolution Process,Consultants Fees,"3,572.00",BEVAN BRITTAN
Revenue,Neighbourhoods,Highways and Transport Services,Management and Support Services,5105669983,25.03.2021,Milestone 14 Dispute Resolution Process,Legal Fees - Other Parties,"-41,615.50",BEVAN BRITTAN
Revenue,Neighbourhoods,Highways and Transport Services,Management and Support Services,5105670033,31.03.2021,Milestone 14 Dispute Resolution Process,Legal Fees - Other Parties,"1,204.00",BEVAN BRITTAN
Revenue,Neighbourhoods,Highways and Transport Services,Management and Support Services,5105668147,10.03.2021,Milestone 14 Dispute Resolution Process,Legal Fees - Other Parties,37.00,BEVAN BRITTAN
Revenue,Neighbourhoods,Highways and Transport Services,Management and Support Services,5105667748,03.03.2021,Milestone 14 Dispute Resolution Process,Legal Fees - Other Parties,799.00,BEVAN BRITTAN
Revenue,Neighbourhoods,Highways and Transport Services,Management and Support Services,5105667749,03.03.2021,Milestone 14 Dispute Resolution Process,Legal Fees - Other Parties,825.00,BEVAN BRITTAN
Revenue,Neighbourhoods,Highways and Transport Services,Management and Support Services,5105667749,03.03.2021,Milestone 14 Dispute Resolution Process,Legal Fees - Other Parties,"1,927.50",BEVAN BRITTAN
Revenue,Regeneration,Planning services,Economic Development,5105667750,03.03.2021,Wight Innovation ERDF,Legal Fees - Other Parties,34.00,BEVAN BRITTAN
Revenue,Regeneration,Central Services,Support Services,5105670108,31.03.2021,Public Sector Partnership Costs,Legal Fees - Other Parties,"1,866.00",BEVAN BRITTAN
Revenue,Regeneration,Central Services,Support Services,5105670108,31.03.2021,Public Sector Partnership Costs,Legal Fees - Other Parties,6.00,BEVAN BRITTAN
Revenue,Resources,Central Services,Support Services,5105667994,05.03.2021,Litigation Costs,Legal Fees - Other Parties,399.00,BEVAN BRITTAN
Revenue,Resources,Central Services,Support Services,5105667995,05.03.2021,Litigation Costs,Legal Fees - Other Parties,263.50,BEVAN BRITTAN
Revenue,Resources,Central Services,Support Services,5105669966,26.03.2021,Litigation Costs,Legal Fees - Other Parties,"1,967.00",BEVAN BRITTAN
Revenue,Resources,Central Services,Support Services,5105670093,31.03.2021,Litigation Costs,Legal Fees - Other Parties,"1,806.20",BEVAN BRITTAN
Revenue,Adult Services,Adult Social Care,Central Codes (to be reallocated),5105669448,24.03.2021,Gouldings Resource Centre,Catering Purchases,232.04,3663 (BFS GROUP LTD)
Revenue,Adult Services,Adult Social Care,Central Codes (to be reallocated),5105669448,24.03.2021,Gouldings Resource Centre,Catering Purchases,27.51,3663 (BFS GROUP LTD)
Revenue,Adult Services,Adult Social Care,Central Codes (to be reallocated),5105668122,10.03.2021,Gouldings Resource Centre,Catering Purchases,9.74,3663 (BFS GROUP LTD)
Revenue,Adult Services,Adult Social Care,Central Codes (to be reallocated),5105668124,10.03.2021,Gouldings Resource Centre,Catering Purchases,258.89,3663 (BFS GROUP LTD)
Revenue,Adult Services,Adult Social Care,Central Codes (to be reallocated),5105668124,10.03.2021,Gouldings Resource Centre,Catering Purchases,20.50,3663 (BFS GROUP LTD)
Revenue,Adult Services,Adult Social Care,Central Codes (to be reallocated),5105668122,10.03.2021,Gouldings Resource Centre,Catering Purchases,259.19,3663 (BFS GROUP LTD)
Revenue,Adult Services,Adult Social Care,Central Codes (to be reallocated),5105670167,31.03.2021,Gouldings Resource Centre,Catering Purchases,9.44,3663 (BFS GROUP LTD)
Revenue,Adult Services,Adult Social Care,Central Codes (to be reallocated),5105670167,31.03.2021,Gouldings Resource Centre,Catering Purchases,203.08,3663 (BFS GROUP LTD)
Revenue,Adult Services,Adult Social Care,Central Codes (to be reallocated),5105668737,17.03.2021,Gouldings Resource Centre,Catering Purchases,197.41,3663 (BFS GROUP LTD)
Revenue,Adult Services,Adult Social Care,Central Codes (to be reallocated),5105668737,17.03.2021,Gouldings Resource Centre,Catering Purchases,26.49,3663 (BFS GROUP LTD)
Revenue,Corporate Items,Central Services,Corporate and Democratic Core,5105669106,19.03.2021,Corporate Management,Professional Services,"6,301.37",BCG BROKERS GP LIMITED
Revenue,Neighbourhoods,Cultural and Related Services,Library Service,5105670209,31.03.2021,Public Libraries Central,Stationery,42.14,BIBLIOTHECA LTD
Revenue,Regeneration,Central Services,Support Services,5105663202,19.03.2021,17 Fairlee Road,"Refuse Collection, Disposal and Recycling Costs",118.00,BIFFA WASTE SERVICES LTD
Revenue,Neighbourhoods,Highways and Transport Services,"Airports, Harbours & Toll Facilities",5105663202,19.03.2021,Ferry Management,"Refuse Collection, Disposal and Recycling Costs",94.00,BIFFA WASTE SERVICES LTD
Revenue,Adult Services,Adult Social Care,Central Codes (to be reallocated),5105667800,05.03.2021,Gouldings Resource Centre,"Refuse Collection, Disposal and Recycling Costs",101.76,BIFFA WASTE SERVICES LTD
Revenue,Adult Services,Adult Social Care,Central Codes (to be reallocated),5105667801,05.03.2021,Gouldings Resource Centre,"Refuse Collection, Disposal and Recycling Costs",306.24,BIFFA WASTE SERVICES LTD
Revenue,Regeneration,Central Services,Support Services,5105663202,19.03.2021,Parklands,"Refuse Collection, Disposal and Recycling Costs",7.00,BIFFA WASTE SERVICES LTD
Revenue,Childrens Services,Children's & Education Services,Other Education and Community Budget,5105663202,19.03.2021,SEND Independent Advice & Support,"Refuse Collection, Disposal and Recycling Costs",49.55,BIFFA WASTE SERVICES LTD
Revenue,Neighbourhoods,Cultural and Related Services,Recreation and Sport,5105663202,19.03.2021,Seaclose Skate Park & Netball Courts,"Refuse Collection, Disposal and Recycling Costs",104.90,BIFFA WASTE SERVICES LTD
Revenue,Regeneration,Planning services,Economic Development,5105663202,19.03.2021,Victoria Quays,"Refuse Collection, Disposal and Recycling Costs",60.03,BIFFA WASTE SERVICES LTD
Revenue,Neighbourhoods,Cultural and Related Services,Recreation and Sport,5105663202,19.03.2021,Medina Leisure Centre,"Refuse Collection, Disposal and Recycling Costs",248.03,BIFFA WASTE SERVICES LTD
Revenue,Neighbourhoods,Highways and Transport Services,"Airports, Harbours & Toll Facilities",5105663202,19.03.2021,Ryde Harbour,"Refuse Collection, Disposal and Recycling Costs",44.36,BIFFA WASTE SERVICES LTD
Revenue,Adult Services,Adult Social Care,Learning Disab Supp (to be reallocated),5105663202,19.03.2021,Plean Dene,"Refuse Collection, Disposal and Recycling Costs",215.70,BIFFA WASTE SERVICES LTD
Revenue,Adult Services,Adult Social Care,Learning Disab Supp (to be reallocated),5105663202,19.03.2021,Saxonbury,"Refuse Collection, Disposal and Recycling Costs",106.45,BIFFA WASTE SERVICES LTD
Revenue,Adult Services,Adult Social Care,Assistive Equipment & Technology,5105663202,19.03.2021,Community Equipment Store,"Refuse Collection, Disposal and Recycling Costs",296.94,BIFFA WASTE SERVICES LTD
Revenue,Childrens Services,Children's & Education Services,Children Looked After,5105663202,19.03.2021,Beaulieu House,"Refuse Collection, Disposal and Recycling Costs",229.97,BIFFA WASTE SERVICES LTD
Revenue,Adult Services,Adult Social Care,Commissioning & Service Delivery,5105663202,19.03.2021,Group Manager Leaning Disability Homes,"Refuse Collection, Disposal and Recycling Costs",98.95,BIFFA WASTE SERVICES LTD
Revenue,Regeneration,Planning services,Economic Development,5105663202,19.03.2021,Economic Development Projects,"Refuse Collection, Disposal and Recycling Costs",98.42,BIFFA WASTE SERVICES LTD
Revenue,Regeneration,Planning services,Economic Development,5105663202,19.03.2021,Economic Development Projects,"Refuse Collection, Disposal and Recycling Costs",0.92,BIFFA WASTE SERVICES LTD
Revenue,Regeneration,Central Services,Support Services,5105663202,19.03.2021,"Westridge, Ryde","Refuse Collection, Disposal and Recycling Costs",222.89,BIFFA WASTE SERVICES LTD
Revenue,Regeneration,Central Services,Support Services,5105663202,19.03.2021,"County Hall,Newport","Refuse Collection, Disposal and Recycling Costs",523.28,BIFFA WASTE SERVICES LTD
Revenue,Regeneration,Central Services,Support Services,5105663202,19.03.2021,"Jubilee Stores, Newport","Refuse Collection, Disposal and Recycling Costs",100.82,BIFFA WASTE SERVICES LTD
Revenue,Neighbourhoods,Cultural and Related Services,Open Spaces,5105663202,19.03.2021,Fort Victoria,"Refuse Collection, Disposal and Recycling Costs",9.10,BIFFA WASTE SERVICES LTD
Revenue,Neighbourhoods,Highways and Transport Services,"Airports, Harbours & Toll Facilities",5105663202,19.03.2021,Newport Harbour Account,"Refuse Collection, Disposal and Recycling Costs",132.80,BIFFA WASTE SERVICES LTD
Revenue,Fire & Rescue,Fire & Rescue Services,Fire fighting and Rescue Operations,5105663202,19.03.2021,Fire Operations,"Refuse Collection, Disposal and Recycling Costs",418.15,BIFFA WASTE SERVICES LTD
Revenue,Neighbourhoods,Cultural and Related Services,Library Service,5105663202,19.03.2021,Public Libraries Central,"Refuse Collection, Disposal and Recycling Costs",639.56,BIFFA WASTE SERVICES LTD
Revenue,Neighbourhoods,Cultural and Related Services,Recreation and Sport,5105663202,19.03.2021,Westridge Squash Courts,"Refuse Collection, Disposal and Recycling Costs",5.60,BIFFA WASTE SERVICES LTD
Revenue,Adult Services,Adult Social Care,Central Codes (to be reallocated),5105667795,05.03.2021,Adelaide Resource Centre,"Refuse Collection, Disposal and Recycling Costs","1,151.02",BIFFA WASTE SERVICES LTD
Revenue,Adult Services,Adult Social Care,Central Codes (to be reallocated),5105667798,17.03.2021,Adelaide Resource Centre,"Refuse Collection, Disposal and Recycling Costs",236.99,BIFFA WASTE SERVICES LTD
Revenue,Neighbourhoods,Environmental & Regulatory Services,"Cemetery, Cremation & Mortuary Services",5105663202,19.03.2021,Crematorium,"Refuse Collection, Disposal and Recycling Costs",221.30,BIFFA WASTE SERVICES LTD
Revenue,Childrens Services,Children's & Education Services,Management & Support Services,5105663202,19.03.2021,Specialist Service Business Admin,"Refuse Collection, Disposal and Recycling Costs",156.70,BIFFA WASTE SERVICES LTD
Revenue,Neighbourhoods,Cultural and Related Services,Culture and Heritage,5105663202,19.03.2021,Dinosaur Isle Museum (Sandown Geology),"Refuse Collection, Disposal and Recycling Costs",16.80,BIFFA WASTE SERVICES LTD
Revenue,Neighbourhoods,Cultural and Related Services,Recreation and Sport,5105663202,19.03.2021,The Heights,"Refuse Collection, Disposal and Recycling Costs",128.22,BIFFA WASTE SERVICES LTD
Revenue,Regeneration,Central Services,Support Services,5105663202,19.03.2021,"Civic Centre,Sandown","Refuse Collection, Disposal and Recycling Costs",83.92,BIFFA WASTE SERVICES LTD
Revenue,Resources,Central Services,Support Services,5105669495,24.03.2021,Staff Benefits,Payment to Private Contractors,155.00,BLACKBERRY LANE PRE-SCHOOL
Revenue,Childrens Services,Children's & Education Services,Children Looked After,5105669141,19.03.2021,Purchased Fostering,Charges from Independent Providers,"6,510.00",BLUE SKY FOSTERING LTD
Revenue,Childrens Services,Children's & Education Services,Family Support Services,5105668345,10.03.2021,Short Breaks,Charges from Independent Providers,349.17,BODSTER EQUINE ASSISTED LEARN CIC
Revenue,Childrens Services,Children's & Education Services,Family Support Services,5105669434,19.03.2021,Short Breaks,Charges from Independent Providers,349.13,BODSTER EQUINE ASSISTED LEARN CIC
Revenue,Fire & Rescue,Fire & Rescue Services,Fire fighting and Rescue Operations,5105670084,31.03.2021,Fire Fighters Salaries,Medical Fees and Staff Welfare,41.31,BOLLE SAFETY
Revenue,Fire & Rescue,Fire & Rescue Services,Fire fighting and Rescue Operations,5105670084,31.03.2021,Fire Fighters Salaries,Medical Fees and Staff Welfare,15.00,BOLLE SAFETY
Revenue,Fire & Rescue,Fire & Rescue Services,Fire fighting and Rescue Operations,5105670084,31.03.2021,Fire Fighters Salaries,Medical Fees and Staff Welfare,25.00,BOLLE SAFETY
Revenue,Fire & Rescue,Fire & Rescue Services,Fire fighting and Rescue Operations,5105670120,31.03.2021,Fire Fighters Salaries,Medical Fees and Staff Welfare,94.65,BOLLE SAFETY
Revenue,Fire & Rescue,Fire & Rescue Services,Fire fighting and Rescue Operations,5105670120,31.03.2021,Fire Fighters Salaries,Medical Fees and Staff Welfare,24.00,BOLLE SAFETY
Revenue,Fire & Rescue,Fire & Rescue Services,Fire fighting and Rescue Operations,5105670120,31.03.2021,Fire Fighters Salaries,Medical Fees and Staff Welfare,25.00,BOLLE SAFETY
Revenue,Adult Services,Adult Social Care,Learning Disab Supp (to be reallocated),5105668009,10.03.2021,Plean Dene,Catering Purchases,20.16,BOOKER CASH & CARRY LTD
Revenue,Adult Services,Adult Social Care,Learning Disab Supp (to be reallocated),5105668157,10.03.2021,Plean Dene,Catering Purchases,8.45,BOOKER CASH & CARRY LTD
Revenue,Adult Services,Adult Social Care,Learning Disab Supp (to be reallocated),5105668157,10.03.2021,Plean Dene,Catering Purchases,1.49,BOOKER CASH & CARRY LTD
Revenue,Adult Services,Adult Social Care,Learning Disab Supp (to be reallocated),5105670127,31.03.2021,Plean Dene,Catering Purchases,5.25,BOOKER CASH & CARRY LTD
Revenue,Adult Services,Adult Social Care,Learning Disab Supp (to be reallocated),5105670298,31.03.2021,Plean Dene,Catering Purchases,111.12,BOOKER CASH & CARRY LTD
Revenue,Adult Services,Adult Social Care,Learning Disab Supp (to be reallocated),5105670295,31.03.2021,Plean Dene,Catering Purchases,10.21,BOOKER CASH & CARRY LTD
Revenue,Adult Services,Adult Social Care,Learning Disab Supp (to be reallocated),5105669915,31.03.2021,Plean Dene,Catering Purchases,22.27,BOOKER CASH & CARRY LTD
Revenue,Adult Services,Adult Social Care,Learning Disab Supp (to be reallocated),5105669921,31.03.2021,Plean Dene,Catering Purchases,125.11,BOOKER CASH & CARRY LTD
Revenue,Adult Services,Adult Social Care,Learning Disab Supp (to be reallocated),5105669532,31.03.2021,Plean Dene,Catering Purchases,9.99,BOOKER CASH & CARRY LTD
Revenue,Adult Services,Adult Social Care,Learning Disab Supp (to be reallocated),5105667642,10.03.2021,Plean Dene,Catering Purchases,90.78,BOOKER CASH & CARRY LTD
Revenue,Adult Services,Adult Social Care,Learning Disab Supp (to be reallocated),5105667643,10.03.2021,Plean Dene,Catering Purchases,13.44,BOOKER CASH & CARRY LTD
Revenue,Adult Services,Adult Social Care,Learning Disab Supp (to be reallocated),5105668993,17.03.2021,Plean Dene,Catering Purchases,136.51,BOOKER CASH & CARRY LTD
Revenue,Adult Services,Adult Social Care,Learning Disab Supp (to be reallocated),5105668993,17.03.2021,Plean Dene,Catering Purchases,7.69,BOOKER CASH & CARRY LTD
Revenue,Adult Services,Adult Social Care,Learning Disab Supp (to be reallocated),5105668995,17.03.2021,Plean Dene,Catering Purchases,14.48,BOOKER CASH & CARRY LTD
Revenue,Public Health,Public Health,Smoking & Tobacco,5105669400,19.03.2021,Stop Smoking Services & Interventions NP,Payment to Private Contractors,40.00,BOOTS THE CHEMIST LTD (Ryde)
Revenue,Public Health,Public Health,Smoking & Tobacco,5105669400,19.03.2021,Stop Smoking Services & Interventions NP,Payment to Private Contractors,18.00,BOOTS THE CHEMIST LTD (Ryde)
Revenue,Public Health,Public Health,Smoking & Tobacco,5105669400,19.03.2021,Stop Smoking Services & Interventions NP,Payment to Private Contractors,191.10,BOOTS THE CHEMIST LTD (Ryde)
Revenue,Public Health,Public Health,Smoking & Tobacco,5105669400,19.03.2021,Stop Smoking Services & Interventions NP,Payment to Private Contractors,11.43,BOOTS THE CHEMIST LTD (Ryde)
Revenue,Public Health,Public Health,Smoking & Tobacco,5105669400,19.03.2021,Stop Smoking Services & Interventions NP,Payment to Private Contractors,4.00,BOOTS THE CHEMIST LTD (Ryde)
Revenue,Public Health,Public Health,Smoking & Tobacco,5105669404,19.03.2021,Stop Smoking Services & Interventions NP,Payment to Private Contractors,22.86,BOOTS UK LTD (107 HIGH ST SANDOWN)
Revenue,Public Health,Public Health,Smoking & Tobacco,5105669404,19.03.2021,Stop Smoking Services & Interventions NP,Payment to Private Contractors,8.00,BOOTS UK LTD (107 HIGH ST SANDOWN)
Revenue,Public Health,Public Health,Smoking & Tobacco,5105669409,19.03.2021,Stop Smoking Services & Interventions NP,Payment to Private Contractors,53.11,BOOTS UK LTD (COWES)
Revenue,Public Health,Public Health,Smoking & Tobacco,5105669409,19.03.2021,Stop Smoking Services & Interventions NP,Payment to Private Contractors,4.00,BOOTS UK LTD (COWES)
Revenue,Public Health,Public Health,Smoking & Tobacco,5105669409,19.03.2021,Stop Smoking Services & Interventions NP,Payment to Private Contractors,10.00,BOOTS UK LTD (COWES)
Revenue,Public Health,Public Health,Smoking & Tobacco,5105669409,19.03.2021,Stop Smoking Services & Interventions NP,Payment to Private Contractors,27.30,BOOTS UK LTD (COWES)
Revenue,Public Health,Public Health,Smoking & Tobacco,5105669407,19.03.2021,Stop Smoking Services & Interventions NP,Payment to Private Contractors,109.20,BOOTS UK LTD (FRESHWATER)
Revenue,Public Health,Public Health,Smoking & Tobacco,5105669407,19.03.2021,Stop Smoking Services & Interventions NP,Payment to Private Contractors,18.00,BOOTS UK LTD (FRESHWATER)
Revenue,Public Health,Public Health,Smoking & Tobacco,5105669398,19.03.2021,Stop Smoking Services & Interventions NP,Payment to Private Contractors,4.50,BOOTS UK LTD (NEWPORT)
Revenue,Public Health,Public Health,Smoking & Tobacco,5105669398,19.03.2021,Stop Smoking Services & Interventions NP,Payment to Private Contractors,27.30,BOOTS UK LTD (NEWPORT)
Revenue,Public Health,Public Health,Smoking & Tobacco,5105669398,19.03.2021,Stop Smoking Services & Interventions NP,Payment to Private Contractors,66.82,BOOTS UK LTD (NEWPORT)
Revenue,Public Health,Public Health,Smoking & Tobacco,5105669398,19.03.2021,Stop Smoking Services & Interventions NP,Payment to Private Contractors,24.00,BOOTS UK LTD (NEWPORT)
Revenue,Public Health,Public Health,Smoking & Tobacco,5400002977,31.03.2021,Stop Smoking Services & Interventions NP,Payment to Private Contractors,154.44,BOOTS UK LTD (NEWPORT)
Revenue,Public Health,Public Health,Smoking & Tobacco,5400002977,31.03.2021,Stop Smoking Services & Interventions NP,Payment to Private Contractors,16.00,BOOTS UK LTD (NEWPORT)
Revenue,Public Health,Public Health,Smoking & Tobacco,5105669406,19.03.2021,Stop Smoking Services & Interventions NP,Payment to Private Contractors,55.43,BOOTS UK LTD (TOWER HOUSE)
Revenue,Public Health,Public Health,Smoking & Tobacco,5105669406,19.03.2021,Stop Smoking Services & Interventions NP,Payment to Private Contractors,8.00,BOOTS UK LTD (TOWER HOUSE)
Revenue,Public Health,Public Health,Smoking & Tobacco,5105669397,19.03.2021,Stop Smoking Services & Interventions NP,Payment to Private Contractors,4.00,BOOTS UK LTD
Revenue,Public Health,Public Health,Smoking & Tobacco,5105669397,19.03.2021,Stop Smoking Services & Interventions NP,Payment to Private Contractors,2.67,BOOTS UK LTD
Revenue,Childrens Services,Children's & Education Services,Family Support Services,5105669945,31.03.2021,S17 Child Protection,Professional Services,130.00,BOSTICO INTERNATIONAL
Revenue,Childrens Services,Children's & Education Services,Family Support Services,5105668179,10.03.2021,S17 Child Protection,Support Children,70.00,BOSTICO INTERNATIONAL
Revenue,Childrens Services,Children's & Education Services,Family Support Services,5105668141,10.03.2021,S17 Child Protection,Professional Services,130.00,BOSTICO INTERNATIONAL
Revenue,Childrens Services,Children's & Education Services,Safeguarding Children/Young Peoples Svs,5105668364,12.03.2021,Commissioning (Children & Families),Payments to Other Local Authorities,"1,038.15",BOURNEMOUTH BOROUGH COUNCIL
Revenue,Childrens Services,Children's & Education Services,Safeguarding Children/Young Peoples Svs,5105668463,12.03.2021,Commissioning (Children & Families),Payments to Other Local Authorities,811.29,BOURNEMOUTH BOROUGH COUNCIL
Revenue,Resources,Central Services,Support Services,5105668218,10.03.2021,ICT Contracts,Computer Maintenance,"6,780.00",SOFTWARE BOX LIMITED
Revenue,Resources,Central Services,Support Services,5105668218,10.03.2021,ICT Contracts,Computer Maintenance,"5,655.00",SOFTWARE BOX LIMITED
Revenue,Resources,Central Services,Support Services,5105668218,10.03.2021,ICT Contracts,Computer Maintenance,762.50,SOFTWARE BOX LIMITED
Revenue,Resources,Central Services,Support Services,5105668218,10.03.2021,ICT Contracts,Computer Maintenance,"12,343.36",SOFTWARE BOX LIMITED
Revenue,Resources,Central Services,Support Services,5105668218,10.03.2021,ICT Contracts,Computer Maintenance,"3,020.00",SOFTWARE BOX LIMITED
Revenue,Resources,Central Services,Support Services,5105668218,10.03.2021,ICT Contracts,Computer Maintenance,"3,667.98",SOFTWARE BOX LIMITED
Revenue,Childrens Services,Children's & Education Services,Other Education and Community Budget,5105668926,17.03.2021,Home to School SEN Transport (LA),Taxis - Contract Hire,889.60,BRADING PRIMARY SCHOOL
Revenue,Childrens Services,Children's & Education Services,Other Education and Community Budget,5105669583,24.03.2021,Home to School SEN Transport (LA),Taxis - Contract Hire,975.90,BRADING PRIMARY SCHOOL
Revenue,Adult Services,Housing Services,Homelessness,5105669485,24.03.2021,Private Rented Sector Leasing Scheme,Accommodation Costs - Leaseholder Payments,746.81,BRAMBLE LETTINGS
Revenue,Adult Services,Housing Services,Homelessness,5105669485,24.03.2021,Private Rented Sector Leasing Scheme,Accommodation Costs - Leaseholder Payments,746.81,BRAMBLE LETTINGS
Revenue,Adult Services,Housing Services,Homelessness,5105669485,24.03.2021,Private Rented Sector Leasing Scheme,Accommodation Costs - Leaseholder Payments,746.81,BRAMBLE LETTINGS
Revenue,Adult Services,Housing Services,Homelessness,5105669485,24.03.2021,Private Rented Sector Leasing Scheme,Accommodation Costs - Leaseholder Payments,746.81,BRAMBLE LETTINGS
Revenue,Adult Services,Housing Services,Homelessness,5105669485,24.03.2021,Private Rented Sector Leasing Scheme,Accommodation Costs - Leaseholder Payments,746.81,BRAMBLE LETTINGS
Revenue,Adult Services,Housing Services,Homelessness,5105669485,24.03.2021,Private Rented Sector Leasing Scheme,Accommodation Costs - Leaseholder Payments,588.38,BRAMBLE LETTINGS
Revenue,Adult Services,Housing Services,Homelessness,5105669485,24.03.2021,Private Rented Sector Leasing Scheme,Accommodation Costs - Leaseholder Payments,588.38,BRAMBLE LETTINGS
Revenue,Adult Services,Housing Services,Homelessness,5105669485,24.03.2021,Private Rented Sector Leasing Scheme,Accommodation Costs - Leaseholder Payments,588.38,BRAMBLE LETTINGS
Revenue,Adult Services,Housing Services,Homelessness,5105669485,24.03.2021,Private Rented Sector Leasing Scheme,Accommodation Costs - Leaseholder Payments,588.38,BRAMBLE LETTINGS
Revenue,Adult Services,Housing Services,Homelessness,5105669485,24.03.2021,Private Rented Sector Leasing Scheme,Accommodation Costs - Leaseholder Payments,588.38,BRAMBLE LETTINGS
Revenue,Adult Services,Housing Services,Homelessness,5105669485,24.03.2021,Private Rented Sector Leasing Scheme,Accommodation Costs - Leaseholder Payments,746.81,BRAMBLE LETTINGS
Revenue,Adult Services,Housing Services,Homelessness,5105669485,24.03.2021,Private Rented Sector Leasing Scheme,Accommodation Costs - Leaseholder Payments,588.38,BRAMBLE LETTINGS
Revenue,Adult Services,Housing Services,Homelessness,5105669485,24.03.2021,Private Rented Sector Leasing Scheme,Accommodation Costs - Leaseholder Payments,746.81,BRAMBLE LETTINGS
Revenue,Adult Services,Housing Services,Homelessness,5105669485,24.03.2021,Private Rented Sector Leasing Scheme,Accommodation Costs - Leaseholder Payments,769.43,BRAMBLE LETTINGS
Revenue,Adult Services,Housing Services,Homelessness,5105669485,24.03.2021,Private Rented Sector Leasing Scheme,Accommodation Costs - Leaseholder Payments,746.81,BRAMBLE LETTINGS
Revenue,Adult Services,Housing Services,Homelessness,5105669485,24.03.2021,Private Rented Sector Leasing Scheme,Accommodation Costs - Leaseholder Payments,746.81,BRAMBLE LETTINGS
Revenue,Adult Services,Housing Services,Homelessness,5105669485,24.03.2021,Private Rented Sector Leasing Scheme,Accommodation Costs - Leaseholder Payments,746.81,BRAMBLE LETTINGS
Revenue,Adult Services,Housing Services,Homelessness,5105669485,24.03.2021,Private Rented Sector Leasing Scheme,Accommodation Costs - Leaseholder Payments,746.81,BRAMBLE LETTINGS
Revenue,Adult Services,Housing Services,Homelessness,5105669485,24.03.2021,Private Rented Sector Leasing Scheme,Accommodation Costs - Leaseholder Payments,746.81,BRAMBLE LETTINGS
Revenue,Adult Services,Housing Services,Homelessness,5105669485,24.03.2021,Private Rented Sector Leasing Scheme,Accommodation Costs - Leaseholder Payments,746.81,BRAMBLE LETTINGS
Revenue,Adult Services,Housing Services,Homelessness,5105669485,24.03.2021,Private Rented Sector Leasing Scheme,Accommodation Costs - Leaseholder Payments,746.81,BRAMBLE LETTINGS
Revenue,Adult Services,Housing Services,Homelessness,5105669485,24.03.2021,Private Rented Sector Leasing Scheme,Accommodation Costs - Leaseholder Payments,746.81,BRAMBLE LETTINGS
Revenue,Adult Services,Housing Services,Homelessness,5105669485,24.03.2021,Private Rented Sector Leasing Scheme,Accommodation Costs - Leaseholder Payments,281.66,BRAMBLE LETTINGS
Revenue,Adult Services,Housing Services,Homelessness,5105669485,24.03.2021,Private Rented Sector Leasing Scheme,Accommodation Costs - Leaseholder Payments,216.66,BRAMBLE LETTINGS
Revenue,Neighbourhoods,Cultural and Related Services,Open Spaces,5105668962,17.03.2021,Rights of Way Operations,Payment to Private Contractors,160.00,BRIGHSTONE LANDSCAPING LTD
Revenue,Neighbourhoods,Cultural and Related Services,Open Spaces,5105668963,17.03.2021,Rights of Way Operations,Payment to Private Contractors,850.00,BRIGHSTONE LANDSCAPING LTD
Revenue,Neighbourhoods,Cultural and Related Services,Open Spaces,5105668960,17.03.2021,John O�Conner Grounds Maintenance Contract,Payment to Private Contractors,"2,200.00",BRIGHSTONE LANDSCAPING LTD
Revenue,Neighbourhoods,Highways and Transport Services,"Airports, Harbours & Toll Facilities",5105668961,17.03.2021,Ryde Harbour,Payment to Private Contractors,637.00,BRIGHSTONE LANDSCAPING LTD
Revenue,Neighbourhoods,Cultural and Related Services,Open Spaces,5105668121,10.03.2021,Play Areas Health & Safety work,Payment to Private Contractors,420.00,BRIGHSTONE LANDSCAPING LTD
Revenue,Neighbourhoods,Cultural and Related Services,Recreation and Sport,5105670074,31.03.2021,Beach Safety & Inspection / Beach Awards,Payment to Private Contractors,75.00,BRIGHSTONE LANDSCAPING LTD
Revenue,Neighbourhoods,Cultural and Related Services,Recreation and Sport,5105667649,03.03.2021,Beach Safety & Inspection / Beach Awards,Payment to Private Contractors,70.00,BRIGHSTONE LANDSCAPING LTD
Revenue,Regeneration,Central Services,Support Services,5105667637,03.03.2021,Properties  - Other Properties,Grounds Maintenance,505.00,BRIGHSTONE LANDSCAPING LTD
Revenue,Neighbourhoods,Environmental & Regulatory Services,(Street) Cleansing (not highways),5105669612,24.03.2021,Beach Cleaning,Payment to Private Contractors,300.00,BRIGHSTONE LANDSCAPING LTD
Revenue,Neighbourhoods,Environmental & Regulatory Services,(Street) Cleansing (not highways),5105668958,17.03.2021,Beach Cleaning,Payment to Private Contractors,45.00,BRIGHSTONE LANDSCAPING LTD
Revenue,Neighbourhoods,Environmental & Regulatory Services,(Street) Cleansing (not highways),5105667634,03.03.2021,Beach Cleaning,Payment to Private Contractors,130.00,BRIGHSTONE LANDSCAPING LTD
Revenue,Neighbourhoods,Environmental & Regulatory Services,(Street) Cleansing (not highways),5105667635,03.03.2021,Beach Cleaning,Payment to Private Contractors,120.00,BRIGHSTONE LANDSCAPING LTD
Revenue,Neighbourhoods,Environmental & Regulatory Services,(Street) Cleansing (not highways),5105667649,03.03.2021,Beach Cleaning,Payment to Private Contractors,65.00,BRIGHSTONE LANDSCAPING LTD
Revenue,Neighbourhoods,Environmental & Regulatory Services,(Street) Cleansing (not highways),5105667649,03.03.2021,Beach Cleaning,Payment to Private Contractors,65.00,BRIGHSTONE LANDSCAPING LTD
Revenue,Neighbourhoods,Environmental & Regulatory Services,(Street) Cleansing (not highways),5105667552,03.03.2021,Beach Cleaning,Beach Cleansing Contractors,"1,476.00",BRIGHSTONE LANDSCAPING LTD
Revenue,Neighbourhoods,Environmental & Regulatory Services,(Street) Cleansing (not highways),5105669703,26.03.2021,Beach Cleaning,Beach Cleansing Contractors,"1,476.00",BRIGHSTONE LANDSCAPING LTD
Revenue,Neighbourhoods,Environmental & Regulatory Services,Community Safety (Crime reduction),5105668959,17.03.2021,Violent Crime Reduction Unit,Payment to Private Contractors,600.00,BRIGHSTONE LANDSCAPING LTD
Revenue,Neighbourhoods,Cultural and Related Services,Open Spaces,5105667632,03.03.2021,Other Grounds Maintenance,Payment to Private Contractors,55.00,BRIGHSTONE LANDSCAPING LTD
Revenue,Neighbourhoods,Highways and Transport Services,"Airports, Harbours & Toll Facilities",5105668085,05.03.2021,Newport Harbour Account,Payment to Private Contractors,360.00,BRIGHSTONE LANDSCAPING LTD
Revenue,Neighbourhoods,Environmental & Regulatory Services,Coast Protection,5105667630,03.03.2021,Coast Protection,Payment to Private Contractors,210.00,BRIGHSTONE LANDSCAPING LTD
Revenue,Resources,Central Services,Support Services,5105669520,24.03.2021,Staff Benefits,Payment to Private Contractors,15.00,KCT CHILDCARE LIMITED
Revenue,Neighbourhoods,Cultural and Related Services,Recreation and Sport,5105668250,10.03.2021,Beach Safety & Inspection / Beach Awards,Professional Subscriptions,100.00,BRITISH DESTINATIONS
Revenue,Adult Services,Adult Social Care,Learning Disability Suppt-adults (18-64),5105668775,17.03.2021,Learning Disability Residential 18-64,Charges from Independent Providers,"2,524.70",BROADHAM CARE LTD
Revenue,Adult Services,Adult Social Care,Learning Disability Suppt-adults (18-64),5105668775,17.03.2021,Learning Disability Residential 18-64,Charges from Independent Providers,"4,544.46",BROADHAM CARE LTD
Revenue,Childrens Services,Children's & Education Services,Children Looked After,5105669891,26.03.2021,In-house Fostering,Boarding Out Allowances,332.69,REDACTED PERSONAL DATA
Revenue,Childrens Services,Children's & Education Services,Children Looked After,5105669350,19.03.2021,In-house Fostering,Boarding Out Allowances,332.69,REDACTED PERSONAL DATA
Revenue,Childrens Services,Children's & Education Services,Children Looked After,5105667986,05.03.2021,In-house Fostering,Boarding Out Allowances,332.69,REDACTED PERSONAL DATA
Revenue,Childrens Services,Children's & Education Services,Children Looked After,5105668657,12.03.2021,In-house Fostering,Boarding Out Allowances,332.69,REDACTED PERSONAL DATA
Capital,Corporate Items,Balance Sheet,Balance Sheet,5105668819,17.03.2021,Balance Sheet,Order Settlement to Bal Sht GL,32.90,BUCKLAND CARE LTD
Capital,Corporate Items,Balance Sheet,Balance Sheet,5105668819,17.03.2021,Balance Sheet,Order Settlement to Bal Sht GL,59.22,BUCKLAND CARE LTD
Revenue,Adult Services,Adult Social Care,Mental Health Support-older people (65+),5105669083,17.03.2021,Mental Health Residential 65+,Charges from Independent Providers,"2,958.54",BUCKLAND CARE LTD
Revenue,Adult Services,Adult Social Care,Mental Health Support-older people (65+),5105669083,17.03.2021,Mental Health Residential 65+,Charges from Independent Providers,"1,383.12",BUCKLAND CARE LTD
Revenue,Adult Services,Adult Social Care,Support - Memory /Cognition-older people (65+),5105668819,17.03.2021,Memory & Cognition Residential 65+,Charges from Independent Providers,758.60,BUCKLAND CARE LTD
Revenue,Adult Services,Adult Social Care,Support - Memory /Cognition-older people (65+),5105668819,17.03.2021,Memory & Cognition Residential 65+,Charges from Independent Providers,"1,383.12",BUCKLAND CARE LTD
Revenue,Adult Services,Adult Social Care,Support - Memory /Cognition-older people (65+),5105668819,17.03.2021,Memory & Cognition Residential 65+,Charges from Independent Providers,758.60,BUCKLAND CARE LTD
Revenue,Adult Services,Adult Social Care,Support - Memory /Cognition-older people (65+),5105668819,17.03.2021,Memory & Cognition Residential 65+,Charges from Independent Providers,"1,383.12",BUCKLAND CARE LTD
Revenue,Adult Services,Adult Social Care,Support - Memory /Cognition-older people (65+),5105668819,17.03.2021,Memory & Cognition Residential 65+,Charges from Independent Providers,891.90,BUCKLAND CARE LTD
Revenue,Adult Services,Adult Social Care,Support - Memory /Cognition-older people (65+),5105668819,17.03.2021,Memory & Cognition Residential 65+,Charges from Independent Providers,"1,626.12",BUCKLAND CARE LTD
Revenue,Adult Services,Adult Social Care,Support - Memory /Cognition-older people (65+),5105668819,17.03.2021,Memory & Cognition Residential 65+,Charges from Independent Providers,758.60,BUCKLAND CARE LTD
Revenue,Adult Services,Adult Social Care,Support - Memory /Cognition-older people (65+),5105668819,17.03.2021,Memory & Cognition Residential 65+,Charges from Independent Providers,"1,383.12",BUCKLAND CARE LTD
Revenue,Adult Services,Adult Social Care,Support - Memory /Cognition-older people (65+),5105669725,26.03.2021,Memory & Cognition Residential 65+,Charges from Independent Providers,535.14,BUCKLAND CARE LTD
Revenue,Adult Services,Adult Social Care,Support - Memory /Cognition-older people (65+),5105669725,26.03.2021,Memory & Cognition Residential 65+,Charges from Independent Providers,"1,626.12",BUCKLAND CARE LTD
Revenue,Adult Services,Central Services,Emergency Planning,5105669725,26.03.2021,NHS C19 Residential,Charges from Independent Providers,"4,860.24",BUCKLAND CARE LTD
Revenue,Adult Services,Central Services,Emergency Planning,5105668819,17.03.2021,NHS C19 Residential,Charges from Independent Providers,891.90,BUCKLAND CARE LTD
Revenue,Adult Services,Central Services,Emergency Planning,5105668819,17.03.2021,NHS C19 Residential,Charges from Independent Providers,"1,157.20",BUCKLAND CARE LTD
Revenue,Adult Services,Central Services,Emergency Planning,5105668819,17.03.2021,NHS C19 Residential,Charges from Independent Providers,"1,157.20",BUCKLAND CARE LTD
Revenue,Adult Services,Central Services,Emergency Planning,5105668819,17.03.2021,NHS C19 Residential,Charges from Independent Providers,"1,157.20",BUCKLAND CARE LTD
Revenue,Adult Services,Central Services,Emergency Planning,5105668708,12.03.2021,NHS C19 Residential,Charges from Independent Providers,"2,198.68",BUCKLAND CARE LTD
Revenue,Adult Services,Central Services,Emergency Planning,5105668708,12.03.2021,NHS C19 Residential,Charges from Independent Providers,"2,198.68",BUCKLAND CARE LTD
Revenue,Adult Services,Central Services,Emergency Planning,5105669455,24.03.2021,NHS C19 Residential,Charges from Independent Providers,"4,860.24",BUCKLAND CARE LTD
Revenue,Adult Services,Adult Social Care,Commissioning & Service Delivery,5105669725,26.03.2021,CHC Interim Funding (FWP),Charges from Independent Providers,"2,408.13",BUCKLAND CARE LTD
Revenue,Adult Services,Adult Social Care,Commissioning & Service Delivery,5105668819,17.03.2021,FNC IWC funded clients,Charges from Independent Providers,262.80,BUCKLAND CARE LTD
Revenue,Adult Services,Adult Social Care,Commissioning & Service Delivery,5105668819,17.03.2021,FNC IWC funded clients,Charges from Independent Providers,473.04,BUCKLAND CARE LTD
Revenue,Adult Services,Adult Social Care,Physical Support - older people (65+),5105668819,17.03.2021,Physical Support Nursing 65+,Charges from Independent Providers,"1,822.50",BUCKLAND CARE LTD
Revenue,Adult Services,Adult Social Care,Physical Support - older people (65+),5105668819,17.03.2021,Physical Support Nursing 65+,Charges from Independent Providers,"1,001.30",BUCKLAND CARE LTD
Revenue,Adult Services,Balance Sheet,Balance Sheet,5105668819,17.03.2021,REDACTED PERSONAL DATA,Order Settlement to Bal Sht GL,758.60,BUCKLAND CARE LTD
Revenue,Adult Services,Balance Sheet,Balance Sheet,5105668819,17.03.2021,REDACTED PERSONAL DATA,Order Settlement to Bal Sht GL,"1,383.12",BUCKLAND CARE LTD
Revenue,Adult Services,Adult Social Care,Social Support - Support for Carer,5105668819,17.03.2021,Carers Residential,Charges from Independent Providers,891.90,BUCKLAND CARE LTD
Revenue,Adult Services,Adult Social Care,Social Support - Support for Carer,5105668819,17.03.2021,Carers Residential,Charges from Independent Providers,"1,626.12",BUCKLAND CARE LTD
Revenue,Adult Services,Adult Social Care,Physical Support - older people (65+),5105668819,17.03.2021,Physical Support Residential 65+,Charges from Independent Providers,891.90,BUCKLAND CARE LTD
Revenue,Adult Services,Adult Social Care,Physical Support - older people (65+),5105668819,17.03.2021,Physical Support Residential 65+,Charges from Independent Providers,"1,626.12",BUCKLAND CARE LTD
Revenue,Adult Services,Adult Social Care,Physical Support - older people (65+),5105668819,17.03.2021,Physical Support Residential 65+,Charges from Independent Providers,891.90,BUCKLAND CARE LTD
Revenue,Adult Services,Adult Social Care,Physical Support - older people (65+),5105668819,17.03.2021,Physical Support Residential 65+,Charges from Independent Providers,"1,626.12",BUCKLAND CARE LTD
Revenue,Adult Services,Adult Social Care,Physical Support - older people (65+),5105668819,17.03.2021,Physical Support Residential 65+,Charges from Independent Providers,891.90,BUCKLAND CARE LTD
Revenue,Adult Services,Adult Social Care,Physical Support - older people (65+),5105668819,17.03.2021,Physical Support Residential 65+,Charges from Independent Providers,"1,626.12",BUCKLAND CARE LTD
Revenue,Adult Services,Adult Social Care,Physical Support - older people (65+),5105668819,17.03.2021,Physical Support Residential 65+,Charges from Independent Providers,758.60,BUCKLAND CARE LTD
Revenue,Adult Services,Adult Social Care,Physical Support - older people (65+),5105668819,17.03.2021,Physical Support Residential 65+,Charges from Independent Providers,"1,383.12",BUCKLAND CARE LTD
Revenue,Adult Services,Adult Social Care,Learning Disability Support-older people,5105668819,17.03.2021,Learning Disability Residential 65+,Charges from Independent Providers,891.90,BUCKLAND CARE LTD
Revenue,Adult Services,Adult Social Care,Learning Disability Support-older people,5105668819,17.03.2021,Learning Disability Residential 65+,Charges from Independent Providers,"1,626.12",BUCKLAND CARE LTD
Revenue,Adult Services,Adult Social Care,Physical Support - older people (65+),5105669635,24.03.2021,Physical Support Residential 65+,Charges from Independent Providers,"1,427.04",BUCKLAND CARE LTD
Revenue,Adult Services,Adult Social Care,Physical Support - older people (65+),5105669635,24.03.2021,Physical Support Residential 65+,Charges from Independent Providers,"1,626.12",BUCKLAND CARE LTD
Revenue,Adult Services,Adult Social Care,Physical Support - older people (65+),5105669551,24.03.2021,Physical Support Residential 65+,Charges from Independent Providers,"1,376.36",BUCKLAND CARE LTD
Revenue,Adult Services,Adult Social Care,Physical Support - older people (65+),5105669990,26.03.2021,Physical Support Residential 65+,Charges from Independent Providers,"2,229.75",BUCKLAND CARE LTD
Revenue,Adult Services,Adult Social Care,Physical Support - older people (65+),5105669990,26.03.2021,Physical Support Residential 65+,Charges from Independent Providers,"1,626.12",BUCKLAND CARE LTD
Revenue,Adult Services,Adult Social Care,Physical Support - older people (65+),5105669990,26.03.2021,Physical Support Residential 65+,Charges from Independent Providers,"2,051.37",BUCKLAND CARE LTD
Revenue,Adult Services,Adult Social Care,Physical Support - older people (65+),5105669990,26.03.2021,Physical Support Residential 65+,Charges from Independent Providers,"1,626.12",BUCKLAND CARE LTD
Revenue,Adult Services,Adult Social Care,Physical Support - older people (65+),5105668819,17.03.2021,Physical Support Residential 65+,Charges from Independent Providers,758.60,BUCKLAND CARE LTD
Revenue,Adult Services,Adult Social Care,Physical Support - older people (65+),5105668819,17.03.2021,Physical Support Residential 65+,Charges from Independent Providers,"1,383.12",BUCKLAND CARE LTD
Revenue,Adult Services,Adult Social Care,Physical Support - older people (65+),5105668819,17.03.2021,Physical Support Residential 65+,Charges from Independent Providers,724.40,BUCKLAND CARE LTD
Revenue,Adult Services,Adult Social Care,Physical Support - older people (65+),5105668819,17.03.2021,Physical Support Residential 65+,Charges from Independent Providers,"1,320.84",BUCKLAND CARE LTD
Revenue,Adult Services,Adult Social Care,Physical Support - older people (65+),5105668819,17.03.2021,Physical Support Residential 65+,Charges from Independent Providers,"1,320.84",BUCKLAND CARE LTD
Revenue,Adult Services,Adult Social Care,Physical Support - older people (65+),5105668819,17.03.2021,Physical Support Residential 65+,Charges from Independent Providers,891.90,BUCKLAND CARE LTD
Revenue,Adult Services,Adult Social Care,Physical Support - older people (65+),5105668819,17.03.2021,Physical Support Residential 65+,Charges from Independent Providers,"1,626.12",BUCKLAND CARE LTD
Revenue,Adult Services,Adult Social Care,Physical Support - older people (65+),5105668819,17.03.2021,Physical Support Residential 65+,Charges from Independent Providers,891.90,BUCKLAND CARE LTD
Revenue,Adult Services,Adult Social Care,Physical Support - older people (65+),5105668819,17.03.2021,Physical Support Residential 65+,Charges from Independent Providers,"1,626.12",BUCKLAND CARE LTD
Revenue,Adult Services,Adult Social Care,Physical Support - older people (65+),5105668819,17.03.2021,Physical Support Residential 65+,Charges from Independent Providers,724.40,BUCKLAND CARE LTD
Revenue,Adult Services,Adult Social Care,Physical Support - older people (65+),5105668819,17.03.2021,Physical Support Residential 65+,Charges from Independent Providers,"1,320.84",BUCKLAND CARE LTD
Revenue,Adult Services,Adult Social Care,Physical Support - older people (65+),5105668819,17.03.2021,Physical Support Residential 65+,Charges from Independent Providers,724.40,BUCKLAND CARE LTD
Revenue,Adult Services,Adult Social Care,Physical Support - older people (65+),5105668819,17.03.2021,Physical Support Residential 65+,Charges from Independent Providers,"1,320.84",BUCKLAND CARE LTD
Revenue,Adult Services,Adult Social Care,Physical Support - older people (65+),5105667715,03.03.2021,Physical Support Residential 65+,Charges from Independent Providers,"3,252.24",BUCKLAND CARE LTD
Revenue,Adult Services,Adult Social Care,Social Support - Social Isolation/Other,5105668809,17.03.2021,Social Isolation/Other Nursing,Charges from Independent Providers,"1,822.50",BUCKLAND CARE LTD
Revenue,Adult Services,Adult Social Care,Social Support - Social Isolation/Other,5105668809,17.03.2021,Social Isolation/Other Nursing,Charges from Independent Providers,"1,001.30",BUCKLAND CARE LTD
Revenue,Adult Services,Adult Social Care,Mental Health Support-older people (65+),5105669080,17.03.2021,Mental Health Nursing 65+,Charges from Independent Providers,"1,401.82",BUCKLAND CARE LTD
Revenue,Adult Services,Central Services,Emergency Planning,5105668809,17.03.2021,NHS C19 Nursing,Charges from Independent Providers,"1,635.80",BUCKLAND CARE LTD
Revenue,Adult Services,Central Services,Emergency Planning,5105668809,17.03.2021,NHS C19 Nursing,Charges from Independent Providers,"2,290.12",BUCKLAND CARE LTD
Revenue,Adult Services,Central Services,Emergency Planning,5105668809,17.03.2021,NHS C19 Nursing,Charges from Independent Providers,"4,761.60",BUCKLAND CARE LTD
Revenue,Adult Services,Central Services,Emergency Planning,5105668809,17.03.2021,NHS C19 Nursing,Charges from Independent Providers,"3,809.28",BUCKLAND CARE LTD
Revenue,Adult Services,Central Services,Emergency Planning,5105668706,12.03.2021,NHS C19 Nursing,Charges from Independent Providers,"3,108.02",BUCKLAND CARE LTD
Revenue,Adult Services,Central Services,Emergency Planning,5105668706,12.03.2021,NHS C19 Nursing,Charges from Independent Providers,"11,427.84",BUCKLAND CARE LTD
Revenue,Adult Services,Adult Social Care,Commissioning & Service Delivery,5105668809,17.03.2021,"Funded Nursing Care, Registered Nursing Care Contribution",Charges from Independent Providers,262.80,BUCKLAND CARE LTD
Revenue,Adult Services,Adult Social Care,Commissioning & Service Delivery,5105668809,17.03.2021,"Funded Nursing Care, Registered Nursing Care Contribution",Charges from Independent Providers,482.40,BUCKLAND CARE LTD
Revenue,Adult Services,Adult Social Care,Commissioning & Service Delivery,5105668809,17.03.2021,"Funded Nursing Care, Registered Nursing Care Contribution",Charges from Independent Providers,262.80,BUCKLAND CARE LTD
Revenue,Adult Services,Adult Social Care,Commissioning & Service Delivery,5105668809,17.03.2021,"Funded Nursing Care, Registered Nursing Care Contribution",Charges from Independent Providers,482.40,BUCKLAND CARE LTD
Revenue,Adult Services,Adult Social Care,Commissioning & Service Delivery,5105668809,17.03.2021,"Funded Nursing Care, Registered Nursing Care Contribution",Charges from Independent Providers,262.80,BUCKLAND CARE LTD
Revenue,Adult Services,Adult Social Care,Commissioning & Service Delivery,5105668809,17.03.2021,"Funded Nursing Care, Registered Nursing Care Contribution",Charges from Independent Providers,482.40,BUCKLAND CARE LTD
Revenue,Adult Services,Adult Social Care,Learning Disability Suppt-adults (18-64),5105668809,17.03.2021,Learning Disability Nursing 18-64,Charges from Independent Providers,"1,001.30",BUCKLAND CARE LTD
Revenue,Adult Services,Adult Social Care,Learning Disability Suppt-adults (18-64),5105668809,17.03.2021,Learning Disability Nursing 18-64,Charges from Independent Providers,"3,672.00",BUCKLAND CARE LTD
Revenue,Adult Services,Adult Social Care,Learning Disability Suppt-adults (18-64),5105668809,17.03.2021,Learning Disability Nursing 18-64,Charges from Independent Providers,"2,040.00",BUCKLAND CARE LTD
Revenue,Adult Services,Adult Social Care,Learning Disability Suppt-adults (18-64),5105668809,17.03.2021,Learning Disability Nursing 18-64,Charges from Independent Providers,"1,822.50",BUCKLAND CARE LTD
Revenue,Adult Services,Adult Social Care,Commissioning & Service Delivery,5105668809,17.03.2021,FNC IWC funded clients,Regular Respite Care,262.80,BUCKLAND CARE LTD
Revenue,Adult Services,Adult Social Care,Commissioning & Service Delivery,5105668809,17.03.2021,FNC IWC funded clients,Regular Respite Care,473.04,BUCKLAND CARE LTD
Revenue,Adult Services,Adult Social Care,Commissioning & Service Delivery,5105669550,31.03.2021,FNC IWC funded clients,Charges from Independent Providers,482.40,BUCKLAND CARE LTD
Revenue,Adult Services,Adult Social Care,Commissioning & Service Delivery,5105669550,31.03.2021,FNC IWC funded clients,Charges from Independent Providers,604.44,BUCKLAND CARE LTD
Revenue,Adult Services,Adult Social Care,Commissioning & Service Delivery,5105668952,17.03.2021,FNC IWC funded clients,Charges from Independent Providers,367.92,BUCKLAND CARE LTD
Revenue,Adult Services,Adult Social Care,Commissioning & Service Delivery,5105669080,17.03.2021,FNC IWC funded clients,Charges from Independent Providers,367.92,BUCKLAND CARE LTD
Revenue,Adult Services,Adult Social Care,Commissioning & Service Delivery,5105668809,17.03.2021,FNC IWC funded clients,Charges from Independent Providers,262.80,BUCKLAND CARE LTD
Revenue,Adult Services,Adult Social Care,Commissioning & Service Delivery,5105668809,17.03.2021,FNC IWC funded clients,Charges from Independent Providers,482.40,BUCKLAND CARE LTD
Revenue,Adult Services,Adult Social Care,Commissioning & Service Delivery,5105668809,17.03.2021,FNC IWC funded clients,Charges from Independent Providers,262.80,BUCKLAND CARE LTD
Revenue,Adult Services,Adult Social Care,Commissioning & Service Delivery,5105668809,17.03.2021,FNC IWC funded clients,Charges from Independent Providers,482.40,BUCKLAND CARE LTD
Revenue,Adult Services,Adult Social Care,Commissioning & Service Delivery,5105668809,17.03.2021,FNC IWC funded clients,Charges from Independent Providers,262.80,BUCKLAND CARE LTD
Revenue,Adult Services,Adult Social Care,Commissioning & Service Delivery,5105668809,17.03.2021,FNC IWC funded clients,Charges from Independent Providers,482.40,BUCKLAND CARE LTD
Revenue,Adult Services,Adult Social Care,Commissioning & Service Delivery,5105668809,17.03.2021,FNC IWC funded clients,Charges from Independent Providers,262.80,BUCKLAND CARE LTD
Revenue,Adult Services,Adult Social Care,Commissioning & Service Delivery,5105668809,17.03.2021,CHC Interim Funding (FWP),Charges from Independent Providers,"1,264.10",BUCKLAND CARE LTD
Revenue,Adult Services,Adult Social Care,Commissioning & Service Delivery,5105668809,17.03.2021,CHC Interim Funding (FWP),Charges from Independent Providers,"2,304.90",BUCKLAND CARE LTD
Revenue,Adult Services,Adult Social Care,Commissioning & Service Delivery,5105668809,17.03.2021,FNC IWC funded clients,Charges from Independent Providers,262.80,BUCKLAND CARE LTD
Revenue,Adult Services,Adult Social Care,Commissioning & Service Delivery,5105668809,17.03.2021,FNC IWC funded clients,Charges from Independent Providers,262.80,BUCKLAND CARE LTD
Revenue,Adult Services,Adult Social Care,Commissioning & Service Delivery,5105668809,17.03.2021,FNC IWC funded clients,Charges from Independent Providers,482.40,BUCKLAND CARE LTD
Revenue,Adult Services,Adult Social Care,Commissioning & Service Delivery,5105668809,17.03.2021,FNC IWC funded clients,Charges from Independent Providers,482.40,BUCKLAND CARE LTD
Revenue,Adult Services,Adult Social Care,Commissioning & Service Delivery,5105668809,17.03.2021,FNC IWC funded clients,Charges from Independent Providers,482.40,BUCKLAND CARE LTD
Revenue,Adult Services,Adult Social Care,Commissioning & Service Delivery,5105668809,17.03.2021,FNC IWC funded clients,Charges from Independent Providers,262.80,BUCKLAND CARE LTD
Revenue,Adult Services,Adult Social Care,Commissioning & Service Delivery,5105668809,17.03.2021,FNC IWC funded clients,Charges from Independent Providers,482.40,BUCKLAND CARE LTD
Revenue,Adult Services,Adult Social Care,Commissioning & Service Delivery,5105668809,17.03.2021,FNC IWC funded clients,Charges from Independent Providers,262.80,BUCKLAND CARE LTD
Revenue,Adult Services,Adult Social Care,Commissioning & Service Delivery,5105668809,17.03.2021,FNC IWC funded clients,Charges from Independent Providers,482.40,BUCKLAND CARE LTD
Revenue,Adult Services,Adult Social Care,Commissioning & Service Delivery,5105668809,17.03.2021,FNC IWC funded clients,Charges from Independent Providers,262.80,BUCKLAND CARE LTD
Revenue,Adult Services,Adult Social Care,Commissioning & Service Delivery,5105668809,17.03.2021,FNC IWC funded clients,Charges from Independent Providers,482.40,BUCKLAND CARE LTD
Revenue,Adult Services,Adult Social Care,Commissioning & Service Delivery,5105668809,17.03.2021,FNC IWC funded clients,Charges from Independent Providers,262.80,BUCKLAND CARE LTD
Revenue,Adult Services,Adult Social Care,Commissioning & Service Delivery,5105668809,17.03.2021,FNC IWC funded clients,Charges from Independent Providers,482.40,BUCKLAND CARE LTD
Revenue,Adult Services,Adult Social Care,Commissioning & Service Delivery,5105668809,17.03.2021,FNC IWC funded clients,Charges from Independent Providers,262.80,BUCKLAND CARE LTD
Revenue,Adult Services,Adult Social Care,Commissioning & Service Delivery,5105668809,17.03.2021,FNC IWC funded clients,Charges from Independent Providers,482.40,BUCKLAND CARE LTD
Revenue,Adult Services,Adult Social Care,Commissioning & Service Delivery,5105668809,17.03.2021,FNC IWC funded clients,Charges from Independent Providers,262.80,BUCKLAND CARE LTD
Revenue,Adult Services,Adult Social Care,Physical Support - older people (65+),5105670254,31.03.2021,Physical Support Nursing 65+,Charges from Independent Providers,"1,101.43",BUCKLAND CARE LTD
Revenue,Adult Services,Adult Social Care,Physical Support - older people (65+),5105670254,31.03.2021,Physical Support Nursing 65+,Charges from Independent Providers,289.08,BUCKLAND CARE LTD
Revenue,Adult Services,Adult Social Care,Physical Support - older people (65+),5105670254,31.03.2021,Physical Support Nursing 65+,Charges from Independent Providers,801.04,BUCKLAND CARE LTD
Revenue,Adult Services,Adult Social Care,Physical Support - older people (65+),5105670254,31.03.2021,Physical Support Nursing 65+,Charges from Independent Providers,210.24,BUCKLAND CARE LTD
Revenue,Adult Services,Adult Social Care,Physical Support - older people (65+),5105669080,17.03.2021,Physical Support Nursing 65+,Charges from Independent Providers,"1,001.30",BUCKLAND CARE LTD
Revenue,Adult Services,Adult Social Care,Physical Support - older people (65+),5105668809,17.03.2021,Physical Support Nursing 65+,Charges from Independent Providers,"1,001.30",BUCKLAND CARE LTD
Revenue,Adult Services,Adult Social Care,Physical Support - older people (65+),5105668809,17.03.2021,Physical Support Nursing 65+,Charges from Independent Providers,"1,822.50",BUCKLAND CARE LTD
Revenue,Adult Services,Adult Social Care,Physical Support - older people (65+),5105668809,17.03.2021,Physical Support Nursing 65+,Charges from Independent Providers,"1,822.50",BUCKLAND CARE LTD
Revenue,Adult Services,Adult Social Care,Physical Support - older people (65+),5105668809,17.03.2021,Physical Support Nursing 65+,Charges from Independent Providers,"2,197.26",BUCKLAND CARE LTD
Revenue,Adult Services,Adult Social Care,Physical Support - older people (65+),5105668809,17.03.2021,Physical Support Nursing 65+,Charges from Independent Providers,"1,001.30",BUCKLAND CARE LTD
Revenue,Adult Services,Adult Social Care,Physical Support - older people (65+),5105668809,17.03.2021,Physical Support Nursing 65+,Charges from Independent Providers,891.90,BUCKLAND CARE LTD
Revenue,Adult Services,Adult Social Care,Physical Support - older people (65+),5105668809,17.03.2021,Physical Support Nursing 65+,Charges from Independent Providers,"1,626.12",BUCKLAND CARE LTD
Revenue,Adult Services,Adult Social Care,Physical Support - older people (65+),5105668809,17.03.2021,Physical Support Nursing 65+,Charges from Independent Providers,"1,001.30",BUCKLAND CARE LTD
Revenue,Adult Services,Adult Social Care,Physical Support - older people (65+),5105668809,17.03.2021,Physical Support Nursing 65+,Charges from Independent Providers,"1,822.50",BUCKLAND CARE LTD
Revenue,Adult Services,Adult Social Care,Physical Support - older people (65+),5105668809,17.03.2021,Physical Support Nursing 65+,Charges from Independent Providers,"1,001.30",BUCKLAND CARE LTD
Revenue,Adult Services,Adult Social Care,Physical Support - older people (65+),5105668809,17.03.2021,Physical Support Nursing 65+,Charges from Independent Providers,"1,822.50",BUCKLAND CARE LTD
Revenue,Adult Services,Adult Social Care,Physical Support - older people (65+),5105668809,17.03.2021,Physical Support Nursing 65+,Charges from Independent Providers,"1,001.30",BUCKLAND CARE LTD
Revenue,Adult Services,Adult Social Care,Physical Support - older people (65+),5105668809,17.03.2021,Physical Support Nursing 65+,Charges from Independent Providers,"1,822.50",BUCKLAND CARE LTD
Revenue,Adult Services,Adult Social Care,Physical Support - older people (65+),5105668809,17.03.2021,Physical Support Nursing 65+,Charges from Independent Providers,"1,822.50",BUCKLAND CARE LTD
Revenue,Adult Services,Adult Social Care,Physical Support - older people (65+),5105668809,17.03.2021,Physical Support Nursing 65+,Charges from Independent Providers,"1,001.30",BUCKLAND CARE LTD
Revenue,Adult Services,Adult Social Care,Physical Support - adults (18-64),5105668809,17.03.2021,Physical Support Nursing 18-64,Charges from Independent Providers,"1,822.50",BUCKLAND CARE LTD
Revenue,Adult Services,Adult Social Care,Physical Support - adults (18-64),5105668809,17.03.2021,Physical Support Nursing 18-64,Charges from Independent Providers,"1,001.30",BUCKLAND CARE LTD
Revenue,Adult Services,Adult Social Care,Physical Support - older people (65+),5105668952,17.03.2021,Physical Support Nursing 65+,Charges from Independent Providers,"1,401.82",BUCKLAND CARE LTD
Revenue,Adult Services,Adult Social Care,Commissioning & Service Delivery,5105668809,17.03.2021,CHC Nursing Care,Charges from Independent Providers,"3,539.48",BUCKLAND CARE LTD
Revenue,Adult Services,Adult Social Care,Commissioning & Service Delivery,5105668809,17.03.2021,CHC Nursing Care,Charges from Independent Providers,"2,304.90",BUCKLAND CARE LTD
Revenue,Adult Services,Adult Social Care,Commissioning & Service Delivery,5105668809,17.03.2021,CHC Nursing Care,Charges from Independent Providers,"1,264.10",BUCKLAND CARE LTD
Revenue,Adult Services,Adult Social Care,Commissioning & Service Delivery,5105668809,17.03.2021,CHC Nursing Care,Charges from Independent Providers,"2,304.90",BUCKLAND CARE LTD
Revenue,Adult Services,Adult Social Care,Commissioning & Service Delivery,5105668809,17.03.2021,CHC Nursing Care,Charges from Independent Providers,"1,264.10",BUCKLAND CARE LTD
Revenue,Adult Services,Adult Social Care,Commissioning & Service Delivery,5105668809,17.03.2021,CHC Nursing Care,Charges from Independent Providers,"2,304.90",BUCKLAND CARE LTD
Revenue,Adult Services,Adult Social Care,Commissioning & Service Delivery,5105668809,17.03.2021,CHC Nursing Care,Charges from Independent Providers,"1,264.10",BUCKLAND CARE LTD
Revenue,Adult Services,Adult Social Care,Commissioning & Service Delivery,5105668809,17.03.2021,CHC Nursing Care,Charges from Independent Providers,"2,304.90",BUCKLAND CARE LTD
Revenue,Adult Services,Adult Social Care,Commissioning & Service Delivery,5105668809,17.03.2021,CHC Nursing Care,Charges from Independent Providers,"1,264.10",BUCKLAND CARE LTD
Revenue,Adult Services,Adult Social Care,Commissioning & Service Delivery,5105668809,17.03.2021,CHC Nursing Care,Charges from Independent Providers,"2,304.90",BUCKLAND CARE LTD
Revenue,Adult Services,Adult Social Care,Commissioning & Service Delivery,5105668809,17.03.2021,CHC Nursing Care,Charges from Independent Providers,"1,264.10",BUCKLAND CARE LTD
Revenue,Adult Services,Adult Social Care,Commissioning & Service Delivery,5105668809,17.03.2021,CHC Nursing Care,Charges from Independent Providers,"2,304.90",BUCKLAND CARE LTD
Revenue,Adult Services,Adult Social Care,Commissioning & Service Delivery,5105668809,17.03.2021,CHC Nursing Care,Charges from Independent Providers,"1,264.10",BUCKLAND CARE LTD
Revenue,Adult Services,Adult Social Care,Commissioning & Service Delivery,5105668809,17.03.2021,CHC Nursing Care,Charges from Independent Providers,"4,080.00",BUCKLAND CARE LTD
Revenue,Adult Services,Adult Social Care,Commissioning & Service Delivery,5105668809,17.03.2021,CHC Nursing Care,Charges from Independent Providers,"2,304.90",BUCKLAND CARE LTD
Revenue,Adult Services,Adult Social Care,Commissioning & Service Delivery,5105668809,17.03.2021,CHC Nursing Care,Charges from Independent Providers,"7,344.00",BUCKLAND CARE LTD
Revenue,Adult Services,Adult Social Care,Support - Memory /Cognition-older people (65+),5105668809,17.03.2021,Memory & Cognition Nursing 65+,Regular Respite Care,"1,001.30",BUCKLAND CARE LTD
Revenue,Adult Services,Adult Social Care,Support - Memory /Cognition-older people (65+),5105668809,17.03.2021,Memory & Cognition Nursing 65+,Regular Respite Care,"1,822.50",BUCKLAND CARE LTD
Revenue,Adult Services,Adult Social Care,Support - Memory /Cognition-older people (65+),5105669550,31.03.2021,Memory & Cognition Nursing 65+,Charges from Independent Providers,"2,302.99",BUCKLAND CARE LTD
Revenue,Adult Services,Adult Social Care,Support - Memory /Cognition-older people (65+),5105669550,31.03.2021,Memory & Cognition Nursing 65+,Charges from Independent Providers,"1,822.50",BUCKLAND CARE LTD
Revenue,Adult Services,Adult Social Care,Support - Memory /Cognition-older people (65+),5105668809,17.03.2021,Memory & Cognition Nursing 65+,Charges from Independent Providers,"1,822.50",BUCKLAND CARE LTD
Revenue,Adult Services,Adult Social Care,Support - Memory /Cognition-older people (65+),5105668809,17.03.2021,Memory & Cognition Nursing 65+,Charges from Independent Providers,"1,001.30",BUCKLAND CARE LTD
Revenue,Adult Services,Adult Social Care,Support - Memory /Cognition-older people (65+),5105668809,17.03.2021,Memory & Cognition Nursing 65+,Charges from Independent Providers,"1,155.40",BUCKLAND CARE LTD
Revenue,Adult Services,Adult Social Care,Support - Memory /Cognition-older people (65+),5105668809,17.03.2021,Memory & Cognition Nursing 65+,Charges from Independent Providers,"2,102.94",BUCKLAND CARE LTD
Revenue,Adult Services,Adult Social Care,Physical Support - older people (65+),5105668809,17.03.2021,Physical Support Residential 65+,Charges from Independent Providers,891.90,BUCKLAND CARE LTD
Revenue,Adult Services,Adult Social Care,Physical Support - older people (65+),5105668809,17.03.2021,Physical Support Residential 65+,Charges from Independent Providers,"1,626.12",BUCKLAND CARE LTD
Revenue,Adult Services,Adult Social Care,Physical Support - older people (65+),5105668832,17.03.2021,Physical Support Nursing 65+,Charges from Independent Providers,"1,384.40",BUPA CARE HOME (BNH) LTD
Revenue,Adult Services,Adult Social Care,Physical Support - older people (65+),5105668832,17.03.2021,Physical Support Nursing 65+,Charges from Independent Providers,"2,491.92",BUPA CARE HOME (BNH) LTD
Revenue,Childrens Services,Children's & Education Services,Children Looked After,5105669757,26.03.2021,Special Guardianship Order Costs,Support Children,161.49,REDACTED PERSONAL DATA
Revenue,Childrens Services,Children's & Education Services,Children Looked After,5105667846,05.03.2021,Special Guardianship Order Costs,Support Children,161.49,REDACTED PERSONAL DATA
Revenue,Childrens Services,Children's & Education Services,Children Looked After,5105668520,12.03.2021,Special Guardianship Order Costs,Support Children,161.49,REDACTED PERSONAL DATA
Revenue,Childrens Services,Children's & Education Services,Children Looked After,5105669215,19.03.2021,Special Guardianship Order Costs,Support Children,161.49,REDACTED PERSONAL DATA
Revenue,Childrens Services,Children's & Education Services,Children Looked After,5105667873,05.03.2021,Children placed with Family&Friends,Boarding Out Allowances,244.47,REDACTED PERSONAL DATA
Revenue,Childrens Services,Children's & Education Services,Children Looked After,5105668547,12.03.2021,Children placed with Family&Friends,Boarding Out Allowances,244.47,REDACTED PERSONAL DATA
Revenue,Childrens Services,Children's & Education Services,Children Looked After,5105669784,26.03.2021,Children placed with Family&Friends,Boarding Out Allowances,244.47,REDACTED PERSONAL DATA
Revenue,Childrens Services,Children's & Education Services,Children Looked After,5105669242,19.03.2021,Children placed with Family&Friends,Boarding Out Allowances,244.47,REDACTED PERSONAL DATA
Revenue,Childrens Services,Children's & Education Services,Children Looked After,5105669776,26.03.2021,Adoption Costs,Support Children,161.49,REDACTED PERSONAL DATA
Revenue,Childrens Services,Children's & Education Services,Children Looked After,5105669776,26.03.2021,Adoption Costs,Support Children,168.09,REDACTED PERSONAL DATA
Revenue,Childrens Services,Children's & Education Services,Children Looked After,5105669234,19.03.2021,Adoption Costs,Support Children,161.49,REDACTED PERSONAL DATA
Revenue,Childrens Services,Children's & Education Services,Children Looked After,5105669234,19.03.2021,Adoption Costs,Support Children,168.09,REDACTED PERSONAL DATA
Revenue,Childrens Services,Children's & Education Services,Children Looked After,5105668539,12.03.2021,Adoption Costs,Support Children,161.49,REDACTED PERSONAL DATA
Revenue,Childrens Services,Children's & Education Services,Children Looked After,5105668539,12.03.2021,Adoption Costs,Support Children,168.09,REDACTED PERSONAL DATA
Revenue,Childrens Services,Children's & Education Services,Children Looked After,5105667865,05.03.2021,Adoption Costs,Support Children,161.49,REDACTED PERSONAL DATA
Revenue,Childrens Services,Children's & Education Services,Children Looked After,5105667865,05.03.2021,Adoption Costs,Support Children,168.09,REDACTED PERSONAL DATA
Revenue,Childrens Services,Children's & Education Services,Children Looked After,5105669764,26.03.2021,Special Guardianship Order Costs,Support Children,40.56,REDACTED PERSONAL DATA
Revenue,Childrens Services,Children's & Education Services,Children Looked After,5105667853,05.03.2021,Special Guardianship Order Costs,Support Children,40.56,REDACTED PERSONAL DATA
Revenue,Childrens Services,Children's & Education Services,Children Looked After,5105668527,12.03.2021,Special Guardianship Order Costs,Support Children,40.56,REDACTED PERSONAL DATA
Revenue,Childrens Services,Children's & Education Services,Children Looked After,5105669222,19.03.2021,Special Guardianship Order Costs,Support Children,40.56,REDACTED PERSONAL DATA
Revenue,Childrens Services,Children's & Education Services,Children Looked After,5105668545,12.03.2021,In-house Fostering,Boarding Out Allowances,332.69,REDACTED PERSONAL DATA
Revenue,Childrens Services,Children's & Education Services,Children Looked After,5105668545,12.03.2021,In-house Fostering,Boarding Out Allowances,244.47,REDACTED PERSONAL DATA
Revenue,Childrens Services,Children's & Education Services,Children Looked After,5105668545,12.03.2021,In-house Fostering,Boarding Out Allowances,244.47,REDACTED PERSONAL DATA
Revenue,Childrens Services,Children's & Education Services,Children Looked After,5105669782,26.03.2021,In-house Fostering,Boarding Out Allowances,332.69,REDACTED PERSONAL DATA
Revenue,Childrens Services,Children's & Education Services,Children Looked After,5105669782,26.03.2021,In-house Fostering,Boarding Out Allowances,244.47,REDACTED PERSONAL DATA
Revenue,Childrens Services,Children's & Education Services,Children Looked After,5105669782,26.03.2021,In-house Fostering,Boarding Out Allowances,244.47,REDACTED PERSONAL DATA
Revenue,Childrens Services,Children's & Education Services,Children Looked After,5105667871,05.03.2021,In-house Fostering,Boarding Out Allowances,332.69,REDACTED PERSONAL DATA
Revenue,Childrens Services,Children's & Education Services,Children Looked After,5105667871,05.03.2021,In-house Fostering,Boarding Out Allowances,244.47,REDACTED PERSONAL DATA
Revenue,Childrens Services,Children's & Education Services,Children Looked After,5105667871,05.03.2021,In-house Fostering,Boarding Out Allowances,244.47,REDACTED PERSONAL DATA
Revenue,Childrens Services,Children's & Education Services,Children Looked After,5105669240,19.03.2021,In-house Fostering,Boarding Out Allowances,332.69,REDACTED PERSONAL DATA
Revenue,Childrens Services,Children's & Education Services,Children Looked After,5105669240,19.03.2021,In-house Fostering,Boarding Out Allowances,244.47,REDACTED PERSONAL DATA
Revenue,Childrens Services,Children's & Education Services,Children Looked After,5105669240,19.03.2021,In-house Fostering,Boarding Out Allowances,244.47,REDACTED PERSONAL DATA
Revenue,Childrens Services,Children's & Education Services,Children Looked After,5105669793,26.03.2021,Special Guardianship Order Costs,Support Children,175.78,REDACTED PERSONAL DATA
Revenue,Childrens Services,Children's & Education Services,Children Looked After,5105667883,05.03.2021,Special Guardianship Order Costs,Support Children,175.78,REDACTED PERSONAL DATA
Revenue,Childrens Services,Children's & Education Services,Children Looked After,5105668557,12.03.2021,Special Guardianship Order Costs,Support Children,175.78,REDACTED PERSONAL DATA
Revenue,Childrens Services,Children's & Education Services,Children Looked After,5105669251,19.03.2021,Special Guardianship Order Costs,Support Children,175.78,REDACTED PERSONAL DATA
